{"text_format":"1","workbook":"xlsx","n_sheets":2,"sheets":["JULIO ","PIC JULIO 2020"],"not_rendered":{"charts":0,"images":0,"macros":1,"external_links":2,"defined_names":3,"comments":2,"pivot_tables":0},"unopened":[],"bounds":{"document_bytes":16777216,"sheet_cells":100000,"rows_first":2000,"rows_last":500,"rows_between":2000,"halvings":0,"cell_chars":16384,"cell_head_chars":4096},"cells_cut":0,"cells_raw":0,"read":"whole","date_system":"1900"}

{"sheet":"JULIO ","index":0,"n_rows":475,"n_cols":15,"rows_kept":475,"cut":false,"hidden":false,"merged":[[0,1,0,5]]}
[null,"LISTADO CONTRATACION MES DE JULIO DE 2020"]
["NO","CEDULA","NOMBRES APELLIDOS CONTRATISTA","ops  #año","OBJETO DEL CONTRATO","FECHA INICIO","FECHA TERMINACION ","VALOR MENSUAL","VALOR TOTAL ","CDP","RP","SUPERVISOR ","CARGO","FECHA  SECOP ","LINK SECOP "]
[1,32726703,"MARILYN ESTHER PEREZ LIÑAN","2669-2020","AUXILIAR DE ENFERMERIA URGENCIAS","01 deJulio de 2020"," 31 de  Julio  de 2020",1653600,{"$f":"+H3*1","v":1653600},3263,4253,"SERGIO BOVEA MARIN","COORD CENTRO DE SALUD","2020-07-17","https://www.contratos.gov.co/consultas/detalleProceso.do?numConstancia=20-4-10932901"]
[{"$f":"+A3+1","v":2},1129532724,"MICHELLY SANDOVAL ACUÑA","2670-2020","AUDITOR MEDICO  - EPIDEMIOLOGA  COORDINACION- EMERGENCIA COVIC 19","01 deJulio de 2020"," 31 de  Julio  de 2020",6044000,6044000,3272,4254,"BETTY PERTUZ ","SUBGERENTE CIENTIFICO","2020-07-17","https://www.contratos.gov.co/consultas/detalleProceso.do?numConstancia=20-4-10932921"]
[3,32870174,"SIRLEY PAOLA PEREZ CARMONA","2671-2020","AUDITOR DE CALIDAD Y SERVICIOS DE SALUD","01 deJulio de 2020"," 31 de  Julio  de 2020",5800000,5800000,3273,4255,"BETTY PERTUZ ","SUBGERENTE CIENTIFICO","2020-07-17","https://www.contratos.gov.co/consultas/detalleProceso.do?numConstancia=20-4-10932926"]
[4,1140846298,"LENIN ALVAREZ PINEDA","2672-2020","AUDITOR DE SISTEMAS Y RESOLUCION 4505","01 deJulio de 2020"," 31 de  Julio  de 2020",3000000,3000000,3274,4256,"NILSA ARIZA MARQUEZ","COORDINADOR PYP","2020-07-17","https://www.contratos.gov.co/consultas/detalleProceso.do?numConstancia=20-4-10932935"]
[5,22736159,"ARACELLY HERNANDEZ GARCIA ","2673-2020","AUXILIAR ADMINISTRATIVO TIC  Y SISTEMA DE INFORMACION","01 deJulio de 2020"," 31 de  Julio  de 2020",2500000,2500000,3275,4257,"ZULLY ROMERO","COORDINADOR TIC","2020-07-17","https://www.contratos.gov.co/consultas/detalleProceso.do?numConstancia=20-4-10932942"]
[6,1042416953,"GABRIEL JOSE MONTIEL CERVANTES","2674-2020","INGENIERO DE REDES Y HARDWARE ","01 deJulio de 2020"," 31 de  Julio  de 2020",3000000,3000000,3276,4258,"ZULLY ROMERO","COORDINADOR TIC","2020-07-17","https://www.contratos.gov.co/consultas/detalleProceso.do?numConstancia=20-4-10932948"]
[7,1043121395,"SHEYLA DEL CARMEN ESTRADA ARIZA","2675-2020","TECNICO DE SISTEMAS ","01 deJulio de 2020"," 31 de  Julio  de 2020",1270000,1270000,3277,4259,"ZULLY ROMERO","COORDINADOR TIC","2020-07-17","https://www.contratos.gov.co/consultas/detalleProceso.do?numConstancia=20-4-10932958"]
[8,8762035,"CESAR AUGUSTO MERIÑO ESCORCIA ","2676-2020","ORIENTADOR","01 deJulio de 2020"," 31 de  Julio  de 2020",1270000,1270000,3278,4260,"SANDRA SANMARTIN","SUBGERENTE ADMINISTRATIVO","2020-07-17","https://www.contratos.gov.co/consultas/detalleProceso.do?numConstancia=20-4-10932967"]
[9,1140814033,"STEFANY RINCON TORRES","2677-2020","ASISTENTE ADMINISTRATIVO- COORD EMERGENCIA COVIC 19","01 deJulio de 2020"," 31 de  Julio  de 2020",4000000,4000000,3279,4261,"BETTY PERTUZ ","SUBGERENTE CIENTIFICO","2020-07-17","https://www.contratos.gov.co/consultas/detalleProceso.do?numConstancia=20-4-10932975"]
[10,1140874429,"ALBERTO DE LA OSSA DE AVILA","2678-2020","PROFESIONAL  PRESUPUESTO ","01 deJulio de 2020"," 31 de  Julio  de 2020",3000000,3000000,3280,4262,"JORGE OLMOS NAVARRO","DIRECTOR FINANCIERO","2020-07-17","https://www.contratos.gov.co/consultas/detalleProceso.do?numConstancia=20-4-10932984"]
[11,22549719,"CARMEN MELINA BOLAÑO COTES ","2679-2020","AUXILIAR ADMINISTRATIVO  ESTADISTICA","01 deJulio de 2020"," 31 de  Julio  de 2020",2500000,2500000,3281,4263,"GENARO   GUTIERREZ DE PIÑERES","JEFE DE  ESTADISTICA","2020-07-17","https://www.contratos.gov.co/consultas/detalleProceso.do?numConstancia=20-4-10932989"]
[12,1001798325,"CINDY MILENA SARMIENTO MERIÑO","2680-2020","ESPECIALISTA TALENTO HUMANO ","01 deJulio de 2020"," 31 de  Julio  de 2020",4000000,4000000,3282,4264,"FABIAN  COLPAS OROZCO ","JEFE  TALENTO  HUMANO","2020-07-17","https://www.contratos.gov.co/consultas/detalleProceso.do?numConstancia=20-4-10932995"]
[13,32769708,"CLAUDIA ARENAS ALVAREZ","2681-2020","APOYO GESTION CONTROL INTERNO","01 deJulio de 2020"," 31 de  Julio  de 2020",3500000,3500000,3283,4265,"SANDRA SANMARTIN","SUBGERENTE ADMINISTRATIVO","2020-07-17","https://www.contratos.gov.co/consultas/detalleProceso.do?numConstancia=20-4-10933001"]
[14,1043611198,"CRISTIAN JESUS RODRIGUEZ QUIROZ","2682-2020","PROFESIONAL CONTADURIA","01 deJulio de 2020"," 31 de  Julio  de 2020",3000000,3000000,3284,4266,"JORGE OLMOS NAVARRO","DIRECTOR FINANCIERO","2020-07-17","https://www.contratos.gov.co/consultas/detalleProceso.do?numConstancia=20-4-10933013"]
[15,22704983,"EGUIS ODILA ROLONG LAGUNA","2683-2020","ABOGADO  TALENTO HUMANO","01 deJulio de 2020"," 31 de  Julio  de 2020",5000000,5000000,3285,4267,"FABIAN  COLPAS OROZCO ","JEFE  TALENTO  HUMANO","2020-07-17","https://www.contratos.gov.co/consultas/detalleProceso.do?numConstancia=20-4-10933018"]
[16,32866006,"ERIKA MARIA  ASCENCIO MARQUEZ","2684-2020","PROFESIONAL CONTRATACION   Y  SISTEMAS DE INFORMACION TALENTO HUMANO","01 deJulio de 2020"," 31 de  Julio  de 2020",4000000,4000000,3286,4268,"FABIAN  COLPAS OROZCO ","JEFE  TALENTO  HUMANO","2020-07-17","https://www.contratos.gov.co/consultas/detalleProceso.do?numConstancia=20-4-10933026"]
[17,8495176,"JAIME ALBERTO ALVAREZ NORIEGA","2685-2020","INGENIERO AMBIENTAL","01 deJulio de 2020"," 31 de  Julio  de 2020",3500000,3500000,3287,4269,"SANDRA SANMARTIN","SUBGERENTE ADMINISTRATIVO","2020-07-17","https://www.contratos.gov.co/consultas/detalleProceso.do?numConstancia=20-4-10933039"]
[18,1010137665,"KAROLINE JUDITH MORENO VARELO","2686-2020","ASISTENTE ADMINISTRATIVO PROMOCION Y PREVENCION.","01 deJulio de 2020"," 31 de  Julio  de 2020",1500000,1500000,3288,4270,"NILSA ARIZA MARQUEZ","COORDINADOR PYP","2020-07-17","https://www.contratos.gov.co/consultas/detalleProceso.do?numConstancia=20-4-10933049"]
[19,72053529,"LEINER DARIO MEDINA HERRERA","2687-2020","CONTROL INTERNO","01 deJulio de 2020"," 31 de  Julio  de 2020",3000000,3000000,3289,4271,"SANDRA SANMARTIN","SUBGERENTE ADMINISTRATIVO","2020-07-17","https://www.contratos.gov.co/consultas/detalleProceso.do?numConstancia=20-4-10933054"]
[20,8571868,"ERINSON RAFAEL GUZMAN DE  LA HOZ","2688-2020","PROFESIONAL TALENTO HUMANO","01 deJulio de 2020"," 31 de  Julio  de 2020",3000000,3000000,3290,4272,"FABIAN  COLPAS OROZCO ","JEFE  TALENTO  HUMANO","2020-07-17","https://www.contratos.gov.co/consultas/detalleProceso.do?numConstancia=20-4-10933061"]
[21,44205287,"MARTHA KATERINE MEJIA FRUTO","2689-2020","AUXILIAR ADMINISTRATIVO  RECEPCION ","01 deJulio de 2020"," 31 de  Julio  de 2020",1900000,1900000,3291,4273,"SANDRA SANMARTIN","SUBGERENTE ADMINISTRATIVO","2020-07-17","https://www.contratos.gov.co/consultas/detalleProceso.do?numConstancia=20-4-10933074"]
[22,1043876764,"MELANI ISABEL PERTUZ HERRERA","2690-2020","AUXILIAR ADMINISTRATIVO -  SUBGERENCIA ADMINISTRATIVA","01 deJulio de 2020"," 31 de  Julio  de 2020",2200000,2200000,3292,4274,"SANDRA SANMARTIN","SUBGERENTE ADMINISTRATIVO","2020-07-17","https://www.contratos.gov.co/consultas/detalleProceso.do?numConstancia=20-4-10933081"]
[23,72268005,"MILTON SOLARTE RODRIGUEZ","2691-2020","APOYO EN ANALISIS Y DESARROLLO DE  INFORMACION EN FACTURACION CENTRAL (RIPS)","01 deJulio de 2020"," 31 de  Julio  de 2020",3000000,3000000,3293,4275,"SANDRA SANMARTIN","SUBGERENTE ADMINISTRATIVO","2020-07-17","https://www.contratos.gov.co/consultas/detalleProceso.do?numConstancia=20-4-10933084"]
[24,55239101,"NATALI ANDREA NIEBLES JURADO","2692-2020","AUDITOR DE CALIDAD (LIDER DE UNIDAD)","01 deJulio de 2020"," 31 de  Julio  de 2020",5800000,5800000,3294,4276,"BETTY PERTUZ ","SUBGERENTE CIENTIFICO","2020-07-17","https://www.contratos.gov.co/consultas/detalleProceso.do?numConstancia=20-4-10933099"]
[25,1010179685,"NAYIVI OSPINA ARROYAVE","2693-2020","PROFESIONAL  SISTEMA DE GESTION Y SEGURIDAD EN EL TRABAJO","01 deJulio de 2020"," 31 de  Julio  de 2020",3500000,3500000,3295,4277,"FABIAN  COLPAS OROZCO ","JEFE  TALENTO  HUMANO","2020-07-17","https://www.contratos.gov.co/consultas/detalleProceso.do?numConstancia=20-4-10933110"]
[26,8603175,"NILSON ORTEGA JIMENEZ","2694-2020","AUXILIAR ADMINISTRATIVO  TALENTO HUMANO","01 deJulio de 2020"," 31 de  Julio  de 2020",2000000,2000000,3296,4278,"FABIAN  COLPAS OROZCO ","JEFE  TALENTO  HUMANO","2020-07-17","https://www.contratos.gov.co/consultas/detalleProceso.do?numConstancia=20-4-10933118"]
[27,1047340446,"OSCAR MAURICIO MARENCO ROMERO","2695-2020","ASISTENTE ADMINISTRATIVO ","01 deJulio de 2020"," 31 de  Julio  de 2020",1800000,1800000,3297,4279,"BETTY PERTUZ ","SUBGERENTE CIENTIFICO","2020-07-17","https://www.contratos.gov.co/consultas/detalleProceso.do?numConstancia=20-4-10933127"]
[28,22446590,"ROSALBA CERPA MIRANDA ","2696-2020","AUXILIAR ADMINISTRATIVO -  SUBGERENCIA CIENTIFICA","01 deJulio de 2020"," 31 de  Julio  de 2020",1900000,1900000,3298,4280,"BETTY PERTUZ ","SUBGERENTE CIENTIFICO","2020-07-17","https://www.contratos.gov.co/consultas/detalleProceso.do?numConstancia=20-4-10933135"]
[29,1140818354,"SAEN DAVID TAJAN NIEBLES","2697-2020","AUXILIAR ADMINISTRATIVO DE SISTEMAS DE INFORMACION EN PROMOCION Y PREVENCION","01 deJulio de 2020"," 31 de  Julio  de 2020",2000000,2000000,3299,4281,"NILSA ARIZA MARQUEZ","COORDINADOR PYP","2020-07-17","https://www.contratos.gov.co/consultas/detalleProceso.do?numConstancia=20-4-10933141"]
[30,57105527,"ZOILA PATRICIA PABON HERNANDEZ","2698-2020","ASISTENTE COORDINACIÓN MÉDICA","01 deJulio de 2020"," 31 de  Julio  de 2020",3000000,3000000,3300,4282,"BETTY PERTUZ ","SUBGERENTE CIENTIFICO","2020-07-17","https://www.contratos.gov.co/consultas/detalleProceso.do?numConstancia=20-4-10933151"]
[31,32825462,"ANAIS DE JESUS RODRIGUEZ DE  LAS AGUAS","2699-2020","PERSONAL  LIMPIEZA Y ASEO","01 deJulio de 2020"," 31 de  Julio  de 2020",1215000,1215000,3301,4283,"JAIME ALVAREZ NORIEGA","INGENIERO AMBIENTAL ","2020-07-17","https://www.contratos.gov.co/consultas/detalleProceso.do?numConstancia=20-4-10933162"]
[32,1041898122,"MELIZA MORALES PALLARES","2700-2020","ASISTETE ADMINISTRATIVO ","01 deJulio de 2020"," 31 de  Julio  de 2020",2000000,2000000,3302,4284,"SANDRA SANMARTIN","SUBGERENTE ADMINISTRATIVO","2020-07-17","https://www.contratos.gov.co/consultas/detalleProceso.do?numConstancia=20-4-10933170"]
[33,1042439853,"KERVY DIYAN JINETTE BARRIOS","2701-2020","AUXILIAR ADMINISTRATIVO  RESOLUCIÓN 2463","01 deJulio de 2020"," 31 de  Julio  de 2020",1900000,1900000,3303,4285,"BETTY PERTUZ ","SUBGERENTE CIENTIFICO","2020-07-17","https://www.contratos.gov.co/consultas/detalleProceso.do?numConstancia=20-4-10933176"]
[34,1045732710,"VICTOR JOSE AGUILAR CRUZADO","2702-2020","AUXILIAR ADMINISTRATIVO- CONTRATACION  BIENES Y SERVICIOS","01 deJulio de 2020"," 31 de  Julio  de 2020",4000000,4000000,3304,4286,"ORNELLA FIORENTINO","JEFE JURIDICA","2020-07-17","https://www.contratos.gov.co/consultas/detalleProceso.do?numConstancia=20-4-10933182"]
[35,8776312,"JORGE RIVERA MEZA","2703-2020","AUXILIAR RECURSOS FISICOS","01 deJulio de 2020"," 31 de  Julio  de 2020",1900000,1900000,3305,4287,"SANDRA SANMARTIN","SUBGERENTE ADMINISTRATIVO","2020-07-17","https://www.contratos.gov.co/consultas/detalleProceso.do?numConstancia=20-4-10933189"]
[36,1042971531,"JULIETH PAOLA FIGUEROA ZAMBRANO","2704-2020","AUXILIAR ADMINISTRATIVO CONTABLE","01 deJulio de 2020"," 31 de  Julio  de 2020",2500000,2500000,3306,4288,"JORGE OLMOS NAVARRO","DIRECTOR FINANCIERO","2020-07-17","https://www.contratos.gov.co/consultas/detalleProceso.do?numConstancia=20-4-10933197"]
[37,1042447104,"IVOR ANDRES SANJUAN PEREZ","2705-2020","AUXILIAR  RECURSOS FISICOS ","01 deJulio de 2020"," 31 de  Julio  de 2020",1900000,1900000,3307,4289,"SANDRA SANMARTIN","SUBGERENTE ADMINISTRATIVO","2020-07-17","https://www.contratos.gov.co/consultas/detalleProceso.do?numConstancia=20-4-10933213"]
[38,32607428,"TEMILDA MARIA PERTUZ PEREZ","2706-2020","AUDITOR DE CALIDAD Y SERVICIOS DE SALUD","01 deJulio de 2020"," 31 de  Julio  de 2020",3180000,3180000,3308,4290,"BETTY PERTUZ ","SUBGERENTE CIENTIFICO","2020-07-17","https://www.contratos.gov.co/consultas/detalleProceso.do?numConstancia=20-4-10933223"]
[39,1045721126,"MARYURIS JOANNA GALVAN NAVARRO","2707-2020","LIDER  LABORATORIO","01 deJulio de 2020"," 31 de  Julio  de 2020",5000000,5000000,3309,4291,"BETTY PERTUZ ","SUBGERENTE CIENTIFICO","2020-07-17","https://www.contratos.gov.co/consultas/detalleProceso.do?numConstancia=20-4-10933231"]
[40,1140847982,"LEIDY DANIELA WILSON PEZZOTI","2708-2020"," AUXILIAR ADMINISTRATIVO VENTANILLA UNICA ","01 deJulio de 2020"," 31 de  Julio  de 2020",1900000,1900000,3310,4292,"SANDRA SANMARTIN","SUBGERENTE ADMINISTRATIVO","2020-07-17","https://www.contratos.gov.co/consultas/detalleProceso.do?numConstancia=20-4-10933236"]
[41,22804794,"KATHERINE GUERRERO SEPULVEDA","2709-2020","ABOGADO EXTERNO","01 deJulio de 2020"," 31 de  Julio  de 2020",5800000,5800000,3311,4293,"ORNELLA FIORENTINO","JEFE JURIDICA","2020-07-17","https://www.contratos.gov.co/consultas/detalleProceso.do?numConstancia=20-4-10933239"]
[42,22504159,"FLOR MILENA GOICOCHEA OROZCO ","2710-2020","AUXILIAR  FACTURACION CENTRAL","01 deJulio de 2020"," 31 de  Julio  de 2020",2000000,2000000,3312,4294,"SANDRA SANMARTIN","SUBGERENTE ADMINISTRATIVO","2020-07-17","https://www.contratos.gov.co/consultas/detalleProceso.do?numConstancia=20-4-10933248"]
[43,72250386,"RONALD EMIL PADILLA ACUÑA","2711-2020","ABOGADO ","01 deJulio de 2020"," 31 de  Julio  de 2020",5000000,5000000,3313,4295,"ORNELLA FIORENTINO","JEFE JURIDICA","2020-07-17","https://www.contratos.gov.co/consultas/detalleProceso.do?numConstancia=20-4-10933255"]
[44,32848040,"LEDIS MARIA MOLINA OQUENDO ","2712-2020","ABOGADO  CONTRATACION ","01 deJulio de 2020"," 31 de  Julio  de 2020",5000000,5000000,3314,4296,"ORNELLA FIORENTINO","JEFE JURIDICA","2020-07-17","https://www.contratos.gov.co/consultas/detalleProceso.do?numConstancia=20-4-10933260"]
[45,1045166274,"ALBA MARINA RODRIGUEZ YANCE","2713-2020","ASESORA SALUD PUBLICA EN LA SUBGERENCIA CIENTIFICA ","01 deJulio de 2020"," 31 de  Julio  de 2020",5800000,5800000,3315,4297,"JUAN  ESTEBAN SANCHEZ PAEZ ","GERENTE","2020-07-17","https://www.contratos.gov.co/consultas/detalleProceso.do?numConstancia=20-4-10933262"]
[46,44190767,"LUCIBELL ALVAREZ NAVARRO ","2714-2020","ASESORA SUBGERENCIA CIENTIFICA ","01 deJulio de 2020"," 31 de  Julio  de 2020",5800000,5800000,3316,4298,"JUAN  ESTEBAN SANCHEZ PAEZ ","GERENTE","2020-07-17","https://www.contratos.gov.co/consultas/detalleProceso.do?numConstancia=20-4-10933269"]
[47,5055447,"CARLOS ALBERTO CARBONELL ALVAREZ","2715-2020","AUDITOR DE CUENTAS MEDICAS ","01 deJulio de 2020"," 31 de  Julio  de 2020",5500000,5500000,3317,4299,"BETTY PERTUZ ","SUBGERENTE CIENTIFICO","2020-07-17","https://www.contratos.gov.co/consultas/detalleProceso.do?numConstancia=20-4-10933282"]
[48,1045698343,"JOSE FRANCISCO INFANZON CASTRO ","2716-2020","INGENERIO MECANICO- RECURSOS FISICOS","01 deJulio de 2020"," 31 de  Julio  de 2020",5800000,5800000,3318,4300,"SANDRA SANMARTIN","SUBGERENTE ADMINISTRATIVO","2020-07-17","https://www.contratos.gov.co/consultas/detalleProceso.do?numConstancia=20-4-10933300"]
[49,40981378,"LIDYS CASTILLO TOVAR","2717-2020","PROFESIONAL OFICINA PAGADURIA  ","01 deJulio de 2020"," 31 de  Julio  de 2020",4000000,4000000,3319,4301,"LUIS DE MOYA","TESORERO","2020-07-17","https://www.contratos.gov.co/consultas/detalleProceso.do?numConstancia=20-4-10933315"]
[50,32651445,"MARTIZA SARMIENTO  SANTOS ","2718-2020","ASESOR DE PLANEACION ESTRATÉGICA  Y SISTEMAS DE  GESTIÓN CALIDAD /AMBIENTE/SST ","01 deJulio de 2020"," 31 de  Julio  de 2020",5800000,5800000,3320,4302,"JUAN  ESTEBAN SANCHEZ PAEZ ","GERENTE","2020-07-17","https://www.contratos.gov.co/consultas/detalleProceso.do?numConstancia=20-4-10933327"]
[51,32863895,"LUZ ELENA MARRIAGA MONTERO ","2719-2020","PROFESIONAL PLANEACION ","01 deJulio de 2020"," 31 de  Julio  de 2020",4000000,4000000,3321,4303,"BETTY PERTUZ ","SUBGERENTE CIENTIFICO","2020-07-17","https://www.contratos.gov.co/consultas/detalleProceso.do?numConstancia=20-4-10933340"]
[52,72314953,"LEONEL DANIEL SILVA TAPIAS","2720-2020","REVISOR FISCAL","01 deJulio de 2020"," 31 de  Julio  de 2020",8255982,8255982,3322,4304,"JUAN  ESTEBAN SANCHEZ PAEZ ","GERENTE","2020-07-17","https://www.contratos.gov.co/consultas/detalleProceso.do?numConstancia=20-4-10933351"]
[53,73188364,"JORGE MAURICIO MONTOYA OCHOA ","2721-2020","AUXILIAR RECURSOS FISICOS","01 deJulio de 2020"," 31 de  Julio  de 2020",1900000,1900000,3323,4305,"SANDRA SANMARTIN","SUBGERENTE ADMINISTRATIVO","2020-07-17","https://www.contratos.gov.co/consultas/detalleProceso.do?numConstancia=20-4-10933358"]
[54,1042997169,"CINDY PAOLA CERA MENDOZA ","2722-2020","PROFESIONAL PRESUPUESTO","01 deJulio de 2020"," 31 de  Julio  de 2020",3000000,3000000,3324,4306,"JORGE OLMOS NAVARRO","DIRECTOR FINANCIERO","2020-07-17","https://www.contratos.gov.co/consultas/detalleProceso.do?numConstancia=20-4-10933366"]
[55,52618443,"NATALIA ALONSO CARVAJAL","2723-2020","ASESOR GERENCIA","01 deJulio de 2020"," 31 de  Julio  de 2020",5800000,5800000,3325,4307,"JUAN  ESTEBAN SANCHEZ PAEZ ","GERENTE","2020-07-17","https://www.contratos.gov.co/consultas/detalleProceso.do?numConstancia=20-4-10933371"]
[56,45757809,"MILADIS MARINA MARTINEZ MEDINA","2724-2020","LIDER SIAU","01 deJulio de 2020"," 31 de  Julio  de 2020",3000000,3000000,3326,4308,"BETTY PERTUZ ","SUBGERENTE CIENTIFICO","2020-07-17","https://www.contratos.gov.co/consultas/detalleProceso.do?numConstancia=20-4-10933374"]
[57,1140871897,"JESICA FERNANDA DE CASTRO MANTILLA","2725-2020","INGENIERA QUIMICA ","01 deJulio de 2020"," 31 de  Julio  de 2020",4000000,4000000,3327,4309,"BETTY PERTUZ ","SUBGERENTE CIENTIFICO","2020-07-17","https://www.contratos.gov.co/consultas/detalleProceso.do?numConstancia=20-4-10933382"]
[58,1042421404,"MARIAM DEL CARMEN CANTILLO MONTERO","2726-2020","AUDITOR DE CALIDAD Y SERVICIOS DE SALUD","01 deJulio de 2020"," 31 de  Julio  de 2020",4000000,4000000,3328,4310,"BETTY PERTUZ ","SUBGERENTE CIENTIFICO","2020-07-17","https://www.contratos.gov.co/consultas/detalleProceso.do?numConstancia=20-4-10933388"]
[59,32852247,"NORELLYS PAOLA MACHACON PRIETO","2727-2020","APOYO  SISTEMA DE  GESTION","01 deJulio de 2020"," 31 de  Julio  de 2020",4000000,4000000,3329,4311,"BETTY PERTUZ ","SUBGERENTE CIENTIFICO","2020-07-17","https://www.contratos.gov.co/consultas/detalleProceso.do?numConstancia=20-4-10933394"]
[60,8745568,"LUIS ENRIQUE PEREA VASQUEZ ","2728-2020","AUDITOR DE CUENTAS MEDICAS","01 deJulio de 2020"," 31 de  Julio  de 2020",4500000,4500000,3330,4312,"BETTY PERTUZ ","SUBGERENTE CIENTIFICO","2020-07-17","https://www.contratos.gov.co/consultas/detalleProceso.do?numConstancia=20-4-10933404"]
[61,72228319,"BLADIMIR ALEXANDER  SARMIENTO QUIÑONES","2729-2020","TECNICO EN SISTEMAS Y ELECTRONICO ","01 deJulio de 2020"," 31 de  Julio  de 2020",1900000,1900000,3331,4313,"ZULLY ROMERO","COORDINADOR TIC","2020-07-17","https://www.contratos.gov.co/consultas/detalleProceso.do?numConstancia=20-4-10933412"]
[62,1042424161,"YENSY ANGELINA ESCALANTE FERRER","2730-2020","AUXILIAR ADMINISTRATIVO CONTABLE","01 deJulio de 2020"," 31 de  Julio  de 2020",2000000,2000000,3332,4314,"JORGE OLMOS NAVARRO","DIRECTOR FINANCIERO","2020-07-17","https://www.contratos.gov.co/consultas/detalleProceso.do?numConstancia=20-4-10933424"]
[63,72432594,"RUBEN DARIO UCROS ","2731-2020","AUXILIAR FACTURACION ","01 deJulio de 2020"," 31 de  Julio  de 2020",2100000,2100000,3333,4315,"SANDRA SANMARTIN","SUBGERENTE ADMINISTRATIVO","2020-07-17","https://www.contratos.gov.co/consultas/detalleProceso.do?numConstancia=20-4-10933433"]
[64,22642515,"NOHEMI ESPERANZA CASTRO LOPEZ","2732-2020","AUDITOR DE CALIDAD Y SERVICIOS DE SALUD","01 deJulio de 2020"," 31 de  Julio  de 2020",4000000,4000000,3334,4316,"BETTY PERTUZ ","SUBGERENTE CIENTIFICO","2020-07-17","https://www.contratos.gov.co/consultas/detalleProceso.do?numConstancia=20-4-10933442"]
[65,1045670289,"HOLMAN ALEXANDER AVILA FERNANDEZ","2733-2020","AUXILIAR  FACTURACION CENTRAL","01 deJulio de 2020"," 31 de  Julio  de 2020",3000000,{"$f":"+H67*1","v":3000000},3335,4317,"SANDRA SANMARTIN","SUBGERENTE ADMINISTRATIVO","2020-07-17","https://www.contratos.gov.co/consultas/detalleProceso.do?numConstancia=20-4-10933453"]
[{"$f":"+A67+1","v":66},8639410,"CESAR OCTAVIO VARGAS DURAN ","2734-2020","TECNICO AMBIENTAL ","01 deJulio de 2020"," 31 de  Julio  de 2020",2500000,2500000,3336,4318,"JAIME ALVAREZ NORIEGA","INGENIERO AMBIENTAL ","2020-07-17","https://www.contratos.gov.co/consultas/detalleProceso.do?numConstancia=20-4-10933463"]
[67,1047334999,"MARTHA INES SALCEDO HUN","2735-2020","ASESORA GESTION AMBIENTAL ","01 deJulio de 2020"," 31 de  Julio  de 2020",5800000,5800000,3337,4319,"JUAN  ESTEBAN SANCHEZ PAEZ ","GERENTE","2020-07-17","https://www.contratos.gov.co/consultas/detalleProceso.do?numConstancia=20-4-10933470"]
[68,1124026102,"LUISA FERNANDA PANA CARABALLO","2736-2020","LIDER PROCESOS FACTURACION CENTRAL","01 deJulio de 2020"," 31 de  Julio  de 2020",2500000,2500000,3338,4320,"SANDRA SANMARTIN","SUBGERENTE ADMINISTRATIVO","2020-07-17","https://www.contratos.gov.co/consultas/detalleProceso.do?numConstancia=20-4-10933477"]
[69,1045676054,"JHONNY ALVAREZ TORRENCILLA","2737-2020","INGENIERO  DE SISTEMAS - PROCESOS DE  SISTEMA DE INFORMACION EN  FACTURACION CENTRAL ","01 deJulio de 2020"," 31 de  Julio  de 2020",4000000,4000000,3339,4321,"SANDRA SANMARTIN","SUBGERENTE ADMINISTRATIVO","2020-07-17","https://www.contratos.gov.co/consultas/detalleProceso.do?numConstancia=20-4-10933489"]
[70,44156926,"GLADYS CECILIA ESCALANTE FERRER","2738-2020","AUDITOR DE CALIDAD Y SERVICIOS DE SALUD","01 deJulio de 2020"," 31 de  Julio  de 2020",4000000,4000000,3340,4322,"BETTY PERTUZ ","SUBGERENTE CIENTIFICO","2020-07-17","https://www.contratos.gov.co/consultas/detalleProceso.do?numConstancia=20-4-10933500"]
[71,22741244,"ARLETH PATRICIA CARRILLO GARVIN","2739-2020","ENFERMERA JEFE DE PROMOCIÓN Y MANTENIMIENTO DE LA SALUD","01 deJulio de 2020"," 31 de  Julio  de 2020",2300000,2300000,3341,4323,"NILSA ARIZA MARQUEZ","COORDINADOR PYP","2020-07-17","https://www.contratos.gov.co/consultas/detalleProceso.do?numConstancia=20-4-10933510"]
[72,1140847587,"MAGANY JUDITH JARAMILLO MOLINA","2740-2020","INGENIERO DE SISTEMAS","01 deJulio de 2020"," 31 de  Julio  de 2020",3000000,3000000,3342,4324,"ZULLY ROMERO","COORDINADOR TIC","2020-07-17","https://www.contratos.gov.co/consultas/detalleProceso.do?numConstancia=20-4-10933517"]
[73,1042451204,"LEIDIS ESTHER MIRANDA MARCHENA","2741-2020","PROFESIONAL CONTADURIA","01 deJulio de 2020"," 31 de  Julio  de 2020",3000000,3000000,3343,4325,"JORGE OLMOS NAVARRO","DIRECTOR FINANCIERO","2020-07-17","https://www.contratos.gov.co/consultas/detalleProceso.do?numConstancia=20-4-10933527"]
[74,55225494,"ULDYS ESTHER PONZON PORTO","2742-2020","LIDER SERVICIOS MEDICOS","01 deJulio de 2020"," 31 de  Julio  de 2020",3700000,3700000,3344,4326,"BETTY PERTUZ ","SUBGERENTE CIENTIFICO","2020-07-17","https://www.contratos.gov.co/consultas/detalleProceso.do?numConstancia=20-4-10933536"]
[75,1043023724,"JAILINE  SOLANO MERCADO ","2743-2020","ASESOR FINANCIERO ","01 deJulio de 2020"," 31 de  Julio  de 2020",5800000,5800000,3345,4327,"JUAN  ESTEBAN SANCHEZ PAEZ ","GERENTE","2020-07-17","https://www.contratos.gov.co/consultas/detalleProceso.do?numConstancia=20-4-10933544"]
[76,1143465478,"YULEIMY LISETH YANCE CAMARGO","2744-2020","AUXILIAR ADMINISTRATIVO  OFICINA JURIDICA","01 deJulio de 2020"," 31 de  Julio  de 2020",2200000,2200000,3346,4328,"ORNELLA FIORENTINO","JEFE JURIDICA","2020-07-17","https://www.contratos.gov.co/consultas/detalleProceso.do?numConstancia=20-4-10933550"]
[77,1041899345,"YESMITH ADRIANA VIZCAINO CARRILLO","2745-2020","ASISTENTE ADMINISTRATIVO","01 deJulio de 2020"," 31 de  Julio  de 2020",1900000,1900000,3347,4329,"FABIAN  COLPAS OROZCO ","JEFE  TALENTO  HUMANO","2020-07-17","https://www.contratos.gov.co/consultas/detalleProceso.do?numConstancia=20-4-10933558"]
[78,85468633,"GREGORIO  RUIZ  PACHECO","2746-2020","ABOGADO  EXTERNO  TALENTO  HUMANO ","01 deJulio de 2020"," 31 de  Julio  de 2020",4000000,4000000,3348,4330,"FABIAN  COLPAS OROZCO ","JEFE  TALENTO  HUMANO","2020-07-17","https://www.contratos.gov.co/consultas/detalleProceso.do?numConstancia=20-4-10933575"]
[79,32829531,"MILENA DONADO OCHOA","2747-2020","APOYO  COORDINACION  ODONTOLOGIA ","01 deJulio de 2020"," 31 de  Julio  de 2020",4000000,4000000,3349,4331,"BETTY PERTUZ ","SUBGERENTE CIENTIFICO","2020-07-17","https://www.contratos.gov.co/consultas/detalleProceso.do?numConstancia=20-4-10933579"]
[80,57270649,"MARTHA MATILDE JIMENEZ ROMERO","2748-2020","AUDITOR DE CALIDAD Y SERVICIOS DE SALUD","01 deJulio de 2020"," 31 de  Julio  de 2020",4000000,4000000,3350,4332,"BETTY PERTUZ ","SUBGERENTE CIENTIFICO","2020-07-17","https://www.contratos.gov.co/consultas/detalleProceso.do?numConstancia=20-4-10933585"]
[81,72095954,"JUAN  CARLOS  BARROS CARO ","2749-2020","ASESOR GERENCIA","01 deJulio de 2020"," 31 de  Julio  de 2020",4500000,4500000,3351,4333,"JUAN  ESTEBAN SANCHEZ PAEZ ","GERENTE","2020-07-17","https://www.contratos.gov.co/consultas/detalleProceso.do?numConstancia=20-4-10933593"]
[82,19619279,"GUSTAVO SEGUNDO FLORIDO HATUN ","2750-2020","AUDITOR DE CALIDAD Y SERVICIOS DE SALUD","01 deJulio de 2020"," 31 de  Julio  de 2020",5000000,5000000,3352,4334,"BETTY PERTUZ ","SUBGERENTE CIENTIFICO","2020-07-17","https://www.contratos.gov.co/consultas/detalleProceso.do?numConstancia=20-4-10933596"]
[83,27895505,"SANDRA GARCIA PEÑA","2751-2020","GESTION DOCUMENTAL JURIDICA","01 deJulio de 2020"," 31 de  Julio  de 2020",1500000,1500000,3353,4335,"ORNELLA FIORENTINO","JEFE JURIDICA","2020-07-17","https://www.contratos.gov.co/consultas/detalleProceso.do?numConstancia=20-4-10933602"]
[84,22644596,"GRACIELA BUSTOS RIVEROS","2752-2020","AUXILIAR ADMINISTRATIVO  FACTURACIÒN","01 deJulio de 2020"," 31 de  Julio  de 2020",2000000,2000000,3354,4336,"SANDRA SANMARTIN","SUBGERENTE ADMINISTRATIVO","2020-07-17","https://www.contratos.gov.co/consultas/detalleProceso.do?numConstancia=20-4-10933607"]
[85,1042471178,"KAREM OLIANNA MONTOYA GIL ","2753-2020","AUXILIAR ADMINISTRATIVO ","01 deJulio de 2020"," 31 de  Julio  de 2020",1700000,1700000,3355,4337,"SANDRA SANMARTIN","SUBGERENTE ADMINISTRATIVO","2020-07-17","https://www.contratos.gov.co/consultas/detalleProceso.do?numConstancia=20-4-10933616"]
[86,1002067698,"RUTH MARINA DIAZ MAYORCA","2754-2020","AUXILIAR FACTURACION  CENTRAL ","01 deJulio de 2020"," 31 de  Julio  de 2020",2500000,2500000,3356,4338,"SANDRA SANMARTIN","SUBGERENTE ADMINISTRATIVO","2020-07-17","https://www.contratos.gov.co/consultas/detalleProceso.do?numConstancia=20-4-10933619"]
[87,1042351489,"YISLEY ZARETH BADILLO SARMIENTO","2755-2020","ENFERMERA JEFE","01 deJulio de 2020"," 31 de  Julio  de 2020",2300000,2300000,3357,4339,"BETTY PERTUZ ","SUBGERENTE CIENTIFICO","2020-07-17","https://www.contratos.gov.co/consultas/detalleProceso.do?numConstancia=20-4-10933629"]
[88,1048217027,"ONEIDA SAMIRA MARQUEZ NARVAEZ","2756-2020","PROFESIONAL - POLITOLOGA","01 deJulio de 2020"," 31 de  Julio  de 2020",4000000,4000000,3358,4340,"GENARO   GUTIERREZ DE PIÑERES","JEFE DE  ESTADISTICA","2020-07-17","https://www.contratos.gov.co/consultas/detalleProceso.do?numConstancia=20-4-10933635"]
[89,22665320,"CLAUDIA DE LA CRUZ LEYVA","2757-2020","AUDITOR DE CALIDAD Y SERVICIOS DE SALUD","01 deJulio de 2020"," 31 de  Julio  de 2020",5800000,5800000,3359,4341,"JUAN  ESTEBAN SANCHEZ PAEZ ","GERENTE","2020-07-17","https://www.contratos.gov.co/consultas/detalleProceso.do?numConstancia=20-4-10933651"]
[90,72151642,"RUBEN DARIO LOZADA BARROS","2758-2020","CONTADOR ","01 deJulio de 2020"," 31 de  Julio  de 2020",4000000,4000000,3360,4342,"LUIS DE MOYA","TESORERO","2020-07-17","https://www.contratos.gov.co/consultas/detalleProceso.do?numConstancia=20-4-10933656"]
[91,72236961,"EDWARD ENRIQUE SANCHEZ URZOLA ","2759-2020","MENSAJERO ","01 deJulio de 2020"," 31 de  Julio  de 2020",1700000,1700000,3361,4343,"SANDRA SANMARTIN","SUBGERENTE ADMINISTRATIVO","2020-07-17","https://www.contratos.gov.co/consultas/detalleProceso.do?numConstancia=20-4-10933666"]
[92,77030162,"YECITH  MARTINEZ QUINTERO ","2760-2020","ASISTETE ADMINISTRATIVO ","01 deJulio de 2020"," 31 de  Julio  de 2020",1800000,1800000,3362,4344,"SANDRA SANMARTIN","SUBGERENTE ADMINISTRATIVO","2020-07-17","https://www.contratos.gov.co/consultas/detalleProceso.do?numConstancia=20-4-10933672"]
[93,1129571476,"ILIANA MATOS RAMOS ","2761-2020","ABOGADO","01 deJulio de 2020"," 31 de  Julio  de 2020",4000000,4000000,3363,4345,"ORNELLA FIORENTINO","JEFE JURIDICA","2020-07-17","https://www.contratos.gov.co/consultas/detalleProceso.do?numConstancia=20-4-10933680"]
[94,32869223,"LUCILA ISABEL FONTALVO HERRERA","2762-2020","AUXILIAR  ADMINISTRATIVO ","01 deJulio de 2020"," 31 de  Julio  de 2020",2200000,2200000,3364,4346,"FABIAN  COLPAS OROZCO ","JEFE TALENTO HUMANO ","2020-07-17","https://www.contratos.gov.co/consultas/detalleProceso.do?numConstancia=20-4-10933685"]
[95,72220231,"SERGIO  IVAN KUNCEL MAURY","2763-2020","ASESOR GERENCIA","01 deJulio de 2020"," 31 de  Julio  de 2020",5000000,5000000,3365,4347,"JUAN  ESTEBAN SANCHEZ PAEZ ","GERENTE","2020-07-17","https://www.contratos.gov.co/consultas/detalleProceso.do?numConstancia=20-4-10933687"]
[96,55238408,"MILAGROS YANETH SIMANCA RODRIGUEZ ","2764-2020","PROFESIONAL CONTABLE ","01 deJulio de 2020"," 31 de  Julio  de 2020",2800000,2800000,3366,4348,"JORGE OLMOS NAVARRO","DIRECTOR FINANCIERO","2020-07-17","https://www.contratos.gov.co/consultas/detalleProceso.do?numConstancia=20-4-10933692"]
[97,84453299,"LUIS  FERNANDO CUELLAR CANTILLO","2765-2020","ASESOR FINANCIERO ","01 deJulio de 2020"," 31 de  Julio  de 2020",3000000,3000000,3367,4349,"JORGE OLMOS NAVARRO","DIRECTOR FINANCIERO","2020-07-17","https://www.contratos.gov.co/consultas/detalleProceso.do?numConstancia=20-4-10933698"]
[98,8680252,"ALVARO SAMUEL PULGAR LEMUS","2766-2020","ORIENTADOR","01 deJulio de 2020"," 31 de  Julio  de 2020",2000000,2000000,3368,4350,"FABIAN  COLPAS OROZCO ","JEFE  TALENTO  HUMANO","2020-07-17","https://www.contratos.gov.co/consultas/detalleProceso.do?numConstancia=20-4-10933708"]
[99,72293492,"RODOLFO ENRIQUE NARVAEZ  GUTIERREZ ","2768-2020","PROFESIONAL ESTADISTICA","01 deJulio de 2020"," 31 de  Julio  de 2020",3500000,3500000,3370,4352,"GENARO   GUTIERREZ DE PIÑERES","JEFE DE  ESTADISTICA","2020-07-17","https://www.contratos.gov.co/consultas/detalleProceso.do?numConstancia=20-4-10933721"]
[100,1007071572,"EVELYN JOHANNA GARCIA PEREZ ","2769-2020","AUXILIAR ADMINISTRATIVO -VENTANILLA UNICA","01 deJulio de 2020"," 31 de  Julio  de 2020",2500000,2500000,3371,4353,"SANDRA SANMARTIN","SUBGERENTE ADMINISTRATIVO","2020-07-20","https://www.contratos.gov.co/consultas/detalleProceso.do?numConstancia=20-4-10933729"]
[101,22732194,"MARLEY VASQUEZ VARGAS","2770-2020","LIDER DE  FACTURACION  EN CENTROS DE SALUD","01 deJulio de 2020"," 31 de  Julio  de 2020",1700000,1700000,3372,4354,"SANDRA SANMARTIN","SUBGERENTE ADMINISTRATIVO","2020-07-17","https://www.contratos.gov.co/consultas/detalleProceso.do?numConstancia=20-4-10933738"]
[102,32767778,"BEATRIZ ELENA GUTIERREZ AHUMADA","2771-2020","DIGITADOR PAI WEB ","01 deJulio de 2020"," 31 de  Julio  de 2020",1458000,1458000,3373,4355,"YURANIS BONIFAS","COORDINADOR PAIWEB ","2020-07-17","https://www.contratos.gov.co/consultas/detalleProceso.do?numConstancia=20-4-10933746"]
[103,1143439595,"DAYANA PAOLA OTALORA AMAYA","2772-2020","DIGITADOR PAI WEB ","01 deJulio de 2020"," 31 de  Julio  de 2020",1458000,1458000,3374,4356,"YURANIS BONIFAS","COORDINADOR PAIWEB ","2020-07-17","https://www.contratos.gov.co/consultas/detalleProceso.do?numConstancia=20-4-10933752"]
[104,72170268,"FABIAN FERNANDO MERCADO","2773-2020","DIGITADOR PAI WEB ","01 deJulio de 2020"," 31 de  Julio  de 2020",1458000,1458000,3375,4357,"YURANIS BONIFAS","COORDINADOR PAIWEB ","2020-07-17","https://www.contratos.gov.co/consultas/detalleProceso.do?numConstancia=20-4-10933760"]
[105,1010123461,"IVAN RAMIRO MORENO MENDOZA","2774-2020","DIGITADOR PAI WEB ","01 deJulio de 2020"," 31 de  Julio  de 2020",1458000,1458000,3376,4358,"YURANIS BONIFAS","COORDINADOR PAIWEB ","2020-07-17","https://www.contratos.gov.co/consultas/detalleProceso.do?numConstancia=20-4-10933823"]
[106,73140179,"JULIO CESAR LOPEZ ROMERO","2775-2020","DIGITADOR PAI WEB ","01 deJulio de 2020"," 31 de  Julio  de 2020",1458000,1458000,3377,4359,"YURANIS BONIFAS","COORDINADOR PAIWEB ","2020-07-18","https://www.contratos.gov.co/consultas/detalleProceso.do?numConstancia=20-4-10936727"]
[107,22468261,"KANYA MALLERLY BERNAL BECERRA ","2776-2020","DIGITADOR PAI WEB ","01 deJulio de 2020"," 31 de  Julio  de 2020",2200000,2200000,3378,4360,"YURANIS BONIFAS","COORDINADOR PAIWEB ","2020-07-18","https://www.contratos.gov.co/consultas/detalleProceso.do?numConstancia=20-4-10936732"]
[108,1001798861,"MARTHA LAURA VIZCAINO PEREZ","2777-2020","DIGITADOR PAI WEB ","01 deJulio de 2020"," 31 de  Julio  de 2020",1458000,1458000,3379,4361,"YURANIS BONIFAS","COORDINADOR PAIWEB ","2020-07-18","https://www.contratos.gov.co/consultas/detalleProceso.do?numConstancia=20-4-10936733"]
[109,1042439971,"ROGER RAFAEL RAMBAO NIEBLES","2778-2020","DIGITADOR PAI WEB ","01 deJulio de 2020"," 31 de  Julio  de 2020",1458000,1458000,3380,4362,"YURANIS BONIFAS","COORDINADOR PAIWEB ","2020-07-18","https://www.contratos.gov.co/consultas/detalleProceso.do?numConstancia=20-4-10936735"]
[110,1143132965,"YERLIS PAOLA GAMARRA BORJA","2779-2020","DIGITADOR PAI WEB ","01 deJulio de 2020"," 31 de  Julio  de 2020",1800000,1800000,3381,4363,"YURANIS BONIFAS","COORDINADOR PAIWEB ","2020-07-18","https://www.contratos.gov.co/consultas/detalleProceso.do?numConstancia=20-4-10936741"]
[111,8566775,"ALEJANDRO LIBARDO ALEMAN MARQUEZ","2780-2020","AUXILIAR DE ARCHIVO ","01 deJulio de 2020"," 31 de  Julio  de 2020",1500000,1500000,3382,4364,"SANDRA SANMARTIN","SUBGERENTE ADMINISTRATIVO","2020-07-18","https://www.contratos.gov.co/consultas/detalleProceso.do?numConstancia=20-4-10936742"]
[112,15666678,"ALFREDO ANTONIO RAMIREZ PEREIRA","2781-2020","LIDER ARCHIVO  CENTRAL","01 deJulio de 2020"," 31 de  Julio  de 2020",3000000,3000000,3383,4365,"SANDRA SANMARTIN","SUBGERENTE ADMINISTRATIVO","2020-07-18","https://www.contratos.gov.co/consultas/detalleProceso.do?numConstancia=20-4-10936744"]
[113,32813366,"ANA GONZALEZ ZAMBRANO","2782-2020","AUXILIAR DE ARCHIVO ","01 deJulio de 2020"," 31 de  Julio  de 2020",1500000,1500000,3384,4366,"SANDRA SANMARTIN","SUBGERENTE ADMINISTRATIVO","2020-07-18","https://www.contratos.gov.co/consultas/detalleProceso.do?numConstancia=20-4-10936745"]
[114,32772038,"ELIANA BEATRIZ ABRIL DE LA ROSA ","2783-2020"," GESTION DOCUMENTAL TALENTO HUMANO","01 deJulio de 2020","31 de  Julio de 2020",1900000,1900000,3385,4367,"FABIAN  COLPAS OROZCO ","JEFE  TALENTO  HUMANO","2020-07-18","https://www.contratos.gov.co/consultas/detalleProceso.do?numConstancia=20-4-10936746"]
[115,1007045398,"ELIEZER VEGA ARAGON","2784-2020","AUXILIAR DE ARCHIVO ","01 deJulio de 2020"," 31 de  Julio  de 2020",1500000,1500000,3386,4368,"SANDRA SANMARTIN","SUBGERENTE ADMINISTRATIVO","2020-07-18","https://www.contratos.gov.co/consultas/detalleProceso.do?numConstancia=20-4-10936752"]
[116,1042448309,"GERALDINE ALEXANDRA MEDRANO IGLESIAS","2785-2020","AUXILIAR DE ARCHIVO ","01 deJulio de 2020"," 31 de  Julio  de 2020",1900000,1900000,3387,4369,"SANDRA SANMARTIN","SUBGERENTE ADMINISTRATIVO","2020-07-18","https://www.contratos.gov.co/consultas/detalleProceso.do?numConstancia=20-4-10936761"]
[117,1047337864,"MARTHA MARÍA ARIZA FONTALVO","2786-2020","AUXILIAR DE ARCHIVO ","01 deJulio de 2020"," 31 de  Julio  de 2020",1500000,1500000,3388,4370,"SANDRA SANMARTIN","SUBGERENTE ADMINISTRATIVO","2020-07-18","https://www.contratos.gov.co/consultas/detalleProceso.do?numConstancia=20-4-10936765"]
[118,22562553,"SILVANA BEATRIZ GONZALEZ MORENO ","2787-2020","AUXILIAR ADMINISTRATIVO  ALMACEN ","01 deJulio de 2020"," 31 de  Julio  de 2020",1900000,1900000,3389,4371,"ESTARLEN LECHUGA","JEFE DE  ALMACEN","2020-07-18","https://www.contratos.gov.co/consultas/detalleProceso.do?numConstancia=20-4-10936766"]
[119,32826802,"ROCIO ISABEL FRIAS COLPAS","2788-2020","PERSONAL  LIMPIEZA Y ASEO","01 deJulio de 2020"," 31 de  Julio  de 2020",1215000,1215000,3390,4372,"JAIME ALVAREZ NORIEGA","INGENIERO AMBIENTAL ","2020-07-18","https://www.contratos.gov.co/consultas/detalleProceso.do?numConstancia=20-4-10936768"]
[120,1043142073,"DORALIZ ECHEVERRI PEREZ","2789-2020","GESTION DOCUMENTAL TALENTO HUMANO","01 deJulio de 2020","31 de  Julio de 2020",1500000,1500000,3391,4373,"FABIAN  COLPAS OROZCO ","JEFE  TALENTO  HUMANO","2020-07-18","https://www.contratos.gov.co/consultas/detalleProceso.do?numConstancia=20-4-10936769"]
[121,32826839,"BEATRIZ ISABEL SANMARTIN ESCORCIA","2790-2020","VACUNADORA  PAI WEB","01 deJulio de 2020"," 31 de  Julio  de 2020",1400000,1400000,3392,4374,"YURANIS BONIFAS","COORDINADOR PAIWEB ","2020-07-18","https://www.contratos.gov.co/consultas/detalleProceso.do?numConstancia=20-4-10936771"]
[122,8647518,"LUIS CARLOS MERCADO MARTINEZ","2791-2020","AUXILIAR DE ARCHIVO ","01 deJulio de 2020"," 31 de  Julio  de 2020",2000000,2000000,3393,4375,"SANDRA SANMARTIN","SUBGERENTE ADMINISTRATIVO","2020-07-18","https://www.contratos.gov.co/consultas/detalleProceso.do?numConstancia=20-4-10936774"]
[123,1007124107,"JEAN CARLOS PEÑA CERVANTES","2792-2020","AUXILIAR DE ARCHIVO ","01 deJulio de 2020"," 31 de  Julio  de 2020",1900000,1900000,3394,4376,"SANDRA SANMARTIN","SUBGERENTE ADMINISTRATIVO","2020-07-18","https://www.contratos.gov.co/consultas/detalleProceso.do?numConstancia=20-4-10936775"]
[124,32818371,"IVETTE CECILIA SARMIENTO DONADO ","2793-2020","AUXILIAR DE ARCHIVO ","01 deJulio de 2020"," 31 de  Julio  de 2020",1500000,1500000,3395,4377,"SANDRA SANMARTIN","SUBGERENTE ADMINISTRATIVO","2020-07-18","https://www.contratos.gov.co/consultas/detalleProceso.do?numConstancia=20-4-10936779"]
[125,40993662,"YEIMIS ESTHER DE LAS AGUAS ARIZA","2794-2020","AUXILIAR DE ARCHIVO ","01 deJulio de 2020"," 31 de  Julio  de 2020",2000000,2000000,3396,4378,"SANDRA SANMARTIN","SUBGERENTE ADMINISTRATIVO","2020-07-18","https://www.contratos.gov.co/consultas/detalleProceso.do?numConstancia=20-4-10936782"]
[126,72098736,"EVARISTO RAFAEL BARRIOS DE LA ROSA","2795-2020","TECNICO DE  ALMACEN","01 deJulio de 2020"," 31 de  Julio  de 2020",2300000,2300000,3397,4379,"ESTARLEN LECHUGA","JEFE DE  ALMACEN","2020-07-18","https://www.contratos.gov.co/consultas/detalleProceso.do?numConstancia=20-4-10936784"]
[127,8774531,"MARIANO JOSE UCROS ROMERO ","2796-2020","AUXILIAR DE ARCHIVO ","01 deJulio de 2020"," 31 de  Julio  de 2020",1500000,1500000,3398,4380,"SANDRA SANMARTIN","SUBGERENTE ADMINISTRATIVO","2020-07-18","https://www.contratos.gov.co/consultas/detalleProceso.do?numConstancia=20-4-10936787"]
[128,1001893516,"ANDREA ALEJANDRA CERVANTES CORNIN","2797-2020","AUXILIAR DE ARCHIVO ","01 deJulio de 2020"," 31 de  Julio  de 2020",1500000,{"$f":"+H130*1","v":1500000},3399,4381,"SANDRA SANMARTIN","SUBGERENTE ADMINISTRATIVO","2020-07-18","https://www.contratos.gov.co/consultas/detalleProceso.do?numConstancia=20-4-10936790"]
[129,22664852,"VILMAIRA JUDITH BOLANO VALENCIA","2798-2020","GESTION DOCUMENTAL TALENTO HUMANO","01 deJulio de 2020"," 31 de  Julio  de 2020",1700000,1700000,3400,4382,"FABIAN  COLPAS OROZCO ","JEFE  TALENTO  HUMANO","2020-07-18","https://www.contratos.gov.co/consultas/detalleProceso.do?numConstancia=20-4-10936793"]
[{"$f":"+A131+1","v":130},32816898,"ISABEL OSORIO BARRIOS","2799-2020","VACUNADORA PAI WEB ","01 deJulio de 2020"," 31 de  Julio  de 2020",1400000,1400000,3401,4383,"YURANIS BONIFAS","COORDINADOR PAIWEB ","2020-07-18","https://www.contratos.gov.co/consultas/detalleProceso.do?numConstancia=20-4-10936796"]
[131,1001800132,"YARIMA CHARRIS BOLAÑO ","2800-2020","GESTION DOCUMENTAL TALENTO HUMANO","01 deJulio de 2020"," 31 de  Julio  de 2020",1700000,1700000,3402,4384,"FABIAN  COLPAS OROZCO ","JEFE  TALENTO  HUMANO","2020-07-18","https://www.contratos.gov.co/consultas/detalleProceso.do?numConstancia=20-4-10936797"]
[132,55221348,"MERCEDES SUSANA ESTARITA GUTIERREZ DE PIÑERES","2801-2020","AUXILIAR DE ARCHIVO ","01 deJulio de 2020"," 31 de  Julio  de 2020",2000000,2000000,3403,4385,"SANDRA SANMARTIN","SUBGERENTE ADMINISTRATIVO","2020-07-18","https://www.contratos.gov.co/consultas/detalleProceso.do?numConstancia=20-4-10936800"]
[133,1001878251,"MAYRA ALEJANDRA ESCORCIA DE LA HOZ","2802-2020","AUXILIAR DE ARCHIVO ","01 deJulio de 2020"," 31 de  Julio  de 2020",1500000,1500000,3404,4386,"SANDRA SANMARTIN","SUBGERENTE ADMINISTRATIVO","2020-07-18","https://www.contratos.gov.co/consultas/detalleProceso.do?numConstancia=20-4-10936802"]
[134,22446125,"GENOVEVA MARIA LLANES JEREZ","2803-2020","VACUNADORA PAI WEB ","01 deJulio de 2020"," 31 de  Julio  de 2020",1400000,1400000,3405,4387,"YURANIS BONIFAS","COORDINADOR PAIWEB ","2020-07-18","https://www.contratos.gov.co/consultas/detalleProceso.do?numConstancia=20-4-10936803"]
[135,72098690,"JAVIER ENRIQUE BARANDICA","2804-2020","TECNICO DE  ALMACEN","01 deJulio de 2020"," 31 de  Julio  de 2020",2300000,2300000,3406,4388,"ESTARLEN LECHUGA","JEFE DE  ALMACEN","2020-07-18","https://www.contratos.gov.co/consultas/detalleProceso.do?numConstancia=20-4-10936807"]
[136,1043002864,"JAIRO ISACC BARRIOS AVILA","2805-2020","AUXILIAR DE ARCHIVO ","01 deJulio de 2020"," 31 de  Julio  de 2020",1900000,1900000,3407,4389,"SANDRA SANMARTIN","SUBGERENTE ADMINISTRATIVO","2020-07-18","https://www.contratos.gov.co/consultas/detalleProceso.do?numConstancia=20-4-10936808"]
[137,1001881009,"ARMANDO JOSE JINETE BARRIOS","2806-2020","AUXILIAR DE ARCHIVO ","01 deJulio de 2020"," 31 de  Julio  de 2020",1500000,1500000,3408,4390,"SANDRA SANMARTIN","SUBGERENTE ADMINISTRATIVO","2020-07-18","https://www.contratos.gov.co/consultas/detalleProceso.do?numConstancia=20-4-10936812"]
[138,32788911,"PEGGY ESTHER CARRILLO MUÑOZ","2807-2020","DIGITADOR PAI WEB ","01 deJulio de 2020"," 31 de  Julio  de 2020",1458000,1458000,3409,4391,"YURANIS BONIFAS","COORDINADOR PAIWEB ","2020-07-18","https://www.contratos.gov.co/consultas/detalleProceso.do?numConstancia=20-4-10936814"]
[139,32820220,"YARLENE DEL SOCORRO DE AVILA DE ALBA","2808-2020","VACUNADORA PAI WEB ","01 deJulio de 2020"," 31 de  Julio  de 2020",1400000,1400000,3410,4392,"YURANIS BONIFAS","COORDINADOR PAIWEB ","2020-07-18","https://www.contratos.gov.co/consultas/detalleProceso.do?numConstancia=20-4-10936817"]
[140,32619158,"ISABEL HERRERA PACHECO ","2809-2020","VACUNADORA PAI WEB ","01 deJulio de 2020"," 31 de  Julio  de 2020",1400000,1400000,3411,4393,"YURANIS BONIFAS","COORDINADOR PAIWEB ","2020-07-18","https://www.contratos.gov.co/consultas/detalleProceso.do?numConstancia=20-4-10936818"]
[141,79678698,"WILSON PASTOR RUIZ ORELLANO","2810-2020","AUXILIAR DE ARCHIVO ","01 deJulio de 2020"," 31 de  Julio  de 2020",1700000,1700000,3412,4394,"SANDRA SANMARTIN","SUBGERENTE ADMINISTRATIVO","2020-07-18","https://www.contratos.gov.co/consultas/detalleProceso.do?numConstancia=20-4-10936822"]
[142,1043605412,"SANDRA MILENA REALES ARIZA ","2811-2020","AUXILIAR DE ARCHIVO ","01 deJulio de 2020"," 31 de  Julio  de 2020",1700000,1700000,3413,4395,"SANDRA SANMARTIN","SUBGERENTE ADMINISTRATIVO","2020-07-18","https://www.contratos.gov.co/consultas/detalleProceso.do?numConstancia=20-4-10936824"]
[143,1140889995,"CAROLAY JHOANA LUNA GOMEZ","2812-2020","ASISTENTE ADMINISTRATIVO COORDINACION  MEDICA ","01 deJulio de 2020"," 31 de  Julio  de 2020",1900000,1900000,3414,4396,"SERGIO BOVEA MARIN","COORD CENTRO DE SALUD","2020-07-18","https://www.contratos.gov.co/consultas/detalleProceso.do?numConstancia=20-4-10936827"]
[144,55309225,"ADRIANA BALLESTAS MARTINEZ","2813-2020","MEDICO DE URGENCIA","01 deJulio de 2020"," 31 de  Julio  de 2020",3072000,3072000,3415,4397,"SERGIO BOVEA MARIN","COORD CENTRO DE SALUD","2020-07-18","https://www.contratos.gov.co/consultas/detalleProceso.do?numConstancia=20-4-10936828"]
[145,1042428171,"ALEX ENRIQUE VILLARREAL IBAÑEZ","2814-2020","ODONTOLOGO","01 deJulio de 2020"," 31 de  Julio  de 2020",1900000,1900000,3416,4398,"SERGIO BOVEA MARIN","COORD CENTRO DE SALUD","2020-07-18","https://www.contratos.gov.co/consultas/detalleProceso.do?numConstancia=20-4-10936829"]
[146,22523223,"ALEXANDRA ESTHER MOLINA PEREZ","2815-2020","PERSONAL  LIMPIEZA Y ASEO URGENCIA","01 deJulio de 2020"," 31 de  Julio  de 2020",1653600,1653600,3417,4399,"JAIME ALVAREZ NORIEGA","INGENIERO AMBIENTAL ","2020-07-18","https://www.contratos.gov.co/consultas/detalleProceso.do?numConstancia=20-4-10936830"]
[147,72000601,"ALEXIS JAVIER SUAREZ CABALLERO","2816-2020","AUXILIAR DE FACTURACIÓN  URGENCIA","01 deJulio de 2020"," 31 de  Julio  de 2020",1680000,1680000,3418,4400,"SANDRA SANMARTIN","SUBGERENTE ADMINISTRATIVO","2020-07-18","https://www.contratos.gov.co/consultas/detalleProceso.do?numConstancia=20-4-10936831"]
[148,8697543,"ALVARO ARENAS GONZALEZ","2817-2020","MEDICO DE RUTA INTEGRAL MATERNO PERINATAL ","01 deJulio de 2020"," 31 de  Julio  de 2020",5088000,5088000,3419,4401,"SERGIO BOVEA MARIN","COORD CENTRO DE SALUD","2020-07-18","https://www.contratos.gov.co/consultas/detalleProceso.do?numConstancia=20-4-10936833"]
[149,8501206,"AUGUSTO RAFAEL VALENCIA OCAMPO","2818-2020","AUXILIAR DE FACTURACIÓN  URGENCIA","01 deJulio de 2020"," 31 de  Julio  de 2020",1680000,1680000,3420,4402,"SERGIO BOVEA MARIN","COORD CENTRO DE SALUD","2020-07-18","https://www.contratos.gov.co/consultas/detalleProceso.do?numConstancia=20-4-10936834"]
[150,1140872217,"BLEYDIS LORAINE PELAEZ LOBO","2819-2020","MEDICO DE URGENCIA","01 deJulio de 2020"," 31 de  Julio  de 2020",3072000,3072000,3421,4403,"SERGIO BOVEA MARIN","COORD CENTRO DE SALUD","2020-07-18","https://www.contratos.gov.co/consultas/detalleProceso.do?numConstancia=20-4-10936837"]
[151,44158949,"CARMEN PACHECO VARELA","2820-2020","PERSONAL  LIMPIEZA Y ASEO URGENCIA","01 deJulio de 2020"," 31 de  Julio  de 2020",1653600,1653600,3422,4404,"JAIME ALVAREZ NORIEGA","INGENIERO AMBIENTAL ","2020-07-18","https://www.contratos.gov.co/consultas/detalleProceso.do?numConstancia=20-4-10936838"]
[152,32712485,"CASILDA LARA SOLANO ","2821-2020","MEDICO DE RUTA INTEGRAL MATERNO PERINATAL ","01 deJulio de 2020"," 31 de  Julio  de 2020",2120000,2120000,3423,4405,"SERGIO BOVEA MARIN","COORD CENTRO DE SALUD","2020-07-18","https://www.contratos.gov.co/consultas/detalleProceso.do?numConstancia=20-4-10936839"]
[153,1042442558,"DANISA PAOLA BARRIOS DE ALBA","2822-2020","NUTRICIONISTA","01 deJulio de 2020"," 31 de  Julio  de 2020",2760000,2760000,3424,4406,"SERGIO BOVEA MARIN","COORD CENTRO DE SALUD","2020-07-18","https://www.contratos.gov.co/consultas/detalleProceso.do?numConstancia=20-4-10936841"]
[154,1082405551,"DESIRETH ESTRADA FERNANDEZ","2823-2020","ENFERMERA JEFE DE PROMOCIÓN Y MANTENIMIENTO DE LA SALUD","01 deJulio de 2020"," 31 de  Julio  de 2020",{"$f":"2300000","v":2300000},2300000,3425,4407,"SERGIO BOVEA MARIN","COORD CENTRO DE SALUD","2020-07-18","https://www.contratos.gov.co/consultas/detalleProceso.do?numConstancia=20-4-10936843"]
[155,32818082,"DIVINA LUZ NIETO ZAMBRANO","2824-2020","PERSONAL  LIMPIEZA Y ASEO URGENCIA","01 deJulio de 2020"," 31 de  Julio  de 2020",1653600,1653600,3426,4408,"JAIME ALVAREZ NORIEGA","INGENIERO AMBIENTAL ","2020-07-18","https://www.contratos.gov.co/consultas/detalleProceso.do?numConstancia=20-4-10936844"]
[156,8734956,"EFRAIN CANTILLO GUERRERO","2825-2020","CONDUCTOR DE AMBULANCIA","01 deJulio de 2020"," 31 de  Julio  de 2020",2160000,2160000,3427,4409,"BETTY PERTUZ ","SUBGERENTE CIENTIFICO","2020-07-18","https://www.contratos.gov.co/consultas/detalleProceso.do?numConstancia=20-4-10936846"]
[157,8750161,"EFRAIN DE LA HOZ ROCHEL","2826-2020","MEDICO DE URGENCIA","01 deJulio de 2020"," 31 de  Julio  de 2020",3072000,3072000,3428,4410,"SERGIO BOVEA MARIN","COORD CENTRO DE SALUD","2020-07-18","https://www.contratos.gov.co/consultas/detalleProceso.do?numConstancia=20-4-10936848"]
[158,1042436156,"EMELY ESCORCIA MARTINEZ","2827-2020","ENFERMERA JEFE URGENCIAS ","01 deJulio de 2020"," 31 de  Julio  de 2020",2280000,2280000,3429,4411,"SERGIO BOVEA MARIN","COORD CENTRO DE SALUD","2020-07-18","https://www.contratos.gov.co/consultas/detalleProceso.do?numConstancia=20-4-10936849"]
[159,22693401,"EMILIA ANTONIA BARCELO DE PARRA","2828-2020","PERSONAL  LIMPIEZA Y ASEO URGENCIA","01 deJulio de 2020"," 31 de  Julio  de 2020",1653600,1653600,3430,4412,"JAIME ALVAREZ NORIEGA","INGENIERO AMBIENTAL ","2020-07-18","https://www.contratos.gov.co/consultas/detalleProceso.do?numConstancia=20-4-10936851"]
[160,8718276,"ENRIQUE PACHECO PACHECO ","2829-2020","MEDICO DE URGENCIA","01 deJulio de 2020"," 31 de  Julio  de 2020",3072000,3072000,3431,4413,"SERGIO BOVEA MARIN","COORD CENTRO DE SALUD","2020-07-18","https://www.contratos.gov.co/consultas/detalleProceso.do?numConstancia=20-4-10936853"]
[161,32821813,"ESPERANZA OROZCO MORENO","2830-2020","AUXILIAR DE ENFERMERIA URGENCIAS","01 deJulio de 2020"," 31 de  Julio  de 2020",1653600,1653600,3432,4414,"SERGIO BOVEA MARIN","COORD CENTRO DE SALUD","2020-07-18","https://www.contratos.gov.co/consultas/detalleProceso.do?numConstancia=20-4-10936855"]
[162,1042448518,"GIANINA ANDREA GRAVINI DE LA HOZ","2831-2020","MEDICO DE URGENCIA","01 deJulio de 2020"," 31 de  Julio  de 2020",3072000,3072000,3433,4415,"SERGIO BOVEA MARIN","COORD CENTRO DE SALUD","2020-07-18","https://www.contratos.gov.co/consultas/detalleProceso.do?numConstancia=20-4-10936858"]
[163,49555306,"GLADYS DIAZ MARIN","2832-2020","AUXILIAR DE FACTURACION URGENCIA","01 deJulio de 2020"," 31 de  Julio  de 2020",1680000,1680000,3434,4416,"SANDRA SANMARTIN","SUBGERENTE ADMINISTRATIVO","2020-07-18","https://www.contratos.gov.co/consultas/detalleProceso.do?numConstancia=20-4-10936860"]
[164,1042440903,"HEIDY MARTINEZ GUTIERREZ","2833-2020","AUXILIAR DE FACTURACION URGENCIA","01 deJulio de 2020"," 31 de  Julio  de 2020",1680000,1680000,3435,4417,"SANDRA SANMARTIN","SUBGERENTE ADMINISTRATIVO","2020-07-18","https://www.contratos.gov.co/consultas/detalleProceso.do?numConstancia=20-4-10936861"]
[165,32861543,"INGRID NAVARRO CARRILLO","2834-2020","FISIOTERAPEUTA ","01 deJulio de 2020"," 31 de  Julio  de 2020",5800000,5800000,3436,4418,"SERGIO BOVEA MARIN","COORD CENTRO DE SALUD","2020-07-18","https://www.contratos.gov.co/consultas/detalleProceso.do?numConstancia=20-4-10936863"]
[166,32822389,"ISABEL AMÉRICA DE ALBA RODRIGUEZ","2835-2020","AUXILIAR DE FACTURACION","01 deJulio de 2020"," 31 de  Julio  de 2020",1400000,1400000,3437,4419,"SANDRA SANMARTIN","SUBGERENTE ADMINISTRATIVO","2020-07-18","https://www.contratos.gov.co/consultas/detalleProceso.do?numConstancia=20-4-10936864"]
[167,72429926,"JAIRO ESCOBAR ROMERO","2836-2020","MEDICO DE URGENCIA","01 deJulio de 2020"," 31 de  Julio  de 2020",3072000,3072000,3438,4420,"SERGIO BOVEA MARIN","COORD CENTRO DE SALUD","2020-07-18","https://www.contratos.gov.co/consultas/detalleProceso.do?numConstancia=20-4-10936865"]
[168,32869709,"JENECIS BARRERA MIRANDA","2837-2020","ENFERMERA JEFE DE RUTA INTEGRAL MATERNO PERINATAL","01 deJulio de 2020"," 31 de  Julio  de 2020",2760000,2760000,3439,4421,"SERGIO BOVEA MARIN","COORD CENTRO DE SALUD","2020-07-18","https://www.contratos.gov.co/consultas/detalleProceso.do?numConstancia=20-4-10936867"]
[169,1042444925,"JESUS MORENO DE ALBA","2838-2020","AUXILIAR DE FACTURACION URGENCIA","01 deJulio de 2020"," 31 de  Julio  de 2020",1680000,1680000,3440,4422,"SANDRA SANMARTIN","SUBGERENTE ADMINISTRATIVO","2020-07-18","https://www.contratos.gov.co/consultas/detalleProceso.do?numConstancia=20-4-10936871"]
[170,44161544,"JHOANA CATALINA SANDOVAL ESCORCIA","2839-2020","ENFERMERA JEFE URGENCIAS ","01 deJulio de 2020"," 31 de  Julio  de 2020",2280000,2280000,3441,4423,"SERGIO BOVEA MARIN","COORD CENTRO DE SALUD","2020-07-18","https://www.contratos.gov.co/consultas/detalleProceso.do?numConstancia=20-4-10936872"]
[171,32810582,"JOSEFINA CARO VITOLA","2840-2020","AUXILIAR DE ENFERMERIA URGENCIAS","01 deJulio de 2020"," 31 de  Julio  de 2020",1653600,1653600,3442,4424,"SERGIO BOVEA MARIN","COORD CENTRO DE SALUD","2020-07-18","https://www.contratos.gov.co/consultas/detalleProceso.do?numConstancia=20-4-10936874"]
[172,32771594,"JUANA DIAZ CARABALLO","2841-2020","AUXILIAR DE ENFERMERIA URGENCIAS","01 deJulio de 2020"," 31 de  Julio  de 2020",1653600,1653600,3443,4425,"SERGIO BOVEA MARIN","COORD CENTRO DE SALUD","2020-07-18","https://www.contratos.gov.co/consultas/detalleProceso.do?numConstancia=20-4-10936875"]
[173,1043841968,"KAREN DAYANA FONSECA MUÑOZ","2842-2020","MEDICO DE URGENCIA","01 deJulio de 2020"," 31 de  Julio  de 2020",3072000,3072000,3444,4426,"SERGIO BOVEA MARIN","COORD CENTRO DE SALUD","2020-07-18","https://www.contratos.gov.co/consultas/detalleProceso.do?numConstancia=20-4-10936877"]
[174,55313269,"KAREN MARTINEZ BRANGO","2843-2020","AUXILIAR DE ENFERMERIA URGENCIAS","01 deJulio de 2020"," 31 de  Julio  de 2020",1653600,1653600,3445,4427,"SERGIO BOVEA MARIN","COORD CENTRO DE SALUD","2020-07-18","https://www.contratos.gov.co/consultas/detalleProceso.do?numConstancia=20-4-10936878"]
[175,22534402,"KATERINE RUA SUAREZ","2844-2020","AUXILIAR DE FACTURACION URGENCIA","01 deJulio de 2020"," 31 de  Julio  de 2020",1680000,1680000,3446,4428,"SANDRA SANMARTIN","SUBGERENTE ADMINISTRATIVO","2020-07-18","https://www.contratos.gov.co/consultas/detalleProceso.do?numConstancia=20-4-10936879"]
[176,1045697885,"LAURA ALANDETE CASTRO","2845-2020","MEDICO DE URGENCIA","01 deJulio de 2020"," 31 de  Julio  de 2020",3072000,3072000,3447,4429,"SERGIO BOVEA MARIN","COORD CENTRO DE SALUD","2020-07-18","https://www.contratos.gov.co/consultas/detalleProceso.do?numConstancia=20-4-10936880"]
[177,1045712889,"LEYDILLY ROJANO GOMEZ","2846-2020","ENFERMERA JEFE URGENCIAS ","01 deJulio de 2020"," 31 de  Julio  de 2020",2280000,2280000,3448,4430,"SERGIO BOVEA MARIN","COORD CENTRO DE SALUD","2020-07-18","https://www.contratos.gov.co/consultas/detalleProceso.do?numConstancia=20-4-10936881"]
[178,22533893,"LILIANA VARGAS MONTERO","2847-2020","ENFERMERA JEFE DE PROMOCIÓN Y MANTENIMIENTO DE LA SALUD","01 deJulio de 2020"," 31 de  Julio  de 2020",2300000,2300000,3449,4431,"SERGIO BOVEA MARIN","COORD CENTRO DE SALUD","2020-07-18","https://www.contratos.gov.co/consultas/detalleProceso.do?numConstancia=20-4-10936886"]
[179,1042426533,"LIZ CATERINE ARROYO ROMERO","2848-2020","AUXILIAR DE FARMACIA ","01 deJulio de 2020"," 31 de  Julio  de 2020",1524000,1524000,3450,4432,"BETTY PERTUZ ","SUBGERENTE CIENTIFICO","2020-07-18","https://www.contratos.gov.co/consultas/detalleProceso.do?numConstancia=20-4-10936888"]
[180,8672260,"LUIS MIGUEL REYES LANCE","2849-2020","ORIENTADOR","01 deJulio de 2020"," 31 de  Julio  de 2020",1524000,1524000,3451,4433,"SERGIO BOVEA MARIN","COORD CENTRO DE SALUD","2020-07-18","https://www.contratos.gov.co/consultas/detalleProceso.do?numConstancia=20-4-10936890"]
[181,32825666,"LUZ STELLA RUIZ SUAREZ","2850-2020","AUXILIAR DE ENFERMERIA DE RUTA INTEGRAL MATERNO PERINATAL","01 deJulio de 2020"," 31 de  Julio  de 2020",1399200,1399200,3452,4434,"SERGIO BOVEA MARIN","COORD CENTRO DE SALUD","2020-07-18","https://www.contratos.gov.co/consultas/detalleProceso.do?numConstancia=20-4-10936893"]
[182,1140849940,"MAICOL JOSE MOLINA SOTO","2851-2020","MEDICO DE URGENCIA","01 deJulio de 2020"," 31 de  Julio  de 2020",3072000,3072000,3453,4435,"SERGIO BOVEA MARIN","COORD CENTRO DE SALUD","2020-07-18","https://www.contratos.gov.co/consultas/detalleProceso.do?numConstancia=20-4-10936895"]
[183,22644933,"MARGARITA PACHECO GUTIERREZ","2852-2020","HIGIENISTA ORAL","01 deJulio de 2020"," 31 de  Julio  de 2020",2332000,2332000,3454,4436,"SERGIO BOVEA MARIN","COORD CENTRO DE SALUD","2020-07-18","https://www.contratos.gov.co/consultas/detalleProceso.do?numConstancia=20-4-10936897"]
[184,1042450048,"MARIA ALEJANDRA DE LA HOZ TOSCANO","2853-2020","MEDICO DE URGENCIA","01 deJulio de 2020"," 31 de  Julio  de 2020",3072000,3072000,3455,4437,"SERGIO BOVEA MARIN","COORD CENTRO DE SALUD","2020-07-18","https://www.contratos.gov.co/consultas/detalleProceso.do?numConstancia=20-4-10936898"]
[185,1004093696,"MARIA ALTAMAR OROZCO","2854-2020","AUXILIAR DE ENFERMERIA URGENCIAS","01 deJulio de 2020"," 31 de  Julio  de 2020",1653600,1653600,3456,4438,"SERGIO BOVEA MARIN","COORD CENTRO DE SALUD","2020-07-18","https://www.contratos.gov.co/consultas/detalleProceso.do?numConstancia=20-4-10936899"]
[186,32789239,"MARIA DEL CARMEN GUERRERO OJEDA","2855-2020","ORIENTADOR","01 deJulio de 2020"," 31 de  Julio  de 2020",1524000,1524000,3457,4439,"SERGIO BOVEA MARIN","COORD CENTRO DE SALUD","2020-07-18","https://www.contratos.gov.co/consultas/detalleProceso.do?numConstancia=20-4-10936900"]
[187,1129572439,"SHIRLEY CONSUEGRA OLAYA","2856-2020","REFERENCIA Y CONTRAREFERENCIA","01 deJulio de 2020"," 31 de  Julio  de 2020",1524000,1524000,3458,4440,"SERGIO BOVEA MARIN","COORD CENTRO DE SALUD","2020-07-18","https://www.contratos.gov.co/consultas/detalleProceso.do?numConstancia=20-4-10936901"]
[188,32879250,"MARIA SEGURA MEJIA","2857-2020","AUXILIAR FACTURACION URGENCIA","01 deJulio de 2020"," 31 de  Julio  de 2020",1680000,1680000,3459,4441,"SANDRA SANMARTIN","SUBGERENTE ADMINISTRATIVO","2020-07-18","https://www.contratos.gov.co/consultas/detalleProceso.do?numConstancia=20-4-10936902"]
[189,72158729,"MARLON CAMILO JORDAN HERRERA","2858-2020","REFERENCIA Y CONTRAREFERENCIA","01 deJulio de 2020"," 31 de  Julio  de 2020",1776000,1776000,3460,4442,"SERGIO BOVEA MARIN","COORD CENTRO DE SALUD","2020-07-18","https://www.contratos.gov.co/consultas/detalleProceso.do?numConstancia=20-4-10936904"]
[190,22457575,"MELBA MEZA PERDOMO","2859-2020","TRABAJADORA SOCIAL ","01 deJulio de 2020"," 31 de  Julio  de 2020",2200000,2200000,3461,4443,"SERGIO BOVEA MARIN","COORD CENTRO DE SALUD","2020-07-18","https://www.contratos.gov.co/consultas/detalleProceso.do?numConstancia=20-4-10936905"]
[191,8507626,"MIGUEL ALVAREZ SALCEDO","2860-2020","CONDUCTOR DE AMBULANCIA","01 deJulio de 2020"," 31 de  Julio  de 2020",2160000,2160000,3462,4444,"BETTY PERTUZ ","SUBGERENTE CIENTIFICO","2020-07-18","https://www.contratos.gov.co/consultas/detalleProceso.do?numConstancia=20-4-10936906"]
[192,32829349,"NADIA BOVEA NIETO","2861-2020","AUXILIAR DE ENFERMERIA URGENCIAS","01 deJulio de 2020"," 31 de  Julio  de 2020",1653600,{"$f":"+H194*1","v":1653600},3463,4445,"SERGIO BOVEA MARIN","COORD CENTRO DE SALUD","2020-07-18","https://www.contratos.gov.co/consultas/detalleProceso.do?numConstancia=20-4-10936907"]
[193,55307414,"NATALY DE LAS SALAS ORTEGA","2862-2020","PSICOLOGA","01 deJulio de 2020"," 31 de  Julio  de 2020",3000000,3000000,3464,4446,"BETTY PERTUZ ","SUBGERENTE CIENTIFICO","2020-07-18","https://www.contratos.gov.co/consultas/detalleProceso.do?numConstancia=20-4-10936908"]
[{"$f":"+A195+1","v":194},32783935,"NELBY CORRALES HOYOS","2863-2020","AUXILIAR DE ENFERMERIA URGENCIAS","01 deJulio de 2020"," 31 de  Julio  de 2020",1653600,1653600,3465,4447,"SERGIO BOVEA MARIN","COORD CENTRO DE SALUD","2020-07-18","https://www.contratos.gov.co/consultas/detalleProceso.do?numConstancia=20-4-10936910"]
[195,32819548,"NELLY GALAN HEILBRON","2864-2020","AUXILIAR DE ENFERMERIA PROMOTORA EN SALUD","01 deJulio de 2020"," 31 de  Julio  de 2020",1215000,1215000,3466,4448,"SERGIO BOVEA MARIN","COORD CENTRO DE SALUD","2020-07-18","https://www.contratos.gov.co/consultas/detalleProceso.do?numConstancia=20-4-10936911"]
[196,72222215,"NILSON ALMARALES GARIZABALO","2865-2020","MEDICO  MATERNIDAD SEGURA Y URGENCIA","01 deJulio de 2020"," 31 de  Julio  de 2020",6212000,6212000,3467,4449,"SERGIO BOVEA MARIN","COORD CENTRO DE SALUD","2020-07-18","https://www.contratos.gov.co/consultas/detalleProceso.do?numConstancia=20-4-10936914"]
[197,22646712,"NINI JOHANA SOLANO MORENO","2866-2020","ENFERMERA JEFE URGENCIAS ","01 deJulio de 2020"," 31 de  Julio  de 2020",2280000,2280000,3468,4450,"SERGIO BOVEA MARIN","COORD CENTRO DE SALUD","2020-07-18","https://www.contratos.gov.co/consultas/detalleProceso.do?numConstancia=20-4-10936916"]
[198,22564359,"NINI JOHANNA QUIROZ SANTOS","2867-2020","MEDICO DE URGENCIA","01 deJulio de 2020"," 31 de  Julio  de 2020",3072000,3072000,3469,4451,"SERGIO BOVEA MARIN","COORD CENTRO DE SALUD","2020-07-18","https://www.contratos.gov.co/consultas/detalleProceso.do?numConstancia=20-4-10936917"]
[199,8737936,"NOE ANIBAL PELAEZ GONZALEZ","2868-2020","REGENTE DE FARMACIA ","01 deJulio de 2020"," 31 de  Julio  de 2020",2280000,2280000,3470,4452,"BETTY PERTUZ ","SUBGERENTE CIENTIFICO","2020-07-18","https://www.contratos.gov.co/consultas/detalleProceso.do?numConstancia=20-4-10936918"]
[200,39282489,"NORIS SOFIA BERTEL PEREZ","2869-2020","PERSONAL  LIMPIEZA Y ASEO URGENCIA","01 deJulio de 2020"," 31 de  Julio  de 2020",1653600,1653600,3471,4453,"JAIME ALVAREZ NORIEGA","INGENIERO AMBIENTAL ","2020-07-18","https://www.contratos.gov.co/consultas/detalleProceso.do?numConstancia=20-4-10936919"]
[201,8772224,"OLAINER MONTERO CASTRO ","2870-2020","LIDER DE  FACTURACION  EN CENTROS DE SALUD","01 deJulio de 2020"," 31 de  Julio  de 2020",2160000,2160000,3472,4454,"SERGIO BOVEA MARIN","COORD CENTRO DE SALUD","2020-07-18","https://www.contratos.gov.co/consultas/detalleProceso.do?numConstancia=20-4-10936920"]
[202,72144602,"RICARDO ISAAC OROZCO BARROS","2871-2020","CONDUCTOR DE AMBULANCIA","01 deJulio de 2020"," 31 de  Julio  de 2020",2160000,2160000,3473,4455,"SERGIO BOVEA MARIN","COORD CENTRO DE SALUD","2020-07-18","https://www.contratos.gov.co/consultas/detalleProceso.do?numConstancia=20-4-10936923"]
[203,22527122,"RUBY DEL CARMEN BOSSIO HERRERA","2872-2020","AUXILIAR DE ENFERMERIA URGENCIAS","01 deJulio de 2020"," 31 de  Julio  de 2020",1653600,1653600,3474,4456,"SERGIO BOVEA MARIN","COORD CENTRO DE SALUD","2020-07-18","https://www.contratos.gov.co/consultas/detalleProceso.do?numConstancia=20-4-10936925"]
[204,1042426990,"SANDRA MARCELA PEREZ BERMEJO","2873-2020","MEDICO DE URGENCIA","01 deJulio de 2020"," 31 de  Julio  de 2020",3072000,3072000,3475,4457,"SERGIO BOVEA MARIN","COORD CENTRO DE SALUD","2020-07-18","https://www.contratos.gov.co/consultas/detalleProceso.do?numConstancia=20-4-10936926"]
[205,1042430978,"TATIANA BARRIOSNUEVO CERA","2874-2020","AUXILIAR DE ENFERMERIA URGENCIAS","01 deJulio de 2020"," 31 de  Julio  de 2020",1653600,1653600,3476,4458,"SERGIO BOVEA MARIN","COORD CENTRO DE SALUD","2020-07-18","https://www.contratos.gov.co/consultas/detalleProceso.do?numConstancia=20-4-10936927"]
[206,32874863,"TATIANA PAEZ DE LA CRUZ","2875-2020","AUXILIAR DE ENFERMERIA URGENCIAS","01 deJulio de 2020"," 31 de  Julio  de 2020",1653600,1653600,3477,4459,"SERGIO BOVEA MARIN","COORD CENTRO DE SALUD","2020-07-19","https://www.contratos.gov.co/consultas/detalleProceso.do?numConstancia=20-4-10937328"]
[207,32884590,"TATIANA SUAREZ CABALLERO ","2876-2020","AUXILIAR DE ENFERMERIA DE RUTA INTEGRAL MATERNO PERINATAL","01 deJulio de 2020"," 31 de  Julio  de 2020",1399200,1399200,3478,4460,"SERGIO BOVEA MARIN","COORD CENTRO DE SALUD","2020-07-19","https://www.contratos.gov.co/consultas/detalleProceso.do?numConstancia=20-4-10937330"]
[208,1048271951,"WENDY OFELIA BARRAZA PUA","2877-2020","AUXILIAR DE ENFERMERIA URGENCIAS","01 deJulio de 2020"," 31 de  Julio  de 2020",1653600,1653600,3479,4461,"SERGIO BOVEA MARIN","COORD CENTRO DE SALUD","2020-07-19","https://www.contratos.gov.co/consultas/detalleProceso.do?numConstancia=20-4-10937331"]
[209,1042456068,"XILENA PACHECO OSPINO ","2878-2020","AUXILIAR DE ENFERMERIA URGENCIAS","01 deJulio de 2020"," 31 de  Julio  de 2020",1653600,1653600,3480,4462,"SERGIO BOVEA MARIN","COORD CENTRO DE SALUD","2020-07-19","https://www.contratos.gov.co/consultas/detalleProceso.do?numConstancia=20-4-10937334"]
[210,44153255,"XIMENA ESCORCIA CASTRO","2879-2020","MEDICO DE URGENCIA","01 deJulio de 2020"," 31 de  Julio  de 2020",3072000,3072000,3481,4463,"SERGIO BOVEA MARIN","COORD CENTRO DE SALUD","2020-07-19","https://www.contratos.gov.co/consultas/detalleProceso.do?numConstancia=20-4-10937335"]
[211,1042437499,"XIOMARA ALEJANDRA MAURY PACHECO ","2880-2020","ENFERMERA JEFE URGENCIAS ","01 deJulio de 2020"," 31 de  Julio  de 2020",2280000,2280000,3482,4464,"SERGIO BOVEA MARIN","COORD CENTRO DE SALUD","2020-07-19","https://www.contratos.gov.co/consultas/detalleProceso.do?numConstancia=20-4-10937337"]
[212,1042425681,"YESMITH ALEXI GARIZABALO RETAMOSO ","2881-2020","MEDICO DE URGENCIA","01 deJulio de 2020"," 31 de  Julio  de 2020",3072000,3072000,3483,4465,"SERGIO BOVEA MARIN","COORD CENTRO DE SALUD","2020-07-19","https://www.contratos.gov.co/consultas/detalleProceso.do?numConstancia=20-4-10937340"]
[213,32739126,"YIRA DEL CARMEN PEÑALOZA AREVALO","2882-2020","PERSONAL  LIMPIEZA Y ASEO URGENCIA","01 deJulio de 2020"," 31 de  Julio  de 2020",1653600,1653600,3484,4466,"JAIME ALVAREZ NORIEGA","INGENIERO AMBIENTAL ","2020-07-19","https://www.contratos.gov.co/consultas/detalleProceso.do?numConstancia=20-4-10937341"]
[214,32896400,"YISEL BEATRIZ ARROYO SUAREZ","2883-2020","AUXILIAR DE FACTURACION URGENCIA","01 deJulio de 2020"," 31 de  Julio  de 2020",1680000,1680000,3485,4467,"SERGIO BOVEA MARIN","COORD CENTRO DE SALUD","2020-07-19","https://www.contratos.gov.co/consultas/detalleProceso.do?numConstancia=20-4-10937342"]
[215,55230396,"YORLETH MALENA FLOREZ ABRIL","2884-2020","MEDICO DE URGENCIA","01 deJulio de 2020"," 31 de  Julio  de 2020",3072000,3072000,3486,4468,"SERGIO BOVEA MARIN","COORD CENTRO DE SALUD","2020-07-19","https://www.contratos.gov.co/consultas/detalleProceso.do?numConstancia=20-4-10937347"]
[216,44155518,"YURLEY FONTALVO RIVALDO ","2885-2020","MEDICO DE URGENCIA","01 deJulio de 2020"," 31 de  Julio  de 2020",3072000,3072000,3487,4469,"SERGIO BOVEA MARIN","COORD CENTRO DE SALUD","2020-07-19","https://www.contratos.gov.co/consultas/detalleProceso.do?numConstancia=20-4-10937349"]
[217,32865503,"ZULAI DONADO PARODIS ","2886-2020","AUXILIAR DE ENFERMERIA DE PROMOCIÓN Y MANTENIMIENTO DE LA SALUD","01 deJulio de 2020"," 31 de  Julio  de 2020",1166000,1166000,3488,4470,"SERGIO BOVEA MARIN","COORD CENTRO DE SALUD","2020-07-19","https://www.contratos.gov.co/consultas/detalleProceso.do?numConstancia=20-4-10937351"]
[218,32703436,"VILMA ZUÑIGA GONZALEZ","2887-2020","AUXILIAR DE ODONTOLOGIA","01 deJulio de 2020"," 31 de  Julio  de 2020",1166000,1166000,3489,4471,"SERGIO BOVEA MARIN","COORD CENTRO DE SALUD","2020-07-19","https://www.contratos.gov.co/consultas/detalleProceso.do?numConstancia=20-4-10937354"]
[219,1129519216,"MILAGRO HERRERA MOJICA","2888-2020","MEDICO DE URGENCIA","01 deJulio de 2020"," 31 de  Julio  de 2020",3072000,3072000,3490,4472,"SERGIO BOVEA MARIN","COORD CENTRO DE SALUD","2020-07-19","https://www.contratos.gov.co/consultas/detalleProceso.do?numConstancia=20-4-10937356"]
[220,32817343,"MARIELA NIEBLES FREILE","2889-2020","AUXILIAR DE ARCHIVO ","01 deJulio de 2020"," 31 de  Julio  de 2020",1800000,1800000,3491,4473,"SANDRA SANMARTIN","SUBGERENTE ADMINISTRATIVO","2020-07-19","https://www.contratos.gov.co/consultas/detalleProceso.do?numConstancia=20-4-10937358"]
[221,1042419634,"SUANY DEL CRISTO CADRAZCO  IMBETT","2890-2020","MEDICO DE URGENCIA","01 deJulio de 2020"," 31 de  Julio  de 2020",3072000,3072000,3492,4474,"SERGIO BOVEA MARIN","COORD CENTRO DE SALUD","2020-07-19","https://www.contratos.gov.co/consultas/detalleProceso.do?numConstancia=20-4-10937360"]
[222,22529820,"ZULMA ESTHER MEZA MERCADO","2891-2020","AUXILIAR DE ENFERMERIA DE RUTA INTEGRAL MATERNO PERINATAL","01 deJulio de 2020"," 31 de  Julio  de 2020",1600000,1600000,3493,4475,"SERGIO BOVEA MARIN","COORD CENTRO DE SALUD","2020-07-19","https://www.contratos.gov.co/consultas/detalleProceso.do?numConstancia=20-4-10937362"]
[223,1048279224,"MAICOL LAURENS FABREGAS","2892-2020","ORIENTADOR","01 deJulio de 2020"," 31 de  Julio  de 2020",2000000,2000000,3494,4476,"SERGIO BOVEA MARIN","COORD CENTRO DE SALUD","2020-07-19","https://www.contratos.gov.co/consultas/detalleProceso.do?numConstancia=20-4-10937365"]
[224,8634413,"GIL ANTONIO BERDUGO NOVA","2893-2020","AUXILIAR DE ENFERMERIA URGENCIAS","01 deJulio de 2020"," 31 de  Julio  de 2020",1653000,1653000,3495,4477,"SERGIO BOVEA MARIN","COORD CENTRO DE SALUD","2020-07-19","https://www.contratos.gov.co/consultas/detalleProceso.do?numConstancia=20-4-10937366"]
[225,8530634,"RONALD  ENRIQUE ARENAS  MEYER ","2894-2020","CONDUCTOR DE AMBULANCIA","01 deJulio de 2020"," 31 de  Julio  de 2020",2160000,2160000,3496,4478,"BETTY PERTUZ ","SUBGERENTE CIENTIFICO","2020-07-19","https://www.contratos.gov.co/consultas/detalleProceso.do?numConstancia=20-4-10937368"]
[226,1045729651,"KAROLAY PAOLA GARCIA OSPINO","2895-2020-COVID 19","MEDICO- EMERGENCIA COVIC  19","01 deJulio de 2020"," 31 de  Julio  de 2020",4240000,4240000,3497,4479,"CESAR ARRIETA","COORDINADOR URGENCIAS","2020-07-19","https://www.contratos.gov.co/consultas/detalleProceso.do?numConstancia=20-4-10937372"]
[227,8635888,"JORGE EMILIO MUÑOZ AVILA","2896-2020","ORIENTADOR","01 deJulio de 2020"," 31 de  Julio  de 2020",1500000,1500000,3498,4480,"CARLOS VISBAL JIMENEZ","COORD CENTRO DE SALUD","2020-07-19","https://www.contratos.gov.co/consultas/detalleProceso.do?numConstancia=20-4-10937373"]
[228,1140845475,"LAURY DEL CARMEN PACHECO SANCHEZ","2897-2020","ODONTOLOGO","01 deJulio de 2020"," 31 de  Julio  de 2020",{"$f":"1900000*2","v":3800000},3800000,3499,4481,"CARLOS VISBAL JIMENEZ","COORD CENTRO DE SALUD","2020-07-19","https://www.contratos.gov.co/consultas/detalleProceso.do?numConstancia=20-4-10937375"]
[229,8721508,"ALONSO JOSÉ RIQUETT DE LA HOZ","2898-2020","MEDICO DE PROMOCIÓN Y MANTENIMIENTO DE LA SALUD","01 deJulio de 2020"," 31 de  Julio  de 2020",2120000,2120000,3500,4482,"CARLOS VISBAL JIMENEZ","COORD CENTRO DE SALUD","2020-07-19","https://www.contratos.gov.co/consultas/detalleProceso.do?numConstancia=20-4-10937376"]
[230,1045704276,"ANA MILENA HERRERA ALVIS ","2899-2020","ENFERMERA JEFE DE PROMOCIÓN Y MANTENIMIENTO DE LA SALUD- EMERGENCIA COVIC 19","01 deJulio de 2020"," 31 de  Julio  de 2020",3810000,3810000,3501,4483,"CARLOS VISBAL JIMENEZ","COORD CENTRO DE SALUD","2020-07-19","https://www.contratos.gov.co/consultas/detalleProceso.do?numConstancia=20-4-10937377"]
[231,22647051,"EDELMIRA DUQUE LAMADRID","2900-2020","FISIOTERAPEUTA ","01 deJulio de 2020"," 31 de  Julio  de 2020",1900000,1900000,3502,4484,"CARLOS VISBAL JIMENEZ","COORD CENTRO DE SALUD","2020-07-19","https://www.contratos.gov.co/consultas/detalleProceso.do?numConstancia=20-4-10937378"]
[232,26900583,"JANETH JIMENEZ PEÑA","2901-2020","TRABAJADORA SOCIAL ","01 deJulio de 2020"," 31 de  Julio  de 2020",2500000,2500000,3503,4485,"CARLOS VISBAL JIMENEZ","COORD CENTRO DE SALUD","2020-07-19","https://www.contratos.gov.co/consultas/detalleProceso.do?numConstancia=20-4-10937380"]
[233,1043001061,"JOCELIN PAOLA GOMEZ AGUIRRE ","2902-2020","AUXILIAR DE ENFERMERIA","01 deJulio de 2020"," 31 de  Julio  de 2020",1166000,1166000,3504,4486,"BETTY PERTUZ ","SUBGERENTE CIENTIFICO","2020-07-19","https://www.contratos.gov.co/consultas/detalleProceso.do?numConstancia=20-4-10937382"]
[234,72242552,"JUAN CAMILO CASTILLO ARIZA","2903-2020","MEDICO CONSULTA EXTERNA","01 deJulio de 2020"," 31 de  Julio  de 2020",4240000,4240000,3505,4487,"CARLOS VISBAL JIMENEZ","COORD CENTRO DE SALUD","2020-07-19","https://www.contratos.gov.co/consultas/detalleProceso.do?numConstancia=20-4-10937383"]
[235,1042443708,"JULIETH ANDREA CAMACHO CHACON","2904-2020","ENFERMERA JEFE- EMERGENCIA COVIC 19","01 deJulio de 2020"," 31 de  Julio  de 2020",3810000,3810000,3506,4488,"CARLOS VISBAL JIMENEZ","COORD CENTRO DE SALUD","2020-07-19","https://www.contratos.gov.co/consultas/detalleProceso.do?numConstancia=20-4-10937384"]
[236,1042422315,"MAYRA ALEJANDRA GARCIA CASTILLO","2905-2020-COVID19","FISIOTERAPEUTA ","01 deJulio de 2020"," 31 de  Julio  de 2020",{"$f":"1900000+950000","v":2850000},2850000,3507,4489,"CARLOS VISBAL JIMENEZ","COORD CENTRO DE SALUD","2020-07-19","https://www.contratos.gov.co/consultas/detalleProceso.do?numConstancia=20-4-10937385"]
[237,22693871,"MIRIAM VILLAREAL DE ALBA","2906-2020","PERSONAL  LIMPIEZA Y ASEO","01 deJulio de 2020"," 31 de  Julio  de 2020",1215000,1215000,3508,4490,"JAIME ALVAREZ NORIEGA","INGENIERO AMBIENTAL ","2020-07-19","https://www.contratos.gov.co/consultas/detalleProceso.do?numConstancia=20-4-10937387"]
[238,32740234,"NIDIA VEGA CORREA","2907-2020","PERSONAL  LIMPIEZA Y ASEO","01 deJulio de 2020"," 31 de  Julio  de 2020",1215000,1215000,3509,4491,"JAIME ALVAREZ NORIEGA","INGENIERO AMBIENTAL ","2020-07-19","https://www.contratos.gov.co/consultas/detalleProceso.do?numConstancia=20-4-10937388"]
[239,1045680952,"WILLIAM RAFAEL DAVIDSON URIETA","2908-2020","MEDICO CONSULTA EXTERNA ","01 deJulio de 2020"," 31 de  Julio  de 2020",2120000,2120000,3510,4492,"CARLOS VISBAL JIMENEZ","COORD CENTRO DE SALUD","2020-07-19","https://www.contratos.gov.co/consultas/detalleProceso.do?numConstancia=20-4-10937389"]
[240,32769312,"DORIS PADILLA MOLINA ","2909-2020","AUXILIAR DE ODONTOLOGIA","01 deJulio de 2020"," 31 de  Julio  de 2020",1166000,1166000,3511,4493,"CARLOS VISBAL JIMENEZ","COORD CENTRO DE SALUD","2020-07-19","https://www.contratos.gov.co/consultas/detalleProceso.do?numConstancia=20-4-10937390"]
[241,1001934574,"CARLOS MARIO HERAS CORCHO","2910-2020","MEDICO CONSULTA EXTERNA- EMERGENCIA COVIC","01 deJulio de 2020"," 31 de  Julio  de 2020",5600000,5600000,3512,4494,"CARLOS VISBAL JIMENEZ","COORD CENTRO DE SALUD","2020-07-19","https://www.contratos.gov.co/consultas/detalleProceso.do?numConstancia=20-4-10937393"]
[242,1045700355,"EDUARDO LUIS PAUTH HERNANDEZ","2911-2020","MEDICO CONSULTA EXTERNA -EMERGENCIA COVIC 19","01 deJulio de 2020"," 31 de  Julio  de 2020",4540000,4540000,3513,4495,"CARLOS VISBAL JIMENEZ","COORD CENTRO DE SALUD","2020-07-19","https://www.contratos.gov.co/consultas/detalleProceso.do?numConstancia=20-4-10937394"]
[243,1045674051,"SHIRLY PAOLA GUZMAN GUZMAN ","2912-2020","ODONTOLOGO","01 deJulio de 2020"," 31 de  Julio  de 2020",1900000,1900000,3514,4496,"VICTOR MIRANDA","COORD CENTRO DE SALUD","2020-07-19","https://www.contratos.gov.co/consultas/detalleProceso.do?numConstancia=20-4-10937395"]
[244,8777621,"ALEXANDER MIGUEL SALAZAR CABALLERO","2913-2020","AUXILIAR DE FACTURACION URGENCIA","01 deJulio de 2020"," 31 de  Julio  de 2020",1680000,1680000,3515,4497,"SANDRA SANMARTIN","SUBGERENTE ADMINISTRATIVO","2020-07-19","https://www.contratos.gov.co/consultas/detalleProceso.do?numConstancia=20-4-10937396"]
[245,32583401,"ELSY LIZETH CHARRIS CONTRERAS","2914-2020","MEDICO CONSULTA EXTERNA ","01 deJulio de 2020"," 31 de  Julio  de 2020",2120000,2120000,3516,4498,"VICTOR MIRANDA","COORD CENTRO DE SALUD","2020-07-19","https://www.contratos.gov.co/consultas/detalleProceso.do?numConstancia=20-4-10937398"]
[246,22551160,"GISELL MILENA HERRERA ZUÑIGA","2915-2020","MEDICO CONSULTA EXTERNA ","01 deJulio de 2020"," 31 de  Julio  de 2020",2120000,2120000,3517,4499,"VICTOR MIRANDA",{"$f":"+M247","v":"COORD CENTRO DE SALUD"},"2020-07-19","https://www.contratos.gov.co/consultas/detalleProceso.do?numConstancia=20-4-10937400"]
[247,1143449271,"HELEN YIRE MALDONADO MIRANDA","2916-2020","AUXILIAR DE ODONTOLOGIA","01 deJulio de 2020"," 31 de  Julio  de 2020",1166000,1166000,3518,4500,"VICTOR MIRANDA","COORD CENTRO DE SALUD","2020-07-19","https://www.contratos.gov.co/consultas/detalleProceso.do?numConstancia=20-4-10937401"]
[248,1042444832,"JHONNATAN ALFONSO DE LA HOZ BARRIOS","2917-2020","MEDICO CONSULTA EXTERNA ","01 deJulio de 2020"," 31 de  Julio  de 2020",4240000,4240000,3519,4501,"VICTOR MIRANDA","COORD CENTRO DE SALUD","2020-07-19","https://www.contratos.gov.co/consultas/detalleProceso.do?numConstancia=20-4-10937402"]
[249,8704073,"JOSE ALFREDO JIMENEZ CASTRO","2918-2020","ORIENTADOR","01 deJulio de 2020"," 31 de  Julio  de 2020",1270000,1270000,3520,4502,"VICTOR MIRANDA","COORD CENTRO DE SALUD","2020-07-19","https://www.contratos.gov.co/consultas/detalleProceso.do?numConstancia=20-4-10937403"]
[250,32814077,"JUDITH TORRES CASTILLO","2919-2020","LIDER DE  FACTURACION  EN CENTROS DE SALUD","01 deJulio de 2020"," 31 de  Julio  de 2020",1600000,1600000,3521,4503,"VICTOR MIRANDA","COORD CENTRO DE SALUD","2020-07-19","https://www.contratos.gov.co/consultas/detalleProceso.do?numConstancia=20-4-10937404"]
[251,39013975,"MARTHA MARMOL ARIAS","2920-2020","PERSONAL  LIMPIEZA Y ASEO","01 deJulio de 2020"," 31 de  Julio  de 2020",1215000,1215000,3522,4504,"JAIME ALVAREZ NORIEGA","INGENIERO AMBIENTAL ","2020-07-19","https://www.contratos.gov.co/consultas/detalleProceso.do?numConstancia=20-4-10937406"]
[252,1047228049,"MARIA FERNANDA DE LA HOZ DE MOYA","2921-2020","ENFERMERA JEFE CONSULTA EXTERNA ","01 deJulio de 2020"," 31 de  Julio  de 2020",2500000,2500000,3523,4505,"VICTOR MIRANDA","COORD CENTRO DE SALUD","2020-07-19","https://www.contratos.gov.co/consultas/detalleProceso.do?numConstancia=20-4-10937407"]
[253,1140895535,"ADRIANA PAOLA GONZALEZ ROMERO ","2922-2020","ENFERMERA JEFE CONSULTA EXTERNA ","01 deJulio de 2020"," 31 de  Julio  de 2020",2120000,2120000,3524,4506,"AIX PALACIO","COORD CENTRO DE SALUD","2020-07-19","https://www.contratos.gov.co/consultas/detalleProceso.do?numConstancia=20-4-10937408"]
[254,1139614174,"ALONSO MATEO LLANES ARIZA","2923-2020","MEDICO CONSULTA EXTERNA ","01 deJulio de 2020"," 31 de  Julio  de 2020",2120000,2120000,3525,4507,"AIX PALACIO","COORD CENTRO DE SALUD","2020-07-19","https://www.contratos.gov.co/consultas/detalleProceso.do?numConstancia=20-4-10937410"]
[255,7407679,"AMEFI PACHECO CERA","2924-2020","ORIENTADOR","01 deJulio de 2020"," 31 de  Julio  de 2020",1270000,1270000,3526,4508,"AIX PALACIO","COORD CENTRO DE SALUD","2020-07-19","https://www.contratos.gov.co/consultas/detalleProceso.do?numConstancia=20-4-10937412"]
[256,60311278,"EVA FLOREZ PARRA ","2925-2020","MEDICO CONSULTA EXTERNA ","01 deJulio de 2020"," 31 de  Julio  de 2020",2500000,{"$f":"+H258*1","v":2500000},3527,4509,"AIX PALACIO","COORD CENTRO DE SALUD","2020-07-19","https://www.contratos.gov.co/consultas/detalleProceso.do?numConstancia=20-4-10937413"]
[257,32608240,"MARIA DE JESUS VELASQUEZ CAPERA","2926-2020","PERSONAL  LIMPIEZA Y ASEO","01 deJulio de 2020"," 31 de  Julio  de 2020",1215000,1215000,3528,4510,"JAIME ALVAREZ NORIEGA","INGENIERO AMBIENTAL ","2020-07-19","https://www.contratos.gov.co/consultas/detalleProceso.do?numConstancia=20-4-10937414"]
[{"$f":"+A259+1","v":258},32828506,"NINOSKA CELESTE BARCELÓ OVIEDO","2927-2020","PSICOLOGA SIAU","01 deJulio de 2020"," 31 de  Julio  de 2020",2200000,2200000,3529,4511,"AIX PALACIO","COORD CENTRO DE SALUD","2020-07-19","https://www.contratos.gov.co/consultas/detalleProceso.do?numConstancia=20-4-10937415"]
[259,44152277,"OLGA GARIZABALO PERTUZ","2928-2020","AUXILIAR DE ODONTOLOGIA","01 deJulio de 2020"," 31 de  Julio  de 2020",1166000,1166000,3530,4512,"AIX PALACIO","COORD CENTRO DE SALUD","2020-07-19","https://www.contratos.gov.co/consultas/detalleProceso.do?numConstancia=20-4-10937417"]
[260,32878246,"SHIRLY ISABEL RECIO COLLANTE","2929-2020","AUXILIAR DE ENFERMERIA CONSULTA EXTERNA ","01 deJulio de 2020"," 31 de  Julio  de 2020",1166000,1166000,3531,4513,"AIX PALACIO","COORD CENTRO DE SALUD","2020-07-19","https://www.contratos.gov.co/consultas/detalleProceso.do?numConstancia=20-4-10937418"]
[261,32866918,"ZULMA LEONOR MARTINEZ IGLESIAS","2930-2020","ODONTOLOGO","01 deJulio de 2020"," 31 de  Julio  de 2020",1900000,1900000,3532,4514,"AIX PALACIO","COORD CENTRO DE SALUD","2020-07-19","https://www.contratos.gov.co/consultas/detalleProceso.do?numConstancia=20-4-10937419"]
[262,8667553,"JUAN EMILIO SANDOVAL BOLIVAR ","2931-2020","ODONTOLOGO","01 deJulio de 2020"," 31 de  Julio  de 2020",1900000,1900000,3533,4515,"WILFRAN JIMENEZ DE LA PEÑA","COORD CENTRO DE SALUD","2020-07-19","https://www.contratos.gov.co/consultas/detalleProceso.do?numConstancia=20-4-10937420"]
[263,22465848,"ADRIANA OROZCO CANTILLO","2932-2020","PERSONAL  LIMPIEZA Y ASEO","01 deJulio de 2020"," 31 de  Julio  de 2020",1215000,1215000,3534,4516,"JAIME ALVAREZ NORIEGA","INGENIERO AMBIENTAL ","2020-07-19","https://www.contratos.gov.co/consultas/detalleProceso.do?numConstancia=20-4-10937421"]
[264,22524112,"DIANA SANDOVAL MANGA","2933-2020","ENFERMERA JEFE PROGRAMAS ESPECIALES","01 deJulio de 2020"," 31 de  Julio  de 2020",1900000,1900000,3535,4517,"LUIS CARLOS DE LEON BERNIER","COORD CENTRO DE SALUD","2020-07-19","https://www.contratos.gov.co/consultas/detalleProceso.do?numConstancia=20-4-10937422"]
[265,1045747916,"LEIDY DIANA PAEZ OROZCO","2934-2020","ENFERMERA JEFE  CONSULTA EXTERNA ","01 deJulio de 2020"," 31 de  Julio  de 2020",1900000,1900000,3536,4518,"LUIS CARLOS DE LEON BERNIER","COORD CENTRO DE SALUD","2020-07-19","https://www.contratos.gov.co/consultas/detalleProceso.do?numConstancia=20-4-10937423"]
[266,1143450666,"YERLIS PAOLA FONTALVO LAMBRAÑO","2935-2020","AUXILIAR DE FACTURACION","01 deJulio de 2020"," 31 de  Julio  de 2020",1680000,1680000,3537,4519,"SANDRA SANMARTIN","SUBGERENTE ADMINISTRATIVO","2020-07-19","https://www.contratos.gov.co/consultas/detalleProceso.do?numConstancia=20-4-10937424"]
[267,1143266403,"YUNERIZ PEREZ DE LA HOZ","2936-2020","AUXILIAR DE ENFERMERIA","01 deJulio de 2020"," 31 de  Julio  de 2020",1166000,1166000,3538,4520,"LUIS CARLOS DE LEON BERNIER","COORD CENTRO DE SALUD","2020-07-19","https://www.contratos.gov.co/consultas/detalleProceso.do?numConstancia=20-4-10937426"]
[268,32869290,"ARGENEDITH YEPEZ ESCALANTE ","2937-2020","MEDICO DE PROMOCIÓN Y MANTENIMIENTO DE LA SALUD","01 deJulio de 2020"," 31 de  Julio  de 2020",2120000,2120000,3539,4521,"LUIS GRANADOS GOMEZ","COORD CENTRO DE SALUD","2020-07-19","https://www.contratos.gov.co/consultas/detalleProceso.do?numConstancia=20-4-10937428"]
[269,72153271,"BORIS ARROYO ESCOBAR","2938-2020","ORIENTADOR","01 deJulio de 2020"," 31 de  Julio  de 2020",1270000,1270000,3540,4522,"LUIS GRANADOS GOMEZ","COORD CENTRO DE SALUD","2020-07-19","https://www.contratos.gov.co/consultas/detalleProceso.do?numConstancia=20-4-10937430"]
[270,1001875491,"CINDY MILENA VARELA ARIAS ","2939-2020","PERSONAL  LIMPIEZA Y ASEO","01 deJulio de 2020"," 31 de  Julio  de 2020",1215000,1215000,3541,4523,"JAIME ALVAREZ NORIEGA","INGENIERO AMBIENTAL ","2020-07-19","https://www.contratos.gov.co/consultas/detalleProceso.do?numConstancia=20-4-10937431"]
[271,32896364,"DAILYS CAROLINA PEREZ GUETTE","2940-2020","ODONTOLOGO","01 deJulio de 2020"," 31 de  Julio  de 2020",1900000,1900000,3542,4524,"LUIS GRANADOS GOMEZ","COORD CENTRO DE SALUD","2020-07-19","https://www.contratos.gov.co/consultas/detalleProceso.do?numConstancia=20-4-10937432"]
[272,22585192,"DIANA LUZ ACOSTA DEMARES","2941-2020","AUXILIAR ADMINISTRATIVO COORDINACION MEDICA","01 deJulio de 2020"," 31 de  Julio  de 2020",1900000,1900000,3543,4525,"LUIS GRANADOS GOMEZ","COORD CENTRO DE SALUD","2020-07-19","https://www.contratos.gov.co/consultas/detalleProceso.do?numConstancia=20-4-10937435"]
[273,32819600,"DOLIS PEDROZO TORRES","2942-2020","PERSONAL  LIMPIEZA Y ASEO","01 deJulio de 2020"," 31 de  Julio  de 2020",1215000,1215000,3544,4526,"JAIME ALVAREZ NORIEGA","INGENIERO AMBIENTAL ","2020-07-19","https://www.contratos.gov.co/consultas/detalleProceso.do?numConstancia=20-4-10937436"]
[274,1074712390,"EVELIN CRISTINA ZULETA SANCHEZ ","2943-2020","ENFERMERA JEFE DE PROMOCIÓN Y MANTENIMIENTO DE LA SALUD","01 deJulio de 2020"," 31 de  Julio  de 2020",2300000,2300000,3545,4527,"LUIS GRANADOS GOMEZ","COORD CENTRO DE SALUD","2020-07-19","https://www.contratos.gov.co/consultas/detalleProceso.do?numConstancia=20-4-10937437"]
[275,8507198,"FRANCISCO PEÑALOZA PEREZ","2944-2020","MEDICO CONSULTA EXTERNA ","01 deJulio de 2020"," 31 de  Julio  de 2020",2120000,2120000,3546,4528,"LUIS GRANADOS GOMEZ","COORD CENTRO DE SALUD","2020-07-19","https://www.contratos.gov.co/consultas/detalleProceso.do?numConstancia=20-4-10937438"]
[276,1042448135,"GISELLA CAMILA ACOSTA SEGURA","2945-2020","AUXILIAR SERVICIOS AMIGABLES ","01 deJulio de 2020"," 31 de  Julio  de 2020",1500000,1500000,3547,4529,"NILSA ARIZA MARQUEZ","COORDINADOR PYP","2020-07-19","https://www.contratos.gov.co/consultas/detalleProceso.do?numConstancia=20-4-10937439"]
[277,44154490,"HEIDY LUZ CARRILLO DIAZ","2946-2020","AUXILIAR ADMINISTRATIVO  FACTURACIÒN","01 deJulio de 2020"," 31 de  Julio  de 2020",1900000,1900000,3548,4530,"LUIS GRANADOS GOMEZ","COORD CENTRO DE SALUD","2020-07-19","https://www.contratos.gov.co/consultas/detalleProceso.do?numConstancia=20-4-10937440"]
[278,8675558,"JESUS ALFREDO MALDONADO MEJIA ","2947-2020","ORIENTADOR","01 deJulio de 2020"," 31 de  Julio  de 2020",1270000,1270000,3549,4531,"LUIS GRANADOS GOMEZ","COORD CENTRO DE SALUD","2020-07-19","https://www.contratos.gov.co/consultas/detalleProceso.do?numConstancia=20-4-10937442"]
[279,1042442139,"JOSHIKY ESTHER AHUMADA PACHECO","2948-2020","ENFERMERA JEFE DE PROMOCIÓN Y MANTENIMIENTO DE LA SALUD","01 deJulio de 2020"," 31 de  Julio  de 2020",2300000,2300000,3550,4532,"LUIS GRANADOS GOMEZ","COORD CENTRO DE SALUD","2020-07-19","https://www.contratos.gov.co/consultas/detalleProceso.do?numConstancia=20-4-10937446"]
[280,32646304,"LILIAN ESTHER ANTEQUERA MANTILLA","2949-2020","AUXILIAR DE ENFERMERIA","01 deJulio de 2020"," 31 de  Julio  de 2020",1166000,1166000,3551,4533,"LUIS GRANADOS GOMEZ","COORD CENTRO DE SALUD","2020-07-19","https://www.contratos.gov.co/consultas/detalleProceso.do?numConstancia=20-4-10937447"]
[281,1044432609,"LUPE MAURY SANTIAGO","2950-2020","MEDICO CONSULTA EXTERNA ","01 deJulio de 2020"," 31 de  Julio  de 2020",2120000,2120000,3552,4534,"LUIS GRANADOS GOMEZ","COORD CENTRO DE SALUD","2020-07-19","https://www.contratos.gov.co/consultas/detalleProceso.do?numConstancia=20-4-10937448"]
[282,72142837,"MANUEL GUSTAVO PABA GUETE","2951-2020","PSICOLOGO EN PROMOCION Y PREVENCION","01 deJulio de 2020"," 31 de  Julio  de 2020",3000000,3000000,3553,4535,"NILSA ARIZA MARQUEZ","COORDINADOR PYP","2020-07-19","https://www.contratos.gov.co/consultas/detalleProceso.do?numConstancia=20-4-10937449"]
[283,1140883085,"MARIA FATIMA HERNANDEZ ORTIZ","2952-2020","AUXILIAR SERVICIOS AMIGABLES ","01 deJulio de 2020"," 31 de  Julio  de 2020",1270000,1270000,3554,4536,"NILSA ARIZA MARQUEZ","COORDINADOR PYP","2020-07-19","https://www.contratos.gov.co/consultas/detalleProceso.do?numConstancia=20-4-10937451"]
[284,32695840,"MARIA HERRERA CUADROS","2953-2020","HIGIENISTA ORAL SERVICIOS AMIGABLES","01 deJulio de 2020"," 31 de  Julio  de 2020",2332000,2332000,3555,4537,"LUIS GRANADOS GOMEZ","COORD CENTRO DE SALUD","2020-07-19","https://www.contratos.gov.co/consultas/detalleProceso.do?numConstancia=20-4-10937452"]
[285,32819834,"MARIBEL NIEBLES ESCORCIA","2954-2020","AUXILIAR DE ODONTOLOGIA","01 deJulio de 2020"," 31 de  Julio  de 2020",1166000,1166000,3556,4538,"LUIS GRANADOS GOMEZ","COORD CENTRO DE SALUD","2020-07-19","https://www.contratos.gov.co/consultas/detalleProceso.do?numConstancia=20-4-10937454"]
[286,1042418352,"MERJORIE CABEZA CASTILLO","2955-2020","AUXILIAR DE ENFERMERIA DE PROMOCIÓN Y MANTENIMIENTO DE LA SALUD","01 deJulio de 2020"," 31 de  Julio  de 2020",1166000,1166000,3557,4539,"LUIS GRANADOS GOMEZ","COORD CENTRO DE SALUD","2020-07-19","https://www.contratos.gov.co/consultas/detalleProceso.do?numConstancia=20-4-10937455"]
[287,22468835,"MILAGROS GUZMAN FERNANDEZ ","2956-2020","ODONTOLOGO","01 deJulio de 2020"," 31 de  Julio  de 2020",1900000,1900000,3558,4540,"LUIS GRANADOS GOMEZ","COORD CENTRO DE SALUD","2020-07-19","https://www.contratos.gov.co/consultas/detalleProceso.do?numConstancia=20-4-10937456"]
[288,22532699,"MILENA SILVA BARRAZA","2957-2020","AUXILIAR DE FACTURACION","01 deJulio de 2020"," 31 de  Julio  de 2020",1400000,1400000,3559,4541,"SANDRA SANMARTIN","SUBGERENTE ADMINISTRATIVO","2020-07-19","https://www.contratos.gov.co/consultas/detalleProceso.do?numConstancia=20-4-10937457"]
[289,32822947,"NOHORA ISABEL POLO ORTIZ","2958-2020","TRABAJADORA SOCIAL ","01 deJulio de 2020"," 31 de  Julio  de 2020",2200000,2200000,3560,4542,"LUIS GRANADOS GOMEZ","COORD CENTRO DE SALUD","2020-07-19","https://www.contratos.gov.co/consultas/detalleProceso.do?numConstancia=20-4-10937458"]
[290,8770590,"RAFAEL MOVILLA FLOREZ ","2959-2020","LIDER DE  FACTURACION  EN CENTROS DE SALUD","01 deJulio de 2020"," 31 de  Julio  de 2020",1600000,1600000,3561,4543,"LUIS GRANADOS GOMEZ","COORD CENTRO DE SALUD","2020-07-19","https://www.contratos.gov.co/consultas/detalleProceso.do?numConstancia=20-4-10937459"]
[291,1140855017,"STEPHANY LORRAINE NIEBLES ZULUAGA ","2960-2020","ENFERMERA JEFE -SERVICIOS AMIGABLES","01 deJulio de 2020"," 31 de  Julio  de 2020",2300000,2300000,3562,4544,"LUIS GRANADOS GOMEZ","COORD CENTRO DE SALUD","2020-07-19","https://www.contratos.gov.co/consultas/detalleProceso.do?numConstancia=20-4-10937461"]
[292,56087561,"YAMILZA ESTHER MURGAS ORTIZ","2961-2020","AUXILIAR DE ENFERMERIA","01 deJulio de 2020"," 31 de  Julio  de 2020",1166000,1166000,3563,4545,"LUIS GRANADOS GOMEZ","COORD CENTRO DE SALUD","2020-07-19","https://www.contratos.gov.co/consultas/detalleProceso.do?numConstancia=20-4-10937462"]
[293,1042440818,"YISELL PAOLA SANDOVAL BARRETO","2962-2020","MEDICO CONSULTA EXTERNA ","01 deJulio de 2020"," 31 de  Julio  de 2020",2120000,2120000,3564,4546,"LUIS GRANADOS GOMEZ","COORD CENTRO DE SALUD","2020-07-19","https://www.contratos.gov.co/consultas/detalleProceso.do?numConstancia=20-4-10937463"]
[294,32623541,"MAGALYS ESPITIA RAMOS","2963-2020","PERSONAL  LIMPIEZA Y ASEO URGENCIA","01 deJulio de 2020"," 31 de  Julio  de 2020",1653600,1653600,3565,4547,"JAIME ALVAREZ NORIEGA","INGENIERO AMBIENTAL ","2020-07-19","https://www.contratos.gov.co/consultas/detalleProceso.do?numConstancia=20-4-10937464"]
[295,55250327,"YURANIS BONIFAS CAÑAS","2964-2020","COORDINADORA PAIWEB","01 deJulio de 2020"," 31 de  Julio  de 2020",3000000,3000000,3566,4548,"ALCIRA DEL SOCORRO GOMEZ ARRIETA","COORDINADOR PYP","2020-07-19","https://www.contratos.gov.co/consultas/detalleProceso.do?numConstancia=20-4-10937466"]
[296,1140853943,"LEIDY VANESSA BUSTILLO FORMARIS","2965-2020","ODONTOLOGO","01 deJulio de 2020"," 31 de  Julio  de 2020",1900000,1900000,3567,4549,"DIANA MARTINEZ PACHECO","COORD CENTRO DE SALUD","2020-07-19","https://www.contratos.gov.co/consultas/detalleProceso.do?numConstancia=20-4-10937468"]
[297,1047338042,"AMINTA PARDO GUZMAN","2966-2020","AUXILIAR DE ENFERMERIA CONSULTA EXTERNA ","01 deJulio de 2020"," 31 de  Julio  de 2020",1166000,1166000,3568,4550,"DIANA MARTINEZ PACHECO","COORD CENTRO DE SALUD","2020-07-19","https://www.contratos.gov.co/consultas/detalleProceso.do?numConstancia=20-4-10937469"]
[298,1045688469,"AMY MOVILLA COMAS","2967-2020","ENFERMERA JEFE CONSULTA EXTERNA ","01 deJulio de 2020"," 31 de  Julio  de 2020",2300000,2300000,3569,4551,"DIANA MARTINEZ PACHECO","COORD CENTRO DE SALUD","2020-07-19","https://www.contratos.gov.co/consultas/detalleProceso.do?numConstancia=20-4-10937470"]
[299,32866058,"CLAUDIA CABARCAS ARROYO","2968-2020","TRABAJADORA SOCIAL","01 deJulio de 2020"," 31 de  Julio  de 2020",2200000,2200000,3570,4552,"DIANA MARTINEZ PACHECO","COORD CENTRO DE SALUD","2020-07-19","https://www.contratos.gov.co/consultas/detalleProceso.do?numConstancia=20-4-10937471"]
[300,1047358567,"JENNIFER PAULA FRUTO MALDONADO ","2969-2020","MEDICO CONSULTA EXTERNA ","01 deJulio de 2020"," 31 de  Julio  de 2020",2120000,2120000,3571,4553,"DIANA MARTINEZ PACHECO","COORD CENTRO DE SALUD","2020-07-19","https://www.contratos.gov.co/consultas/detalleProceso.do?numConstancia=20-4-10937472"]
[301,8754502,"JORGE DE LA HOZ DE LA HOZ","2970-2020","ORIENTADOR","01 deJulio de 2020"," 31 de  Julio  de 2020",1270000,1270000,3572,4554,"DIANA MARTINEZ PACHECO","COORD CENTRO DE SALUD","2020-07-19","https://www.contratos.gov.co/consultas/detalleProceso.do?numConstancia=20-4-10937473"]
[302,55220183,"KETTY PILAR INSIGNARES MATOS ","2971-2020","PSICOLOGA","01 deJulio de 2020"," 31 de  Julio  de 2020",2800000,2800000,3573,4555,"DIANA MARTINEZ PACHECO","COORD CENTRO DE SALUD","2020-07-19","https://www.contratos.gov.co/consultas/detalleProceso.do?numConstancia=20-4-10937475"]
[303,32796648,"LILIANA OROZCO ROJAS ","2972-2020","ODONTOLOGO","01 deJulio de 2020"," 31 de  Julio  de 2020",1900000,1900000,3574,4556,"DIANA MARTINEZ PACHECO","COORD CENTRO DE SALUD","2020-07-19","https://www.contratos.gov.co/consultas/detalleProceso.do?numConstancia=20-4-10937476"]
[304,22738424,"LINA MARGARITA TORO GARCIA","2973-2020","MEDICO PROGRAMA CARDIOVASCULAR","01 deJulio de 2020"," 31 de  Julio  de 2020",4600000,4600000,3575,4557,"DIANA MARTINEZ PACHECO","COORD CENTRO DE SALUD","2020-07-19","https://www.contratos.gov.co/consultas/detalleProceso.do?numConstancia=20-4-10937477"]
[305,32666054,"LUCY CHING ANAYA ","2974-2020","MEDICO CONSULTA EXTERNA ","01 deJulio de 2020"," 31 de  Julio  de 2020",2120000,2120000,3576,4558,"DIANA MARTINEZ PACHECO","COORD CENTRO DE SALUD","2020-07-19","https://www.contratos.gov.co/consultas/detalleProceso.do?numConstancia=20-4-10937478"]
[306,22444561,"LUZ MARINA DONADO BARRIOS ","2975-2020","LIDER DE  FACTURACION  EN CENTROS DE SALUD","01 deJulio de 2020"," 31 de  Julio  de 2020",1600000,1600000,3577,4559,"DIANA MARTINEZ PACHECO","COORD CENTRO DE SALUD","2020-07-20","https://www.contratos.gov.co/consultas/detalleProceso.do?numConstancia=20-4-10938113"]
[307,22694593,"MARLENE JUDITH GARIZABALO PERTUZ","2976-2020","PERSONAL  LIMPIEZA Y ASEO","01 deJulio de 2020"," 31 de  Julio  de 2020",1215000,1215000,3578,4560,"JAIME ALVAREZ NORIEGA","INGENIERO AMBIENTAL ","2020-07-20","https://www.contratos.gov.co/consultas/detalleProceso.do?numConstancia=20-4-10938115"]
[308,32896837,"MARYULIS PATRICIA CRUZ JIMENEZ","2977-2020","ENFERMERA JEFE DE PROMOCIÓN Y MANTENIMIENTO DE LA SALUD","01 deJulio de 2020"," 31 de  Julio  de 2020",2300000,2300000,3579,4561,"DIANA MARTINEZ PACHECO","COORD CENTRO DE SALUD","2020-07-20","https://www.contratos.gov.co/consultas/detalleProceso.do?numConstancia=20-4-10938119"]
[309,55307582,"PAOLA VALENCIA GUERRERO","2978-2020","MEDICO PROGRAMA CARDIOVASCULAR","01 deJulio de 2020"," 31 de  Julio  de 2020",2300000,2300000,3580,4562,"DIANA MARTINEZ PACHECO","COORD CENTRO DE SALUD","2020-07-20","https://www.contratos.gov.co/consultas/detalleProceso.do?numConstancia=20-4-10938124"]
[310,22692801,"SUNILDA ESTHER SAURIT ESCORCIA","2979-2020","AUXILIAR DE ENFERMERIA","01 deJulio de 2020"," 31 de  Julio  de 2020",1166000,1166000,3581,4563,"DIANA MARTINEZ PACHECO","COORD CENTRO DE SALUD","2020-07-20","https://www.contratos.gov.co/consultas/detalleProceso.do?numConstancia=20-4-10938127"]
[311,1007908949,"VERONICA POLET TODARO PEDROZO","2980-2020","MEDICO CONSULTA EXTERNA /APOYO PROGRAMA CARDIOVASCULAR ","01 deJulio de 2020"," 31 de  Julio  de 2020",2300000,2300000,3582,4564,"DIANA MARTINEZ PACHECO","COORD CENTRO DE SALUD","2020-07-20","https://www.contratos.gov.co/consultas/detalleProceso.do?numConstancia=20-4-10938129"]
[312,32876060,"YAKELIN BOLAÑO MIRANDA","2981-2020","AUXILIAR DE ODONTOLOGIA","01 deJulio de 2020"," 31 de  Julio  de 2020",1166000,1166000,3583,4565,"DIANA MARTINEZ PACHECO","COORD CENTRO DE SALUD","2020-07-20","https://www.contratos.gov.co/consultas/detalleProceso.do?numConstancia=20-4-10938130"]
[313,26694748,"MARTA LIGIA BARRANCO MEZA ","2982-2020","PERSONAL  LIMPIEZA Y ASEO","01 deJulio de 2020"," 31 de  Julio  de 2020",1215000,1215000,3584,4566,"JAIME ALVAREZ NORIEGA","INGENIERO AMBIENTAL ","2020-07-20","https://www.contratos.gov.co/consultas/detalleProceso.do?numConstancia=20-4-10938131"]
[314,1045706259,"ANDREA CAROLINA HERRERA ORTEGA","2983-2020","MEDICO CONSULTA EXTERNA ","01 deJulio de 2020"," 31 de  Julio  de 2020",2120000,2120000,3585,4567,"YARELIS GUERRA CORREA","COORD CENTRO DE SALUD","2020-07-20","https://www.contratos.gov.co/consultas/detalleProceso.do?numConstancia=20-4-10938134"]
[315,7938572,"BRAYNERD ALVAREZ JIMENEZ ","2984-2020","MEDICO CONSULTA EXTERNA  Y CARDIOVASCULAR","01 deJulio de 2020"," 31 de  Julio  de 2020",4600000,4600000,3586,4568,"YARELIS GUERRA CORREA","COORD CENTRO DE SALUD","2020-07-20","https://www.contratos.gov.co/consultas/detalleProceso.do?numConstancia=20-4-10938138"]
[316,1046873154,"CARLOS AUGUSTO ANGULO BANDERA","2985-2020","ORIENTADOR","01 deJulio de 2020"," 31 de  Julio  de 2020",1700000,1700000,3587,4569,"YARELIS GUERRA CORREA","COORD CENTRO DE SALUD","2020-07-20","https://www.contratos.gov.co/consultas/detalleProceso.do?numConstancia=20-4-10938140"]
[317,22732766,"ESMIRIS MARIA JIMENEZ GOMEZ","2986-2020","PERSONAL  LIMPIEZA Y ASEO","01 deJulio de 2020"," 31 de  Julio  de 2020",1215000,1215000,3588,4570,"JAIME ALVAREZ NORIEGA","INGENIERO AMBIENTAL ","2020-07-20","https://www.contratos.gov.co/consultas/detalleProceso.do?numConstancia=20-4-10938144"]
[318,44159527,"FLORINDA DE LA HOZ PACHECO ","2987-2020","ENFERMERA JEFE DE PROMOCIÓN Y MANTENIMIENTO DE LA SALUD","01 deJulio de 2020"," 31 de  Julio  de 2020",2300000,2300000,3589,4571,"YARELIS GUERRA CORREA","COORD CENTRO DE SALUD","2020-07-20","https://www.contratos.gov.co/consultas/detalleProceso.do?numConstancia=20-4-10938146"]
[319,24341220,"GLADYS OTALVARO BOTERO","2988-2020","AUXILIAR FACTURACION CONSULTA EXTERNA","01 deJulio de 2020"," 31 de  Julio  de 2020",1400000,1400000,3590,4572,"SANDRA SANMARTIN","SUBGERENTE ADMINISTRATIVO","2020-07-20","https://www.contratos.gov.co/consultas/detalleProceso.do?numConstancia=20-4-10938148"]
[320,32703101,"JANETH DEL CARMEN GUZMAN CANTILLO","2989-2020","LIDER DE  FACTURACION  EN CENTROS DE SALUD","01 deJulio de 2020"," 31 de  Julio  de 2020",1600000,{"$f":"+H322*1","v":1600000},3591,4573,"YARELIS GUERRA CORREA","COORD CENTRO DE SALUD","2020-07-20","https://www.contratos.gov.co/consultas/detalleProceso.do?numConstancia=20-4-10938150"]
[321,22739758,"LAURA MELENDEZ SALAZAR","2990-2020","ODONTOLOGO","01 deJulio de 2020"," 31 de  Julio  de 2020",1900000,1900000,3592,4574,"YARELIS GUERRA CORREA","COORD CENTRO DE SALUD","2020-07-20","https://www.contratos.gov.co/consultas/detalleProceso.do?numConstancia=20-4-10938151"]
[{"$f":"+A323+1","v":322},32703976,"MARI ENITH PUELLO BELTRAN","2991-2020","AUXILIAR DE ENFERMERIA CONSULTA EXTERNA ","01 deJulio de 2020"," 31 de  Julio  de 2020",1166000,1166000,3593,4575,"BETTY PERTUZ ","SUBGERENTE CIENTIFICO","2020-07-20","https://www.contratos.gov.co/consultas/detalleProceso.do?numConstancia=20-4-10938154"]
[323,26762874,"MARYURIS ALTAHONA  MORENO ","2992-2020","MEDICO DE RUTA INTEGRAL MATERNO PERINATAL ","01 deJulio de 2020"," 31 de  Julio  de 2020",2544000,2544000,3594,4576,"YARELIS GUERRA CORREA","COORD CENTRO DE SALUD","2020-07-20","https://www.contratos.gov.co/consultas/detalleProceso.do?numConstancia=20-4-10938155"]
[324,32729889,"MERLY ISABEL BARRAZA TOLEDO","2993-2020","AUXILIAR DE ENFERMERIA CONSULTA EXTERNA ","01 deJulio de 2020"," 31 de  Julio  de 2020",1166000,1166000,3595,4577,"YARELIS GUERRA CORREA","COORD CENTRO DE SALUD","2020-07-20","https://www.contratos.gov.co/consultas/detalleProceso.do?numConstancia=20-4-10938157"]
[325,26910232,"NELCY ALMARALES AYALA","2994-2020","TRABAJADORA SOCIAL ","01 deJulio de 2020"," 31 de  Julio  de 2020",2200000,2200000,3596,4578,"YARELIS GUERRA CORREA","COORD CENTRO DE SALUD","2020-07-20","https://www.contratos.gov.co/consultas/detalleProceso.do?numConstancia=20-4-10938160"]
[326,32664177,"ROSIRIS MONTES REDONDO","2995-2020","AUXILIAR DE ODONTOLOGIA","01 deJulio de 2020"," 31 de  Julio  de 2020",1166000,1166000,3597,4579,"YARELIS GUERRA CORREA","COORD CENTRO DE SALUD","2020-07-20","https://www.contratos.gov.co/consultas/detalleProceso.do?numConstancia=20-4-10938163"]
[327,1143456204,"SANDRA MARCELA OVIEDO ROCA","2996-2020","ENFERMERA JEFE ","01 deJulio de 2020"," 31 de  Julio  de 2020",2300000,2300000,3598,4580,"YARELIS GUERRA CORREA","COORD CENTRO DE SALUD","2020-07-20","https://www.contratos.gov.co/consultas/detalleProceso.do?numConstancia=20-4-10938166"]
[328,1042441044,"SASKIA STEFANIA SOTOMAYOR SOLANO","2997-2020","PERSONAL  LIMPIEZA Y ASEO","01 deJulio de 2020"," 31 de  Julio  de 2020",1270000,1270000,3599,4581,"JAIME ALVAREZ NORIEGA","INGENIERO AMBIENTAL ","2020-07-20","https://www.contratos.gov.co/consultas/detalleProceso.do?numConstancia=20-4-10938169"]
[329,22532041,"SORAYA  MARIA BACA RODRIGUEZ","2998-2020","PSICOLOGA","01 deJulio de 2020"," 31 de  Julio  de 2020",2800000,2800000,3600,4582,"YARELIS GUERRA CORREA","COORD CENTRO DE SALUD","2020-07-20","https://www.contratos.gov.co/consultas/detalleProceso.do?numConstancia=20-4-10938171"]
[330,8771123,"TEDDY VARGAS MONTERO","2999-2020","ODONTOLOGO","01 deJulio de 2020"," 31 de  Julio  de 2020",1900000,1900000,3601,4583,"YARELIS GUERRA CORREA","COORD CENTRO DE SALUD","2020-07-20","https://www.contratos.gov.co/consultas/detalleProceso.do?numConstancia=20-4-10938174"]
[331,72429429,"YAIR BARRAZA CERVANTES ","3000-2020","MEDICO PROGRAMA CARDIOVASCULAR","01 deJulio de 2020"," 31 de  Julio  de 2020",2300000,2300000,3602,4584,"YARELIS GUERRA CORREA","COORD CENTRO DE SALUD","2020-07-20","https://www.contratos.gov.co/consultas/detalleProceso.do?numConstancia=20-4-10938180"]
[332,1143133250,"LUIS EDUARDO NIEBLES SARMIENTO ","3001-2020","AUXILIAR DE FACTURACION URGENCIA","01 deJulio de 2020"," 31 de  Julio  de 2020",1680000,1680000,3603,4585,"SANDRA SANMARTIN","SUBGERENTE ADMINISTRATIVO","2020-07-20","https://www.contratos.gov.co/consultas/detalleProceso.do?numConstancia=20-4-10938184"]
[333,22646602,"MARTHA CECILIA PICO OROZCO","3002-2020","AUXILIAR DE AUTORIZACIONES ","01 deJulio de 2020"," 31 de  Julio  de 2020",1653600,1653600,3604,4586,"BETTY PERTUZ ","SUBGERENTE CIENTIFICO","2020-07-20","https://www.contratos.gov.co/consultas/detalleProceso.do?numConstancia=20-4-10938186"]
[334,32862644,"NURYS GARCIA DELGADO","3003-2020","AGENTE CALL CENTER","01 deJulio de 2020"," 31 de  Julio  de 2020",1378000,1378000,3605,4587,"WILFRAN JIMENEZ DE LA PEÑA","COORD CENTRO DE SALUD","2020-07-20","https://www.contratos.gov.co/consultas/detalleProceso.do?numConstancia=20-4-10938188"]
[335,1143447904,"STEFFANY BRIGGITTE ALVAREZ LLERENA","3004-2020","RESOLUCION 0273","01 deJulio de 2020"," 31 de  Julio  de 2020",1653000,1653000,3606,4588,"WILFRAN JIMENEZ DE LA PEÑA","COORD CENTRO DE SALUD","2020-07-20","https://www.contratos.gov.co/consultas/detalleProceso.do?numConstancia=20-4-10938190"]
[336,72238499,"CARLOS ANTONIO MATTOS MIRANDA","3005-2020","REFERENCIA Y CONTRAREFERENCIA","01 deJulio de 2020"," 31 de  Julio  de 2020",1776000,1776000,3607,4589,"WILFRAN JIMENEZ DE LA PEÑA","COORD CENTRO DE SALUD","2020-07-20","https://www.contratos.gov.co/consultas/detalleProceso.do?numConstancia=20-4-10938192"]
[337,8505956,"ALBERTO NAVARRO MORALES","3006-2020","AUXILIAR DE FACTURACION URGENCIA","01 deJulio de 2020"," 31 de  Julio  de 2020",1680000,1680000,3608,4590,"SANDRA SANMARTIN","SUBGERENTE ADMINISTRATIVO","2020-07-20","https://www.contratos.gov.co/consultas/detalleProceso.do?numConstancia=20-4-10938194"]
[338,1045716759,"ALFREDO ANGULO JULIAO","3007-2020","AUXILIAR DE FACTURACION URGENCIA","01 deJulio de 2020"," 31 de  Julio  de 2020",1680000,1680000,3609,4591,"SANDRA SANMARTIN","SUBGERENTE ADMINISTRATIVO","2020-07-20","https://www.contratos.gov.co/consultas/detalleProceso.do?numConstancia=20-4-10938195"]
[339,22641629,"ANGELICA CARCAMO ANAYA","3008-2020","AGENTE CALL CENTER","01 deJulio de 2020"," 31 de  Julio  de 2020",1378000,1378000,3610,4592,"WILFRAN JIMENEZ DE LA PEÑA","COORD CENTRO DE SALUD","2020-07-20","https://www.contratos.gov.co/consultas/detalleProceso.do?numConstancia=20-4-10938197"]
[340,32780077,"BELKIS  BOSSIO ESCORCIA","3009-2020","MEDICO DE URGENCIA","01 deJulio de 2020"," 31 de  Julio  de 2020",3072000,3072000,3611,4593,"WILFRAN JIMENEZ DE LA PEÑA","COORD CENTRO DE SALUD","2020-07-20","https://www.contratos.gov.co/consultas/detalleProceso.do?numConstancia=20-4-10938200"]
[341,32736237,"BETTY ROMERO RODRIGUEZ ","3010-2020","PERSONAL  LIMPIEZA Y ASEO URGENCIA","01 deJulio de 2020"," 31 de  Julio  de 2020",1653600,1653600,3612,4594,"JAIME ALVAREZ NORIEGA","INGENIERO AMBIENTAL ","2020-07-20","https://www.contratos.gov.co/consultas/detalleProceso.do?numConstancia=20-4-10938202"]
[342,1042446319,"BRUNYS DEL CARMEN RAMIREZ MUÑOZ","3011-2020","AUXILIAR DE ENFERMERIA PROMOTORA EN SALUD","01 deJulio de 2020"," 31 de  Julio  de 2020",1458000,1458000,3613,4595,"WILFRAN JIMENEZ DE LA PEÑA","COORD CENTRO DE SALUD","2020-07-20","https://www.contratos.gov.co/consultas/detalleProceso.do?numConstancia=20-4-10938206"]
[343,32618430,"CARMEN ROBLES DE LASCARRO","3012-2020","PERSONAL  LIMPIEZA Y ASEO URGENCIA","01 deJulio de 2020"," 31 de  Julio  de 2020",1653600,1653600,3614,4596,"JAIME ALVAREZ NORIEGA","INGENIERO AMBIENTAL ","2020-07-20","https://www.contratos.gov.co/consultas/detalleProceso.do?numConstancia=20-4-10938208"]
[344,1143138226,"CATTERINNE ESTEFANY ESTRADA CARDENAS","3013-2020","AUXILIAR DE FACTURACION URGENCIA","01 deJulio de 2020"," 31 de  Julio  de 2020",1680000,1680000,3615,4597,"SANDRA SANMARTIN","SUBGERENTE ADMINISTRATIVO","2020-07-20","https://www.contratos.gov.co/consultas/detalleProceso.do?numConstancia=20-4-10938211"]
[345,1042418998,"CLAUDIA AREVALO CERVANTES","3014-2020","ENFERMERA JEFE DE PROMOCIÓN Y MANTENIMIENTO DE LA SALUD","01 deJulio de 2020"," 31 de  Julio  de 2020",2300000,2300000,3616,4598,"WILFRAN JIMENEZ DE LA PEÑA","COORD CENTRO DE SALUD","2020-07-20","https://www.contratos.gov.co/consultas/detalleProceso.do?numConstancia=20-4-10938212"]
[346,32749353,"CLAUDIA VALENCIA AGUDELO ","3015-2020","AUXILIAR DE ENFERMERIA DE RUTA INTEGRAL MATERNO PERINATAL","01 deJulio de 2020"," 31 de  Julio  de 2020",1399200,1399200,3617,4599,"WILFRAN JIMENEZ DE LA PEÑA","COORD CENTRO DE SALUD","2020-07-20","https://www.contratos.gov.co/consultas/detalleProceso.do?numConstancia=20-4-10938214"]
[347,32818534,"CONSUELO MENDOZA CASTRO ","3016-2020","AUXILIAR DE ENFERMERIA DE RUTA INTEGRAL MATERNO PERINATAL","01 deJulio de 2020"," 31 de  Julio  de 2020",1166000,1166000,3618,4600,"WILFRAN JIMENEZ DE LA PEÑA","COORD CENTRO DE SALUD","2020-07-20","https://www.contratos.gov.co/consultas/detalleProceso.do?numConstancia=20-4-10938215"]
[348,72436677,"DANILO ENRIQUE GRAVINI DE LA HOZ","3017-2020","AUXILIAR DE ENFERMERIA URGENCIAS","01 deJulio de 2020"," 31 de  Julio  de 2020",1653600,1653600,3619,4601,"WILFRAN JIMENEZ DE LA PEÑA","COORD CENTRO DE SALUD","2020-07-20","https://www.contratos.gov.co/consultas/detalleProceso.do?numConstancia=20-4-10938217"]
[349,1042436934,"DAYANA PAOLA TORRES SOLANO","3018-2020","MEDICO DE URGENCIA","01 deJulio de 2020"," 31 de  Julio  de 2020",4132000,4132000,3620,4602,"WILFRAN JIMENEZ DE LA PEÑA","COORD CENTRO DE SALUD","2020-07-20","https://www.contratos.gov.co/consultas/detalleProceso.do?numConstancia=20-4-10938218"]
[350,1042436213,"DESIRET PAOLA PINTO NARVAEZ","3019-2020","ENFERMERA JEFE URGENCIAS ","01 deJulio de 2020"," 31 de  Julio  de 2020",2280000,2280000,3621,4603,"WILFRAN JIMENEZ DE LA PEÑA","COORD CENTRO DE SALUD","2020-07-20","https://www.contratos.gov.co/consultas/detalleProceso.do?numConstancia=20-4-10938221"]
[351,1042420928,"DINA DEL CARMEN  CUELLO DONADO","3020-2020","AUXILIAR DE FACTURACION URGENCIA","01 deJulio de 2020"," 31 de  Julio  de 2020",1680000,1680000,3622,4604,"WILFRAN JIMENEZ DE LA PEÑA","COORD CENTRO DE SALUD","2020-07-20","https://www.contratos.gov.co/consultas/detalleProceso.do?numConstancia=20-4-10938224"]
[352,8735248,"EDGAR CERVANTES MELGAREJO","3021-2020","MEDICO DE PROMOCIÓN Y MANTENIMIENTO DE LA SALUD","01 deJulio de 2020"," 31 de  Julio  de 2020",2120000,2120000,3623,4605,"WILFRAN JIMENEZ DE LA PEÑA","COORD CENTRO DE SALUD","2020-07-20","https://www.contratos.gov.co/consultas/detalleProceso.do?numConstancia=20-4-10938228"]
[353,72181563,"EDGARDO THORNE GLENN","3022-2020","ODONTOLOGO","01 deJulio de 2020"," 31 de  Julio  de 2020",1900000,1900000,3624,4606,"WILFRAN JIMENEZ DE LA PEÑA","COORD CENTRO DE SALUD","2020-07-20","https://www.contratos.gov.co/consultas/detalleProceso.do?numConstancia=20-4-10938229"]
[354,78302933,"EDIE JAIR GIL","3023-2020","TECNOLOGO EN RADIOLOGIA","01 deJulio de 2020"," 31 de  Julio  de 2020",1800000,1800000,3625,4607,"WILFRAN JIMENEZ DE LA PEÑA","COORD CENTRO DE SALUD","2020-07-20","https://www.contratos.gov.co/consultas/detalleProceso.do?numConstancia=20-4-10938230"]
[355,1045675420,"EIBANIA MOLINA VENERA","3024-2020","AUXILIAR DE ENFERMERIA URGENCIAS","01 deJulio de 2020"," 31 de  Julio  de 2020",1653600,1653600,3626,4608,"WILFRAN JIMENEZ DE LA PEÑA","COORD CENTRO DE SALUD","2020-07-20","https://www.contratos.gov.co/consultas/detalleProceso.do?numConstancia=20-4-10938232"]
[356,22570149,"ELENA BAENA PEÑA","3025-2020","AUXILIAR DE FACTURACION URGENCIA","01 deJulio de 2020"," 31 de  Julio  de 2020",1680000,1680000,3627,4609,"SANDRA SANMARTIN","SUBGERENTE ADMINISTRATIVO","2020-07-20","https://www.contratos.gov.co/consultas/detalleProceso.do?numConstancia=20-4-10938233"]
[357,32871139,"ELLA VIZCAINO SENIOR","3026-2020","ENFERMERA JEFE DE RUTA INTEGRAL MATERNO PERINATAL","01 deJulio de 2020"," 31 de  Julio  de 2020",2760000,2760000,3628,4610,"WILFRAN JIMENEZ DE LA PEÑA","COORD CENTRO DE SALUD","2020-07-20","https://www.contratos.gov.co/consultas/detalleProceso.do?numConstancia=20-4-10938234"]
[358,1143147791,"ERNESTO JUNIOR ROJANO MEZA","3027-2020","TECNOLOGO EN RADIOLOGIA","01 deJulio de 2020"," 31 de  Julio  de 2020",1800000,1800000,3629,4611,"WILFRAN JIMENEZ DE LA PEÑA","COORD CENTRO DE SALUD","2020-07-20","https://www.contratos.gov.co/consultas/detalleProceso.do?numConstancia=20-4-10938237"]
[359,44157204,"ESTHER CECILIA SOLANO BARROS","3028-2020","MEDICO DE URGENCIA","01 deJulio de 2020"," 31 de  Julio  de 2020",3072000,3072000,3630,4612,"WILFRAN JIMENEZ DE LA PEÑA","COORD CENTRO DE SALUD","2020-07-20","https://www.contratos.gov.co/consultas/detalleProceso.do?numConstancia=20-4-10938239"]
[360,8705578,"FERMIN NAVARRO STEFANELL","3029-2020","MEDICO GINECOLOGO DE RUTA INTEGRAL MATERNO PERINATAL","01 deJulio de 2020"," 31 de  Julio  de 2020",7500000,7500000,3631,4613,"WILFRAN JIMENEZ DE LA PEÑA","COORD CENTRO DE SALUD","2020-07-20","https://www.contratos.gov.co/consultas/detalleProceso.do?numConstancia=20-4-10938240"]
[361,55305321,"GELMIS SARAY MARTINEZ DIPPE","3030-2020","AGENTE CALL CENTER","01 deJulio de 2020"," 31 de  Julio  de 2020",1378000,1378000,3632,4614,"WILFRAN JIMENEZ DE LA PEÑA","COORD CENTRO DE SALUD","2020-07-20","https://www.contratos.gov.co/consultas/detalleProceso.do?numConstancia=20-4-10938244"]
[362,32756610,"GENNY GUZMAN NAVARRO","3031-2020","MEDICO DE URGENCIA","01 deJulio de 2020"," 31 de  Julio  de 2020",3072000,3072000,3633,4615,"WILFRAN JIMENEZ DE LA PEÑA","COORD CENTRO DE SALUD","2020-07-20","https://www.contratos.gov.co/consultas/detalleProceso.do?numConstancia=20-4-10938246"]
[363,32825276,"GIOVANNA  ESTHER AFRICANO NAVARRO","3032-2020","NUTRICIONISTA","01 deJulio de 2020"," 31 de  Julio  de 2020",2760000,2760000,3634,4616,"WILFRAN JIMENEZ DE LA PEÑA","COORD CENTRO DE SALUD","2020-07-20","https://www.contratos.gov.co/consultas/detalleProceso.do?numConstancia=20-4-10938247"]
[364,30568187,"HAIDE MEJIA PRADO","3033-2020","PERSONAL  LIMPIEZA Y ASEO URGENCIA","01 deJulio de 2020"," 31 de  Julio  de 2020",1653600,1653600,3635,4617,"JAIME ALVAREZ NORIEGA","INGENIERO AMBIENTAL ","2020-07-20","https://www.contratos.gov.co/consultas/detalleProceso.do?numConstancia=20-4-10938248"]
[365,33005079,"IDALMIS NAVARRO ARROYO","3034-2020","PERSONAL  LIMPIEZA Y ASEO URGENCIA","01 deJulio de 2020"," 31 de  Julio  de 2020",1653600,1653600,3636,4618,"JAIME ALVAREZ NORIEGA","INGENIERO AMBIENTAL ","2020-07-20","https://www.contratos.gov.co/consultas/detalleProceso.do?numConstancia=20-4-10938250"]
[366,72428579,"IVAN ANDRES DOMINGUEZ SAGBINI","3035-2020","MEDICO GINECOLOGO DE RUTA INTEGRAL MATERNO PERINATAL","01 deJulio de 2020"," 31 de  Julio  de 2020",7500000,7500000,3637,4619,"WILFRAN JIMENEZ DE LA PEÑA","COORD CENTRO DE SALUD","2020-07-20","https://www.contratos.gov.co/consultas/detalleProceso.do?numConstancia=20-4-10938252"]
[367,72072808,"JARID BERDUGO COBO ","3036-2020","REFERENCIA Y CONTRAREFERENCIA","01 deJulio de 2020"," 31 de  Julio  de 2020",1776000,1776000,3638,4620,"WILFRAN JIMENEZ DE LA PEÑA","COORD CENTRO DE SALUD","2020-07-20","https://www.contratos.gov.co/consultas/detalleProceso.do?numConstancia=20-4-10938254"]
[368,1143453456,"JEAN DAVID MONTALVO ZULETA","3037-2020","AGENTE CALL CENTER","01 deJulio de 2020"," 31 de  Julio  de 2020",1378000,1378000,3639,4621,"WILFRAN JIMENEZ DE LA PEÑA","COORD CENTRO DE SALUD","2020-07-20","https://www.contratos.gov.co/consultas/detalleProceso.do?numConstancia=20-4-10938256"]
[369,8740611,"JESUS RECUERO LAMADRID","3038-2020","ORIENTADOR","01 deJulio de 2020"," 31 de  Julio  de 2020",1524000,1524000,3640,4622,"WILFRAN JIMENEZ DE LA PEÑA","COORD CENTRO DE SALUD","2020-07-20","https://www.contratos.gov.co/consultas/detalleProceso.do?numConstancia=20-4-10938257"]
[370,1045706679,"JONATHAN ACOSTA MORENO","3039-2020","MEDICO DE URGENCIA","01 deJulio de 2020"," 31 de  Julio  de 2020",3072000,3072000,3641,4623,"WILFRAN JIMENEZ DE LA PEÑA","COORD CENTRO DE SALUD","2020-07-20","https://www.contratos.gov.co/consultas/detalleProceso.do?numConstancia=20-4-10938259"]
[371,8532785,"JOSE GUERRERO ORTIZ","3040-2020","AGENTE CALL CENTER","01 deJulio de 2020"," 31 de  Julio  de 2020",1378000,1378000,3642,4624,"WILFRAN JIMENEZ DE LA PEÑA","COORD CENTRO DE SALUD","2020-07-20","https://www.contratos.gov.co/consultas/detalleProceso.do?numConstancia=20-4-10938263"]
[372,26853643,"JUDITH CHARRIS MACHADO ","3041-2020","ENFERMERA JEFE URGENCIAS ","01 deJulio de 2020"," 31 de  Julio  de 2020",2280000,2280000,3643,4625,"WILFRAN JIMENEZ DE LA PEÑA","COORD CENTRO DE SALUD","2020-07-20","https://www.contratos.gov.co/consultas/detalleProceso.do?numConstancia=20-4-10938265"]
[373,32712489,"JULIA ESTELLA RIVERA TREJOS","3042-2020","MEDICO DE URGENCIA","01 deJulio de 2020"," 31 de  Julio  de 2020",3072000,3072000,3644,4626,"WILFRAN JIMENEZ DE LA PEÑA","COORD CENTRO DE SALUD","2020-07-20","https://www.contratos.gov.co/consultas/detalleProceso.do?numConstancia=20-4-10938266"]
[374,1129513283,"KARINE MILENA LEONES MARQUEZ","3043-2020","AUXILIAR DE FARMACIA ","01 deJulio de 2020"," 31 de  Julio  de 2020",1524000,1524000,3645,4627,"BETTY PERTUZ ","SUBGERENTE CIENTIFICO","2020-07-20","https://www.contratos.gov.co/consultas/detalleProceso.do?numConstancia=20-4-10938269"]
[375,1083433669,"KARLA MARIA SUAREZ MUÑOZ","3044-2020","AUXILIAR DE ENFERMERIA URGENCIAS","01 deJulio de 2020"," 31 de  Julio  de 2020",1653600,1653600,3646,4628,"WILFRAN JIMENEZ DE LA PEÑA","COORD CENTRO DE SALUD","2020-07-20","https://www.contratos.gov.co/consultas/detalleProceso.do?numConstancia=20-4-10938274"]
[376,32894662,"KATTY MACIAS PONTON ","3045-2020","MEDICO DE URGENCIA","01 deJulio de 2020"," 31 de  Julio  de 2020",3072000,3072000,3647,4629,"WILFRAN JIMENEZ DE LA PEÑA","COORD CENTRO DE SALUD","2020-07-20","https://www.contratos.gov.co/consultas/detalleProceso.do?numConstancia=20-4-10938278"]
[377,22642874,"KELLYS JOHANA URUETA SUAREZ","3046-2020","PERSONAL  LIMPIEZA Y ASEO URGENCIA","01 deJulio de 2020"," 31 de  Julio  de 2020",1653600,1653600,3648,4630,"JAIME ALVAREZ NORIEGA","INGENIERO AMBIENTAL ","2020-07-20","https://www.contratos.gov.co/consultas/detalleProceso.do?numConstancia=20-4-10938282"]
[378,1129581013,"KERLY JHOVELIS PITRE MORENO","3047-2020","ENFERMERA JEFE DE PROMOCIÓN Y MANTENIMIENTO DE LA SALUD","01 deJulio de 2020"," 31 de  Julio  de 2020",2300000,2300000,3649,4631,"WILFRAN JIMENEZ DE LA PEÑA","COORD CENTRO DE SALUD","2020-07-20","https://www.contratos.gov.co/consultas/detalleProceso.do?numConstancia=20-4-10938285"]
[379,32879736,"LEISYS MARIA CASTRO OLARTE","3048-2020","AUXILIAR DE FACTURACION URGENCIA","01 deJulio de 2020"," 31 de  Julio  de 2020",1680000,1680000,3650,4632,"SANDRA SANMARTIN","SUBGERENTE ADMINISTRATIVO","2020-07-20","https://www.contratos.gov.co/consultas/detalleProceso.do?numConstancia=20-4-10938309"]
[380,1002157167,"LEODALIZ SALGADO GUERRERO","3049-2020","AGENTE CALL CENTER","01 deJulio de 2020"," 31 de  Julio  de 2020",1400000,1400000,3651,4633,"WILFRAN JIMENEZ DE LA PEÑA","COORD CENTRO DE SALUD","2020-07-20","https://www.contratos.gov.co/consultas/detalleProceso.do?numConstancia=20-4-10938313"]
[381,42205053,"LIBIA ELENA BELEÑO MENDOZA","3050-2020","TRABAJADORA SOCIAL","01 deJulio de 2020"," 31 de  Julio  de 2020",2760000,2760000,3652,4634,"WILFRAN JIMENEZ DE LA PEÑA","COORD CENTRO DE SALUD","2020-07-20","https://www.contratos.gov.co/consultas/detalleProceso.do?numConstancia=20-4-10938316"]
[382,32772357,"LIDYS ESTHER REALES CASTRO ","3051-2020","AUXILIAR DE ENFERMERIA URGENCIAS","01 deJulio de 2020"," 31 de  Julio  de 2020",1653600,1653600,3653,4635,"WILFRAN JIMENEZ DE LA PEÑA","COORD CENTRO DE SALUD","2020-07-20","https://www.contratos.gov.co/consultas/detalleProceso.do?numConstancia=20-4-10938320"]
[383,1042453991,"LILIANA JUDITH MORENO GUTIERREZ","3052-2020","AGENTE CALL CENTER","01 deJulio de 2020"," 31 de  Julio  de 2020",1378000,1378000,3654,4636,"WILFRAN JIMENEZ DE LA PEÑA","COORD CENTRO DE SALUD","2020-07-20","https://www.contratos.gov.co/consultas/detalleProceso.do?numConstancia=20-4-10938324"]
[384,1042436897,"LIZETH PATRICIA BLANQUICETT FERRER","3053-2020","AGENTE CALL CENTER","01 deJulio de 2020"," 31 de  Julio  de 2020",1378000,{"$f":"+H386*1","v":1378000},3655,4637,"WILFRAN JIMENEZ DE LA PEÑA","COORD CENTRO DE SALUD","2020-07-20","https://www.contratos.gov.co/consultas/detalleProceso.do?numConstancia=20-4-10938328"]
[385,32761353,"LORENZA BARRIOS ESTRADA","3054-2020","AUXILIAR DE ENFERMERIA URGENCIAS","01 deJulio de 2020"," 31 de  Julio  de 2020",1653600,1653600,3656,4638,"WILFRAN JIMENEZ DE LA PEÑA","COORD CENTRO DE SALUD","2020-07-20","https://www.contratos.gov.co/consultas/detalleProceso.do?numConstancia=20-4-10938333"]
[{"$f":"+A387+1","v":386},72346265,"LUIS VASQUEZ BALLESTAS","3055-2020","LIDER DE  FACTURACION  EN CENTROS DE SALUD","01 deJulio de 2020"," 31 de  Julio  de 2020",2160000,2160000,3657,4639,"WILFRAN JIMENEZ DE LA PEÑA","COORD CENTRO DE SALUD","2020-07-20","https://www.contratos.gov.co/consultas/detalleProceso.do?numConstancia=20-4-10938336"]
[387,51977895,"LUZ HELENA MORALES MARTINEZ","3056-2020","AUXILIAR DE ARCHIVO ","01 deJulio de 2020"," 31 de  Julio  de 2020",1800000,1800000,3658,4640,"SANDRA SANMARTIN","SUBGERENTE ADMINISTRATIVO","2020-07-20","https://www.contratos.gov.co/consultas/detalleProceso.do?numConstancia=20-4-10938340"]
[388,1042447096,"MARBELYS AHELL RANGEL MERCADO ","3057-2020","AGENTE CALL CENTER","01 deJulio de 2020"," 31 de  Julio  de 2020",1378000,1378000,3659,4641,"WILFRAN JIMENEZ DE LA PEÑA","COORD CENTRO DE SALUD","2020-07-20","https://www.contratos.gov.co/consultas/detalleProceso.do?numConstancia=20-4-10938345"]
[389,22605801,"MARCELA PATRICIA TORRES CARROLL","3058-2020","AUXILIAR DE FACTURACION URGENCIA","01 deJulio de 2020"," 31 de  Julio  de 2020",1680000,1680000,3660,4642,"SANDRA SANMARTIN","SUBGERENTE ADMINISTRATIVO","2020-07-20","https://www.contratos.gov.co/consultas/detalleProceso.do?numConstancia=20-4-10938350"]
[390,1047341586,"MARIA GUADALUPE MUÑOZ MORALES","3059-2020","ODONTOLOGO","01 deJulio de 2020"," 31 de  Julio  de 2020",1900000,1900000,3661,4643,"WILFRAN JIMENEZ DE LA PEÑA","COORD CENTRO DE SALUD","2020-07-20","https://www.contratos.gov.co/consultas/detalleProceso.do?numConstancia=20-4-10938353"]
[391,32668810,"MARIA ISABEL ALVARADO LOBOS","3060-2020","ASISTENTE COORDINACIÓN MÉDICA","01 deJulio de 2020"," 31 de  Julio  de 2020",2400000,2400000,3662,4644,"WILFRAN JIMENEZ DE LA PEÑA","COORD CENTRO DE SALUD","2020-07-20","https://www.contratos.gov.co/consultas/detalleProceso.do?numConstancia=20-4-10938358"]
[392,72043527,"MARIANO DE JESUS BARRIOS ELLES ","3061-2020","COORDINADOR CALL CENTER","01 deJulio de 2020"," 31 de  Julio  de 2020",3000000,3000000,3663,4645,"BETTY PERTUZ ","SUBGERENTE CIENTIFICO","2020-07-20","https://www.contratos.gov.co/consultas/detalleProceso.do?numConstancia=20-4-10938363"]
[393,1140867598,"MARLA HERRERA MERIÑO","3062-2020","AUXILIAR DE ENFERMERIA URGENCIAS","01 deJulio de 2020"," 31 de  Julio  de 2020",1653600,1653600,3664,4646,"WILFRAN JIMENEZ DE LA PEÑA","COORD CENTRO DE SALUD","2020-07-20","https://www.contratos.gov.co/consultas/detalleProceso.do?numConstancia=20-4-10938369"]
[394,55227166,"MARYI PEREZ CASSIANI","3063-2020","ENFERMERA JEFE URGENCIAS ","01 deJulio de 2020"," 31 de  Julio  de 2020",2280000,2280000,3665,4647,"WILFRAN JIMENEZ DE LA PEÑA","COORD CENTRO DE SALUD","2020-07-20","https://www.contratos.gov.co/consultas/detalleProceso.do?numConstancia=20-4-10938373"]
[395,32769980,"MARYORIS POLO HERRERA","3064-2020","AUXILIAR DE ENFERMERIA URGENCIAS","01 deJulio de 2020"," 31 de  Julio  de 2020",1653600,1653600,3666,4648,"WILFRAN JIMENEZ DE LA PEÑA","COORD CENTRO DE SALUD","2020-07-20","https://www.contratos.gov.co/consultas/detalleProceso.do?numConstancia=20-4-10938378"]
[396,32787314,"MILENA HERRERA BENAVIDES","3065-2020","AUXILIAR DE ENFERMERIA MATERNIDAD SEGURA ","01 deJulio de 2020"," 31 de  Julio  de 2020",1399200,1399200,3667,4649,"WILFRAN JIMENEZ DE LA PEÑA","COORD CENTRO DE SALUD","2020-07-20","https://www.contratos.gov.co/consultas/detalleProceso.do?numConstancia=20-4-10938382"]
[397,1045689538,"MILLER TEDYS MEDRANO CASTRO","3066-2020","TECNOLOGO EN RADIOLOGIA","01 deJulio de 2020"," 31 de  Julio  de 2020",1800000,1800000,3668,4650,"WILFRAN JIMENEZ DE LA PEÑA","COORD CENTRO DE SALUD","2020-07-20","https://www.contratos.gov.co/consultas/detalleProceso.do?numConstancia=20-4-10938385"]
[398,32814938,"MOIRA SANDOVAL PEDRAZA","3067-2020","AUXILIAR DE ENFERMERIA PROMOTORA EN SALUD","01 deJulio de 2020"," 31 de  Julio  de 2020",1458000,1458000,3669,4651,"WILFRAN JIMENEZ DE LA PEÑA","COORD CENTRO DE SALUD","2020-07-20","https://www.contratos.gov.co/consultas/detalleProceso.do?numConstancia=20-4-10938389"]
[399,22443679,"MONICA PEREZ RODRIGUEZ ","3068-2020","FISIOTERAPEUTA ","01 deJulio de 2020"," 31 de  Julio  de 2020",2700000,2700000,3670,4652,"WILFRAN JIMENEZ DE LA PEÑA","COORD CENTRO DE SALUD","2020-07-20","https://www.contratos.gov.co/consultas/detalleProceso.do?numConstancia=20-4-10938395"]
[400,32756032,"MONICA RAMIREZ CORREAL","3069-2020","AUXILIAR DE ENFERMERIA URGENCIAS","01 deJulio de 2020"," 31 de  Julio  de 2020",1653600,1653600,3671,4653,"WILFRAN JIMENEZ DE LA PEÑA","COORD CENTRO DE SALUD","2020-07-20","https://www.contratos.gov.co/consultas/detalleProceso.do?numConstancia=20-4-10938399"]
[401,1140877960,"NICAULIS RODRIGUEZ GOMEZ","3070-2020","AUXILIAR DE FACTURACION URGENCIA","01 deJulio de 2020"," 31 de  Julio  de 2020",1680000,1680000,3672,4654,"SANDRA SANMARTIN","SUBGERENTE ADMINISTRATIVO","2020-07-20","https://www.contratos.gov.co/consultas/detalleProceso.do?numConstancia=20-4-10938403"]
[402,1048267612,"OLGA DE AVILA ARRIETA","3071-2020","MEDICO DE RUTA INTEGRAL MATERNO PERINATAL ","01 deJulio de 2020"," 31 de  Julio  de 2020",5088000,5088000,3673,4655,"WILFRAN JIMENEZ DE LA PEÑA","COORD CENTRO DE SALUD","2020-07-20","https://www.contratos.gov.co/consultas/detalleProceso.do?numConstancia=20-4-10938406"]
[403,1081799915,"PAULA ANDREA PIMIENTA ANDRADES","3072-2020","AUXILIAR DE ENFERMERIA URGENCIAS","01 deJulio de 2020"," 31 de  Julio  de 2020",1653600,1653600,3674,4656,"WILFRAN JIMENEZ DE LA PEÑA","COORD CENTRO DE SALUD","2020-07-20","https://www.contratos.gov.co/consultas/detalleProceso.do?numConstancia=20-4-10938412"]
[404,72231273,"PEDRO RAFAEL PEREZ HERNANDEZ","3073-2020","AGENTE CALL CENTER","01 deJulio de 2020"," 31 de  Julio  de 2020",1378000,1378000,3675,4657,"WILFRAN JIMENEZ DE LA PEÑA","COORD CENTRO DE SALUD","2020-07-20","https://www.contratos.gov.co/consultas/detalleProceso.do?numConstancia=20-4-10938416"]
[405,9191876,"RAFAEL MOLINA CASTILLO","3074-2020","AUXILIAR DE FACTURACION URGENCIA","01 deJulio de 2020"," 31 de  Julio  de 2020",1680000,1680000,3676,4658,"SANDRA SANMARTIN","SUBGERENTE ADMINISTRATIVO","2020-07-20","https://www.contratos.gov.co/consultas/detalleProceso.do?numConstancia=20-4-10938419"]
[406,72147873,"RAMIRO ANTONIO SALAS LARA ","3075-2020","REGENTE DE FARMACIA ","01 deJulio de 2020"," 31 de  Julio  de 2020",2280000,2280000,3677,4659,"BETTY PERTUZ ","SUBGERENTE CIENTIFICO","2020-07-20","https://www.contratos.gov.co/consultas/detalleProceso.do?numConstancia=20-4-10938503"]
[407,32613493,"ROSA ESCOBAR FANDIÑO","3076-2020","AUXILIAR DE ENFERMERIA URGENCIAS","01 deJulio de 2020"," 31 de  Julio  de 2020",1653600,1653600,3678,4660,"WILFRAN JIMENEZ DE LA PEÑA","COORD CENTRO DE SALUD","2020-07-20","https://www.contratos.gov.co/consultas/detalleProceso.do?numConstancia=20-4-10938505"]
[408,1042435408,"SANDY PATRICIA BRUJES GUERRERO","3077-2020","AGENTE CALL CENTER","01 deJulio de 2020"," 31 de  Julio  de 2020",1378000,1378000,3679,4661,"WILFRAN JIMENEZ DE LA PEÑA","COORD CENTRO DE SALUD","2020-07-20","https://www.contratos.gov.co/consultas/detalleProceso.do?numConstancia=20-4-10938507"]
[409,1045724863,"SERGIO ANDRES SALAS SALAS  ","3078-2020","MEDICO DE URGENCIA","01 deJulio de 2020"," 31 de  Julio  de 2020",3072000,3072000,3680,4662,"WILFRAN JIMENEZ DE LA PEÑA","COORD CENTRO DE SALUD","2020-07-20","https://www.contratos.gov.co/consultas/detalleProceso.do?numConstancia=20-4-10938510"]
[410,1129577912,"SOLANGI PAOLA FONTALVO JIMENEZ","3079-2020","AGENTE CALL CENTER","01 deJulio de 2020"," 31 de  Julio  de 2020",1378000,1378000,3681,4663,"WILFRAN JIMENEZ DE LA PEÑA","COORD CENTRO DE SALUD","2020-07-20","https://www.contratos.gov.co/consultas/detalleProceso.do?numConstancia=20-4-10938511"]
[411,1143143512,"TAIDETH ALEXANDRA BRACHO DAVILA","3080-2020","AUXILIAR DE ENFERMERIA URGENCIAS","01 deJulio de 2020"," 31 de  Julio  de 2020",1653600,1653600,3682,4664,"WILFRAN JIMENEZ DE LA PEÑA","COORD CENTRO DE SALUD","2020-07-20","https://www.contratos.gov.co/consultas/detalleProceso.do?numConstancia=20-4-10938512"]
[412,44190907,"YENIS AHUMADA LECHUGA","3081-2020","ESPECIALISTA  - SALUD OCUPACIONAL ","01 deJulio de 2020"," 31 de  Julio  de 2020",5000000,5000000,3776,4768,"JUAN  ESTEBAN SANCHEZ PAEZ ","GERENTE"]
[413,1045692313,"VANESSA CASSIANI PEREZ","3082-2020","RESOLUCION 0273","01 deJulio de 2020"," 31 de  Julio  de 2020",1653000,1653000,3684,4666,"WILFRAN JIMENEZ DE LA PEÑA","COORD CENTRO DE SALUD","2020-07-20","https://www.contratos.gov.co/consultas/detalleProceso.do?numConstancia=20-4-10938519"]
[414,52703063,"XIOMARA  BELLO ORTEGA","3083-2020","AUXILIAR DE ENFERMERIA URGENCIAS","01 deJulio de 2020"," 31 de  Julio  de 2020",1653600,1653600,3685,4667,"WILFRAN JIMENEZ DE LA PEÑA","COORD CENTRO DE SALUD","2020-07-20","https://www.contratos.gov.co/consultas/detalleProceso.do?numConstancia=20-4-10938521"]
[415,32816824,"YANETH CARO VITOLA","3084-2020","AUXILIAR DE ENFERMERIA DE PROMOCIÓN Y MANTENIMIENTO DE LA SALUD","01 deJulio de 2020"," 31 de  Julio  de 2020",1166000,1166000,3686,4668,"WILFRAN JIMENEZ DE LA PEÑA","COORD CENTRO DE SALUD","2020-07-20","https://www.contratos.gov.co/consultas/detalleProceso.do?numConstancia=20-4-10938523"]
[416,44159754,"YANIRE CARLINA CASTRO ESCALANTE","3085-2020","MEDICO GINECOLOGO DE RUTA INTEGRAL MATERNO PERINATAL","01 deJulio de 2020"," 31 de  Julio  de 2020",7500000,7500000,3687,4669,"WILFRAN JIMENEZ DE LA PEÑA","COORD CENTRO DE SALUD","2020-07-20","https://www.contratos.gov.co/consultas/detalleProceso.do?numConstancia=20-4-10938526"]
[417,1129516318,"YEIMIS PATRICIA GONZALEZ ARAGON ","3086-2020","AGENTE CALL CENTER","01 deJulio de 2020"," 31 de  Julio  de 2020",1378000,1378000,3688,4670,"WILFRAN JIMENEZ DE LA PEÑA","COORD CENTRO DE SALUD","2020-07-20","https://www.contratos.gov.co/consultas/detalleProceso.do?numConstancia=20-4-10938527"]
[418,1143452684,"YEISON MISAEL DUARTE CALDERON","3087-2020","CONDUCTOR DE AMBULANCIA","01 deJulio de 2020"," 31 de  Julio  de 2020",2160000,2160000,3689,4671,"BETTY PERTUZ ","SUBGERENTE CIENTIFICO","2020-07-20","https://www.contratos.gov.co/consultas/detalleProceso.do?numConstancia=20-4-10938529"]
[419,55246222,"YESIKA ANGULO MADRID","3088-2020","FISIOTERAPEUTA ","01 deJulio de 2020"," 31 de  Julio  de 2020",2280000,2280000,3690,4672,"WILFRAN JIMENEZ DE LA PEÑA","COORD CENTRO DE SALUD","2020-07-20","https://www.contratos.gov.co/consultas/detalleProceso.do?numConstancia=20-4-10938531"]
[420,1140864808,"YONELIS MARGARITA VILLALVA LUQUE","3089-2020","AGENTE CALL CENTER","01 deJulio de 2020"," 31 de  Julio  de 2020",1378000,1378000,3691,4673,"WILFRAN JIMENEZ DE LA PEÑA","COORD CENTRO DE SALUD","2020-07-20","https://www.contratos.gov.co/consultas/detalleProceso.do?numConstancia=20-4-10938534"]
[421,1042436116,"YURANIS SOTO OSORIO","3090-2020","AUXILIAR DE ENFERMERIA URGENCIAS","01 deJulio de 2020"," 31 de  Julio  de 2020",1653600,1653600,3692,4674,"WILFRAN JIMENEZ DE LA PEÑA","COORD CENTRO DE SALUD","2020-07-20","https://www.contratos.gov.co/consultas/detalleProceso.do?numConstancia=20-4-10938536"]
[422,1045226744,"YURISABEL CERVANTES VESGA ","3091-2020","MEDICO DE URGENCIA","01 deJulio de 2020"," 31 de  Julio  de 2020",3072000,3072000,3693,4675,"WILFRAN JIMENEZ DE LA PEÑA","COORD CENTRO DE SALUD","2020-07-20","https://www.contratos.gov.co/consultas/detalleProceso.do?numConstancia=20-4-10938537"]
[423,1085110564,"LISBETH JOHANA VIVIC GARCIA","3092-2020","AUXILIAR DE ODONTOLOGIA","01 deJulio de 2020"," 31 de  Julio  de 2020",1166000,1166000,3694,4676,"WILFRAN JIMENEZ DE LA PEÑA","COORD CENTRO DE SALUD","2020-07-20","https://www.contratos.gov.co/consultas/detalleProceso.do?numConstancia=20-4-10938540"]
[424,19535725,"RAFAEL  ALFONSO PALACIO BLANCO","3093-2020","MEDICO DE URGENCIA","01 deJulio de 2020"," 31 de  Julio  de 2020",3072000,3072000,3695,4677,"WILFRAN JIMENEZ DE LA PEÑA","COORD CENTRO DE SALUD","2020-07-20","https://www.contratos.gov.co/consultas/detalleProceso.do?numConstancia=20-4-10938543"]
[425,32771752,"ANETHS CECILIA ARGOTE TORRES","3094-2020","AGENTE CALL CENTER","01 deJulio de 2020"," 31 de  Julio  de 2020",1378000,1378000,3696,4678,"WILFRAN JIMENEZ DE LA PEÑA","COORD CENTRO DE SALUD","2020-07-20","https://www.contratos.gov.co/consultas/detalleProceso.do?numConstancia=20-4-10938545"]
[426,72193875,"CRISTIAN DE JESUS BARRAZA VILLALBA","3095-2020","CONDUCTOR DE AMBULANCIA","01 deJulio de 2020"," 31 de  Julio  de 2020",2160000,2160000,3697,4679,"BETTY PERTUZ ","SUBGERENTE CIENTIFICO","2020-07-20","https://www.contratos.gov.co/consultas/detalleProceso.do?numConstancia=20-4-10938546"]
[427,72203756,"GUILLERMO DE JESUS MEDINA VASQUEZ ","3096-2020","AGENTE CALL CENTER","01 deJulio de 2020"," 31 de  Julio  de 2020",1378000,1378000,3698,4680,"WILFRAN JIMENEZ DE LA PEÑA","COORD CENTRO DE SALUD","2020-07-20","https://www.contratos.gov.co/consultas/detalleProceso.do?numConstancia=20-4-10938548"]
[428,32862578,"MILDRIS PATRICIA QUIJANO VILORIA","3097-2020","HIGIENISTA ORAL","01 deJulio de 2020"," 31 de  Julio  de 2020",1116000,1116000,3699,4681,"WILFRAN JIMENEZ DE LA PEÑA","COORD CENTRO DE SALUD","2020-07-20","https://www.contratos.gov.co/consultas/detalleProceso.do?numConstancia=20-4-10938550"]
[429,1045731190,"FELIX  ALFONSO ORTIZ GARCIA ","3098-2020","ORIENTADOR","01 deJulio de 2020"," 31 de  Julio  de 2020",1524000,1524000,3700,4682,"WILFRAN JIMENEZ DE LA PEÑA","COORD CENTRO DE SALUD","2020-07-20","https://www.contratos.gov.co/consultas/detalleProceso.do?numConstancia=20-4-10938552"]
[430,1047230116,"NORIS MARIA GUTIERREZ ACOSTA","3099-2020","AUXILIAR FACTURACION URGENCIAS","01 deJulio de 2020"," 31 de  Julio  de 2020",1680000,1680000,3701,4683,"SANDRA SANMARTIN","SUBGERENTE ADMINISTRATIVO","2020-07-20","https://www.contratos.gov.co/consultas/detalleProceso.do?numConstancia=20-4-10938553"]
[431,1042454836,"YARLEYDIS SMITH LIZARAZO MOLINA","3100-2020","PSICOLOGA","01 deJulio de 2020"," 31 de  Julio  de 2020",3000000,3000000,3702,4684,"WILFRAN JIMENEZ DE LA PEÑA","COORD CENTRO DE SALUD","2020-07-20","https://www.contratos.gov.co/consultas/detalleProceso.do?numConstancia=20-4-10938554"]
[432,1006745656,"ANGIE FERNANDA BELEÑO RIVERO","3101-2020","MEDICO DE URGENCIA","01 deJulio de 2020"," 31 de  Julio  de 2020",3072000,3072000,3703,4685,"WILFRAN JIMENEZ DE LA PEÑA","COORD CENTRO DE SALUD","2020-07-20","https://www.contratos.gov.co/consultas/detalleProceso.do?numConstancia=20-4-10938557"]
[433,1129529382,"DAVID ALEJANDRO MIRANDA TORO","3102-2020","MEDICO DE URGENCIA","01 deJulio de 2020"," 31 de  Julio  de 2020",3072000,3072000,3704,4686,"WILFRAN JIMENEZ DE LA PEÑA","COORD CENTRO DE SALUD","2020-07-20","https://www.contratos.gov.co/consultas/detalleProceso.do?numConstancia=20-4-10938559"]
[434,1052949649,"DILIANA GARCIA JIMENEZ","3103-2020","ENFERMERA JEFE URGENCIAS ","01 deJulio de 2020"," 31 de  Julio  de 2020",2280000,2280000,3705,4687,"WILFRAN JIMENEZ DE LA PEÑA","COORD CENTRO DE SALUD","2020-07-20","https://www.contratos.gov.co/consultas/detalleProceso.do?numConstancia=20-4-10938561"]
[435,7469739,"LEOVALDO MENDOZA PAREJO","3104-2020","ORIENTADOR","01 deJulio de 2020"," 31 de  Julio  de 2020",1524000,1524000,3706,4688,"WILFRAN JIMENEZ DE LA PEÑA","COORD CENTRO DE SALUD","2020-07-20","https://www.contratos.gov.co/consultas/detalleProceso.do?numConstancia=20-4-10938562"]
[436,1129570673,"JOSE ANTONIO ZAMORA CERA","3105-2020","MEDICO  URGENCIA ","01 deJulio de 2020"," 31 de  Julio  de 2020",3072000,3072000,3707,4689,"WILFRAN JIMENEZ DE LA PEÑA","COORD CENTRO DE SALUD","2020-07-20","https://www.contratos.gov.co/consultas/detalleProceso.do?numConstancia=20-4-10938564"]
[437,15074329,"RAFAEL ANTONIO RICO","3107-2020","ORIENTADOR","01 deJulio de 2020"," 31 de  Julio  de 2020",1524000,1524000,3709,4691,"WILFRAN JIMENEZ DE LA PEÑA","COORD CENTRO DE SALUD","2020-07-20","https://www.contratos.gov.co/consultas/detalleProceso.do?numConstancia=20-4-10938566"]
[438,9143862,"JOSE LUIS LEAL CORREA","3108-2020","AUXILIAR DE FARMACIA ","01 deJulio de 2020"," 31 de  Julio  de 2020",1270000,1270000,3710,4692,"BETTY PERTUZ ","SUBGERENTE CIENTIFICO","2020-07-20","https://www.contratos.gov.co/consultas/detalleProceso.do?numConstancia=20-4-10938567"]
[439,72303740,"ANDRES JOSE NAVARRO CARBONELL","3109-2020","AUXILIAR  ADMINISTRATIVO  DE FARMACIA ","01 deJulio de 2020"," 31 de  Julio  de 2020",3000000,3000000,3711,4693,"BETTY PERTUZ ","SUBGERENTE CIENTIFICO","2020-07-20","https://www.contratos.gov.co/consultas/detalleProceso.do?numConstancia=20-4-10938569"]
[440,9132998,"GABRIEL ARIAS RAMIREZ","3110-2020","QUIMICO FARMACEUTICO","01 deJulio de 2020"," 31 de  Julio  de 2020",3600000,3600000,3712,4694,"BETTY PERTUZ ","SUBGERENTE CIENTIFICO","2020-07-20","https://www.contratos.gov.co/consultas/detalleProceso.do?numConstancia=20-4-10938570"]
[441,22515180,"YEIMY JHOANA SALTARIN ACUÑA","3111-2020","AUXILIAR  ADMINISTRATIVO  DE FARMACIA ","01 deJulio de 2020"," 31 de  Julio  de 2020",1900000,1900000,3713,4695,"BETTY PERTUZ ","SUBGERENTE CIENTIFICO","2020-07-20","https://www.contratos.gov.co/consultas/detalleProceso.do?numConstancia=20-4-10938571"]
[442,55225095,"YURAIMA GUTIERREZ HERNANDEZ","3112-2020","REGENTE DE FARMACIA ","01 deJulio de 2020"," 31 de  Julio  de 2020",2280000,2280000,3714,4696,"BETTY PERTUZ ","SUBGERENTE CIENTIFICO","2020-07-20","https://www.contratos.gov.co/consultas/detalleProceso.do?numConstancia=20-4-10938574"]
[443,72432974,"EDER JOSE CASTRO PINTO","3113-2020","ORIENTADOR","01 deJulio de 2020"," 31 de  Julio  de 2020",1524000,1524000,3715,4697,"BETTY PERTUZ ","SUBGERENTE CIENTIFICO","2020-07-20","https://www.contratos.gov.co/consultas/detalleProceso.do?numConstancia=20-4-10938576"]
[444,37577926,"ALCIRA CAMPO ALCOZER","3114-2020","PERSONAL  LIMPIEZA Y ASEO","01 deJulio de 2020"," 31 de  Julio  de 2020",1215000,1215000,3716,4698,"JAIME ALVAREZ NORIEGA","INGENIERO AMBIENTAL ","2020-07-20","https://www.contratos.gov.co/consultas/detalleProceso.do?numConstancia=20-4-10938578"]
[445,22694020,"LEDIS DEL SOCORRO BACA ORTIZ","3115-2020","AUXILIAR DE ENFERMERIA","01 deJulio de 2020"," 31 de  Julio  de 2020",1166000,1166000,3717,4699,"BETTY PERTUZ ","SUBGERENTE CIENTIFICO","2020-07-20","https://www.contratos.gov.co/consultas/detalleProceso.do?numConstancia=20-4-10938579"]
[446,7438585,"NESTOR CHARRIS MARIN","3116-2020","ORIENTADOR","01 deJulio de 2020"," 31 de  Julio  de 2020",1270000,1270000,3718,4700,"SANDRA SANMARTIN","SUBGERENTE ADMINISTRATIVO","2020-07-20","https://www.contratos.gov.co/consultas/detalleProceso.do?numConstancia=20-4-10938580"]
[447,8750360,"OSCAR HUMBERTO  GERALDINO CAPDEVILLA","3117-2020","MEDICO CONSULTA EXTERNA Y APOYO COORDINACION MEDICA ","01 deJulio de 2020"," 31 de  Julio  de 2020",4240000,{"$f":"+H449*1","v":4240000},3719,4701,"BETTY PERTUZ ","SUBGERENTE CIENTIFICO","2020-07-20","https://www.contratos.gov.co/consultas/detalleProceso.do?numConstancia=20-4-10938581"]
[448,32811232,"YOLANDA SOFIA MORALES BERMUDEZ","3118-2020","VACUNADOR(A) CUARTO FRIO","01 deJulio de 2020"," 31 de  Julio  de 2020",1600000,1600000,3720,4702,"ALCIRA DEL SOCORRO GOMEZ ARRIETA","COORDINADORA PAI","2020-07-20","https://www.contratos.gov.co/consultas/detalleProceso.do?numConstancia=20-4-10938582"]
[449,60355382,"YEIGNE CONTRERAS BAYONA","3119-2020","VACUNADOR(A)","01 deJulio de 2020"," 31 de  Julio  de 2020",1400000,1400000,3721,4703,"ALCIRA DEL SOCORRO GOMEZ ARRIETA","COORDINADORA PAI","2020-07-20","https://www.contratos.gov.co/consultas/detalleProceso.do?numConstancia=20-4-10938583"]
[{"$f":"+A451+1","v":450},64543985,"ALCIRA GOMEZ ARRIETA ","3120-2020"," COORDINADORA PAI ","01 deJulio de 2020"," 31 de  Julio  de 2020",4000000,4000000,3722,4704,"NILSA ARIZA MARQUEZ","COORDINADOR PYP","2020-07-20","https://www.contratos.gov.co/consultas/detalleProceso.do?numConstancia=20-4-10938584"]
[451,55236945,"ADRIANA PATRICIA MARQUEZ CANTILLO","3121-2020","VACUNADOR(A)","01 deJulio de 2020"," 31 de  Julio  de 2020",1400000,1400000,3723,4705,"ALCIRA DEL SOCORRO GOMEZ ARRIETA","COORDINADORA PAI","2020-07-20","https://www.contratos.gov.co/consultas/detalleProceso.do?numConstancia=20-4-10938585"]
[452,22643912,"ANGELA ROSA MORALES SANMARTIN","3122-2020","VACUNADOR(A)","01 deJulio de 2020"," 31 de  Julio  de 2020",1400000,1400000,3724,4706,"ALCIRA DEL SOCORRO GOMEZ ARRIETA","COORDINADORA PAI","2020-07-20","https://www.contratos.gov.co/consultas/detalleProceso.do?numConstancia=20-4-10938587"]
[453,22467133,"ESMERALDA COTE BORNACELY ","3123-2020","VACUNADOR(A)","01 deJulio de 2020"," 31 de  Julio  de 2020",1400000,1400000,3725,4707,"ALCIRA DEL SOCORRO GOMEZ ARRIETA","COORDINADORA PAI","2020-07-20","https://www.contratos.gov.co/consultas/detalleProceso.do?numConstancia=20-4-10938588"]
[454,8767993,"HAROLD MANUEL CABARCAS GONZALEZ","3124-2020","VACUNADOR(A)","01 deJulio de 2020"," 31 de  Julio  de 2020",1400000,1400000,3726,4708,"ALCIRA DEL SOCORRO GOMEZ ARRIETA","COORDINADORA PAI","2020-07-20","https://www.contratos.gov.co/consultas/detalleProceso.do?numConstancia=20-4-10938589"]
[455,64578458,"ILDA DEL PILAR PACHECO AGUIRRE","3125-2020","VACUNADOR(A)","01 deJulio de 2020"," 31 de  Julio  de 2020",1400000,1400000,3727,4709,"ALCIRA DEL SOCORRO GOMEZ ARRIETA","COORDINADORA PAI","2020-07-20","https://www.contratos.gov.co/consultas/detalleProceso.do?numConstancia=20-4-10938591"]
[456,32865375,"LEDIA DEL CARMEN MARTINEZ DE MOYA","3126-2020","VACUNADOR(A)","01 deJulio de 2020"," 31 de  Julio  de 2020",1400000,1400000,3728,4710,"ALCIRA DEL SOCORRO GOMEZ ARRIETA","COORDINADORA PAI","2020-07-20","https://www.contratos.gov.co/consultas/detalleProceso.do?numConstancia=20-4-10938592"]
[457,44159904,"LIZLEIDYS OSORIO DOMINGUEZ","3127-2020","ENFERMERA-JEFE TERRENO PAI","01 deJulio de 2020"," 31 de  Julio  de 2020",2120000,2120000,3729,4711,"ALCIRA DEL SOCORRO GOMEZ ARRIETA","COORDINAODRA PAI","2020-07-20","https://www.contratos.gov.co/consultas/detalleProceso.do?numConstancia=20-4-10938595"]
[458,32812585,"NESLIE OSORIO PARODIS","3128-2020","VACUNADOR(A)","01 deJulio de 2020"," 31 de  Julio  de 2020",1400000,1400000,3730,4712,"ALCIRA DEL SOCORRO GOMEZ ARRIETA","COORDINADORA PAI","2020-07-20","https://www.contratos.gov.co/consultas/detalleProceso.do?numConstancia=20-4-10938596"]
[459,32863854,"OLGA BARRIOS BACCA","3129-2020","VACUNADOR(A)","01 deJulio de 2020"," 31 de  Julio  de 2020",1400000,1400000,3731,4713,"ALCIRA DEL SOCORRO GOMEZ ARRIETA","COORDINADORA PAI","2020-07-20","https://www.contratos.gov.co/consultas/detalleProceso.do?numConstancia=20-4-10938601"]
[460,22528921,"ROSARIO DEL CARMEN CAMARGO GOMEZ","3130-2020","VACUNADOR(A)","01 deJulio de 2020"," 31 de  Julio  de 2020",1400000,1400000,3732,4714,"ALCIRA DEL SOCORRO GOMEZ ARRIETA","COORDINADORA PAI","2020-07-20","https://www.contratos.gov.co/consultas/detalleProceso.do?numConstancia=20-4-10938602"]
[461,32684298,"XIOMARA RODRIGUEZ CANTILLO","3131-2020","VACUNADOR(A)","01 deJulio de 2020"," 31 de  Julio  de 2020",1400000,1400000,3733,4715,"ALCIRA DEL SOCORRO GOMEZ ARRIETA","COORDINADORA PAI","2020-07-20","https://www.contratos.gov.co/consultas/detalleProceso.do?numConstancia=20-4-10938603"]
[462,1042428053,"YURANIS DEL CARMEN BLANQUICETT MORENO","3132-2020","VACUNADOR(A)","01 deJulio de 2020"," 31 de  Julio  de 2020",1400000,1400000,3734,4716,"ALCIRA DEL SOCORRO GOMEZ ARRIETA","COORDINADORA PAI","2020-07-20","https://www.contratos.gov.co/consultas/detalleProceso.do?numConstancia=20-4-10938605"]
[463,32867404,"PATRICIA DEL CARMEN IBAÑEZ OSORIO","3133-2020","VACUNADOR(A)","01 deJulio de 2020"," 31 de  Julio  de 2020",1400000,1400000,3735,4717,"ALCIRA DEL SOCORRO GOMEZ ARRIETA","COORDINADORA PAI","2020-07-20","https://www.contratos.gov.co/consultas/detalleProceso.do?numConstancia=20-4-10938607"]
[464,55307392,"LLILIANA   PATRICIA   PASTRANA  PARODI","3134-2020","AUXILIAR ADMINISTRATIVO -FACTURACION","01 deJulio de 2020"," 31 de  Julio  de 2020",2000000,2000000,3736,4718,"SANDRA SANMARTIN","SUBGERENTE ADMINISTRATIVO","2020-07-20","https://www.contratos.gov.co/consultas/detalleProceso.do?numConstancia=20-4-10938608"]
[{"$f":"+A469+1","v":467},1047230511,"BERLIS PAOLA  CASTRO DE MOYA ","3136-2020","ABOGADO EXTERNO","01 deJulio de 2020","31  de Agosto de  2020",5800000,{"$f":"+H467*2","v":11600000},3793,4792,"JUAN  ESTEBAN SANCHEZ PAEZ ","GERENTE","2020-07-20"]
[{"$f":"+A466+1","v":465},19585247,"GENITO VILLAMIL CONTRERAS","3106-2020","CONDUCTOR DE AMBULANCIA","13 de Julio de  2020"," 31 de  Julio  de 2020",{"$f":"2160000/30*19","v":1368000},1368000,3774,4766,"BETTY PERTUZ ","SUBGERENTE CIENTIFICO","2020-07-20","https://www.contratos.gov.co/consultas/detalleProceso.do?numConstancia=20-4-10938565"]
[466,32892034,"SANDY MARIA DE LA HOZ JIMENEZ","3137-2020","ASESOR  DE ´ PRESUPUESTO ","01 deJulio de 2020","31 de Julio de 2020",4500000,4500000,3776,4768,"SANDRA SANMARTIN",null,"2020-07-20"]
[{"$f":"+A469+1","v":467},1001877015,"JHORGI MISAEL MENESES BERRIO","3138-2020","MEDICO DE URGENCIA ","15 de Julio de 2020"," 31 de  Julio  de 2020",{"$f":"3072000/30*15","v":1536000},{"$f":"+H470*1","v":1536000},3796,null,"SERGIO BOVEA MARIN","COORD CENTRO DE SALUD","2020-07-20"]
[468,22819397,"MARIBEL PONCE  MACHACADO ","3139-2020","AUDITOR DE CALIDAD Y SERVICIOS DE SALUD","15 de Julio de 2020"," 31 de  Julio  de 2020",{"$f":"3500000/30*15","v":1750000},{"$f":"+H471*1","v":1750000},3797,null,"BETTY PERTUZ ","SUBGERENTE CIENTIFICO","2020-07-20"]
[469,1043027730,"MANUEL JOSE URICOCHEA VASQUEZ","3140-2020","GESTION  DOCUMENTAL TALENTO HUMANO ","15 de Julio de 2020"," 31 de  Julio  de 2020",{"$f":"1900000/30*15","v":950000},{"$f":"+H472*1","v":950000},3798,null,"FABIAN  COLPAS OROZCO ","JEFE  TALENTO  HUMANO","2020-07-20"]
[470,32763358,"LOLA SABALZA MARTINEZ","3141-2020","AUXILIAR DE ENFERMERIA URGENCIA","15 de Julio de 2020"," 31 de  Julio  de 2020",{"$f":"1653000/30*15","v":826500},826500,3799,null,"SERGIO BOVEA MARIN","COORD CENTRO DE SALUD","2020-07-20"]
[471,22565455,"KARIN PAOLA VIZCAINO  SOLANO","3142-2020","MEDICO DE RUTA INTEGRAL MATERNO PERINATAL","15 de Julio de 2020"," 31 de  Julio  de 2020",1802000,1802000,3800,null,"SERGIO BOVEA MARIN","COOIDINADOR PYP ","2020-07-20"]
[472,72430943,"JOHN HENRY REYES VERGARA ","3143-2020","ORIENTADOR","15 de Julio de 2020","31 de Julio de 2020",{"$f":"1524000/30*15","v":762000},762000,3801,null,"SERGIO BOVEA MARIN","COORDINADOR CENTRO ","2020-07-20"]

{"sheet":"PIC JULIO 2020","index":1,"n_rows":37,"n_cols":15,"rows_kept":37,"cut":false,"hidden":false,"merged":[]}
["CEDULA","NOMBRE Y APELLIDO","#OPS AÑO","OBJETO DEL CONTRATO","FECHA INICIO","FECHA TERMINACION ","VALOR MENSUAL","VALOR TOTAL ","SUPERVISOR ","CARGO","RUBRO PRESUPUESTAL ","CDP","RP","FECHA SECOP ","LINK SECOP "]
[22668428,"ANABELL VELASQUEZ FERNANDEZ ","212-2020 -PIC","COORDINADORA  PIC ","01 julio de 2020","31 de Julio de 2020",5800000,{"$f":"G2*1","v":5800000},"BETTY PERTUZ","SUBGERENTE CIENTIFICO","PIC",{"$f":"VLOOKUP(A2:A36,'[1]PIC JULIO 2020'!$A$2:$O$40,15,0)","v":3737},{"$f":"VLOOKUP(A2:A36,'[1]PIC JULIO 2020'!$A$2:$P$37,16,0)","v":4719},{"$f":"VLOOKUP(A2:A37,'[2]PIC JULIO 2020'!$A$2:$Q$40,17,0)","v":"2020-07-20"},"https://www.contratos.gov.co/consultas/detalleProceso.do?numConstancia=20-4-10938613"]
[32874188,"JALICSSA ARRIETA ORTEGA","213-2020 -PIC","APOYO  GESTION  PIC ","01 julio de 2020","31 de Julio de 2020",3500000,{"$f":"G3*1","v":3500000},"ANABELL VELASQUEZ","COORDINADORA PIC ","PIC",{"$f":"VLOOKUP(A3:A37,'[1]PIC JULIO 2020'!$A$2:$O$40,15,0)","v":3738},{"$f":"VLOOKUP(A3:A37,'[1]PIC JULIO 2020'!$A$2:$P$37,16,0)","v":4720},{"$f":"VLOOKUP(A3:A37,'[2]PIC JULIO 2020'!$A$2:$Q$40,17,0)","v":"2020-07-20"},"https://www.contratos.gov.co/consultas/detalleProceso.do?numConstancia=20-4-10938614"]
[32744712,"CARMEN MARIA CORONADO ESCORCIA","214-2020 -PIC","ENFERMERA JEFE -PIC","01 julio de 2020","31 de Julio de 2020",2500000,2500000,"ANABELL VELASQUEZ","COORDINADORA PIC ","PIC",{"$f":"VLOOKUP(A4:A37,'[1]PIC JULIO 2020'!$A$2:$O$40,15,0)","v":3739},{"$f":"VLOOKUP(A4:A37,'[1]PIC JULIO 2020'!$A$2:$P$37,16,0)","v":4721},{"$f":"VLOOKUP(A4:A37,'[2]PIC JULIO 2020'!$A$2:$Q$40,17,0)","v":"2020-07-20"},"https://www.contratos.gov.co/consultas/detalleProceso.do?numConstancia=20-4-10938615"]
[22506781,"MILDRED TATIANA GOENAGA ALVARADO","215-2020 -PIC","ENFERMERA  JEFE  VACUNACION ","01 julio de 2020","31 de Julio de 2020",2500000,2500000,"ANABELL VELASQUEZ","COORDINADORA PIC ","PIC",{"$f":"VLOOKUP(A5:A37,'[1]PIC JULIO 2020'!$A$2:$O$40,15,0)","v":3740},{"$f":"VLOOKUP(A5:A37,'[1]PIC JULIO 2020'!$A$2:$P$37,16,0)","v":4722},{"$f":"VLOOKUP(A5:A37,'[2]PIC JULIO 2020'!$A$2:$Q$40,17,0)","v":"2020-07-20"},"https://www.contratos.gov.co/consultas/detalleProceso.do?numConstancia=20-4-10938616"]
[22645320,"ADRIANA CRISTINA GARCIA CARRILLO","216-2020 -PIC","FISIOTERAPEUTA","01 julio de 2020","31 de Julio de 2020",2500000,2500000,"ANABELL VELASQUEZ","COORDINADORA PIC ","PIC",{"$f":"VLOOKUP(A6:A37,'[1]PIC JULIO 2020'!$A$2:$O$40,15,0)","v":3741},{"$f":"VLOOKUP(A6:A37,'[1]PIC JULIO 2020'!$A$2:$P$37,16,0)","v":4723},{"$f":"VLOOKUP(A6:A37,'[2]PIC JULIO 2020'!$A$2:$Q$40,17,0)","v":"2020-07-20"},"https://www.contratos.gov.co/consultas/detalleProceso.do?numConstancia=20-4-10938617"]
[32777087,"ROSA MARGARITA SEVILLA","217-2020 -PIC","NUTRICIONISTA ","01 julio de 2020","31 de Julio de 2020",2500000,2500000,"ANABELL VELASQUEZ","COORDINADORA PIC ","PIC",{"$f":"VLOOKUP(A7:A37,'[1]PIC JULIO 2020'!$A$2:$O$40,15,0)","v":3742},{"$f":"VLOOKUP(A7:A37,'[1]PIC JULIO 2020'!$A$2:$P$37,16,0)","v":4724},{"$f":"VLOOKUP(A7:A37,'[2]PIC JULIO 2020'!$A$2:$Q$40,17,0)","v":"2020-07-20"},"https://www.contratos.gov.co/consultas/detalleProceso.do?numConstancia=20-4-10938618"]
[1065575009,"ANDREA TATIANA SERRANO MOLINA ","218-2020 -PIC","PSICOLOGO ","01 julio de 2020","31 de Julio de 2020",2500000,2500000,"ANABELL VELASQUEZ","COORDINADORA PIC ","PIC",{"$f":"VLOOKUP(A8:A37,'[1]PIC JULIO 2020'!$A$2:$O$40,15,0)","v":3743},{"$f":"VLOOKUP(A8:A37,'[1]PIC JULIO 2020'!$A$2:$P$37,16,0)","v":4725},{"$f":"VLOOKUP(A8:A37,'[2]PIC JULIO 2020'!$A$2:$Q$40,17,0)","v":"2020-07-20"},"https://www.contratos.gov.co/consultas/detalleProceso.do?numConstancia=20-4-10938619"]
[22617307,"ETILVIA TERESA DONADO CABALLERO ","219-2020 -PIC","PSICOLOGO ","01 julio de 2020","31 de Julio de 2020",2500000,2500000,"ANABELL VELASQUEZ","COORDINADORA PIC ","PIC",{"$f":"VLOOKUP(A9:A37,'[1]PIC JULIO 2020'!$A$2:$O$40,15,0)","v":3744},{"$f":"VLOOKUP(A9:A37,'[1]PIC JULIO 2020'!$A$2:$P$37,16,0)","v":4726},{"$f":"VLOOKUP(A9:A37,'[2]PIC JULIO 2020'!$A$2:$Q$40,17,0)","v":"2020-07-20"},"https://www.contratos.gov.co/consultas/detalleProceso.do?numConstancia=20-4-10938620"]
[1140873504,"OLMAN JOSHUA BULA TORRES","220-2020 -PIC","PSICOLOGO ","01 julio de 2020","31 de Julio de 2020",2500000,2500000,"ANABELL VELASQUEZ","COORDINADORA PIC ","PIC",{"$f":"VLOOKUP(A10:A37,'[1]PIC JULIO 2020'!$A$2:$O$40,15,0)","v":3745},{"$f":"VLOOKUP(A10:A37,'[1]PIC JULIO 2020'!$A$2:$P$37,16,0)","v":4727},{"$f":"VLOOKUP(A10:A37,'[2]PIC JULIO 2020'!$A$2:$Q$40,17,0)","v":"2020-07-20"},"https://www.contratos.gov.co/consultas/detalleProceso.do?numConstancia=20-4-10938621"]
[1046872703,"LUCELIS DE LA HOZ ESCORCIA","221-2020 -PIC","AUXILIAR ADMINISTRATIVO-PIC","01 julio de 2020","31 de Julio de 2020",1900000,1900000,"ANABELL VELASQUEZ","COORDINADORA PIC ","PIC",{"$f":"VLOOKUP(A11:A37,'[1]PIC JULIO 2020'!$A$2:$O$40,15,0)","v":3746},{"$f":"VLOOKUP(A11:A37,'[1]PIC JULIO 2020'!$A$2:$P$37,16,0)","v":4728},{"$f":"VLOOKUP(A11:A37,'[2]PIC JULIO 2020'!$A$2:$Q$40,17,0)","v":"2020-07-20"},"https://www.contratos.gov.co/consultas/detalleProceso.do?numConstancia=20-4-10938623"]
[72429089,"EDER DE JESUS SEGURA BRAVO","222-2020 -PIC","HIGIENISTA ORAL","01 julio de 2020","31 de Julio de 2020",1900000,1900000,"ANABELL VELASQUEZ","COORDINADORA PIC ","PIC",{"$f":"VLOOKUP(A12:A37,'[1]PIC JULIO 2020'!$A$2:$O$40,15,0)","v":3747},{"$f":"VLOOKUP(A12:A37,'[1]PIC JULIO 2020'!$A$2:$P$37,16,0)","v":4729},{"$f":"VLOOKUP(A12:A37,'[2]PIC JULIO 2020'!$A$2:$Q$40,17,0)","v":"2020-07-20"},"https://www.contratos.gov.co/consultas/detalleProceso.do?numConstancia=20-4-10938624"]
[72271553,"DAVID ENRIQUE AGRESOT DE LA CRUZ","223-2020 -PIC","LIDER DE ZOONOSIS ","01 julio de 2020","31 de Julio de 2020",1900000,1900000,"ANABELL VELASQUEZ","COORDINADORA PIC ","PIC",{"$f":"VLOOKUP(A13:A37,'[1]PIC JULIO 2020'!$A$2:$O$40,15,0)","v":3748},{"$f":"VLOOKUP(A13:A37,'[1]PIC JULIO 2020'!$A$2:$P$37,16,0)","v":4730},{"$f":"VLOOKUP(A13:A37,'[2]PIC JULIO 2020'!$A$2:$Q$40,17,0)","v":"2020-07-20"},"https://www.contratos.gov.co/consultas/detalleProceso.do?numConstancia=20-4-10938625"]
[32876278,"CLAUDIA MARTINEZ RIVAS ","224-2020 -PIC","AGENTE PRIMARIA EN SALUD-APS","01 julio de 2020","31 de Julio de 2020",1400000,1400000,"ANABELL VELASQUEZ","COORDINADORA PIC ","PIC",{"$f":"VLOOKUP(A14:A37,'[1]PIC JULIO 2020'!$A$2:$O$40,15,0)","v":3749},{"$f":"VLOOKUP(A14:A37,'[1]PIC JULIO 2020'!$A$2:$P$37,16,0)","v":4731},{"$f":"VLOOKUP(A14:A37,'[2]PIC JULIO 2020'!$A$2:$Q$40,17,0)","v":"2020-07-20"},"https://www.contratos.gov.co/consultas/detalleProceso.do?numConstancia=20-4-10938627"]
[1143136225,"MARTA CECILIA MARIN ZAPATA","225-2020 -PIC","AGENTE PRIMARIA EN SALUD-APS","01 julio de 2020","31 de Julio de 2020",1400000,1400000,"ANABELL VELASQUEZ","COORDINADORA PIC ","PIC",{"$f":"VLOOKUP(A15:A37,'[1]PIC JULIO 2020'!$A$2:$O$40,15,0)","v":3750},{"$f":"VLOOKUP(A15:A37,'[1]PIC JULIO 2020'!$A$2:$P$37,16,0)","v":4732},{"$f":"VLOOKUP(A15:A37,'[2]PIC JULIO 2020'!$A$2:$Q$40,17,0)","v":"2020-07-20"},"https://www.contratos.gov.co/consultas/detalleProceso.do?numConstancia=20-4-10938629"]
[1043931882,"AREIDIS MEDINA SANJUAN ","226-2020 -PIC","AGENTE PRIMARIA EN SALUD-APS","01 julio de 2020","31 de Julio de 2020",1400000,1400000,"ANABELL VELASQUEZ","COORDINADORA PIC ","PIC",{"$f":"VLOOKUP(A16:A37,'[1]PIC JULIO 2020'!$A$2:$O$40,15,0)","v":3751},{"$f":"VLOOKUP(A16:A37,'[1]PIC JULIO 2020'!$A$2:$P$37,16,0)","v":4733},{"$f":"VLOOKUP(A16:A37,'[2]PIC JULIO 2020'!$A$2:$Q$40,17,0)","v":"2020-07-20"},"https://www.contratos.gov.co/consultas/detalleProceso.do?numConstancia=20-4-10938630"]
[22543666,"DENNYS MARIELA ARZUZAR GALVIS","227-2020 -PIC","AGENTE PRIMARIA EN SALUD-APS","01 julio de 2020","31 de Julio de 2020",1400000,1400000,"ANABELL VELASQUEZ","COORDINADORA PIC ","PIC",{"$f":"VLOOKUP(A17:A37,'[1]PIC JULIO 2020'!$A$2:$O$40,15,0)","v":3752},{"$f":"VLOOKUP(A17:A37,'[1]PIC JULIO 2020'!$A$2:$P$37,16,0)","v":4734},{"$f":"VLOOKUP(A17:A37,'[2]PIC JULIO 2020'!$A$2:$Q$40,17,0)","v":"2020-07-20"},"https://www.contratos.gov.co/consultas/detalleProceso.do?numConstancia=20-4-10938631"]
[44160070,"GLORIA ZAPATA REZA","228-2020 -PIC","AGENTE PRIMARIA EN SALUD-APS","01 julio de 2020","31 de Julio de 2020",1400000,1400000,"ANABELL VELASQUEZ","COORDINADORA PIC ","PIC",{"$f":"VLOOKUP(A18:A37,'[1]PIC JULIO 2020'!$A$2:$O$40,15,0)","v":3753},{"$f":"VLOOKUP(A18:A37,'[1]PIC JULIO 2020'!$A$2:$P$37,16,0)","v":4735},{"$f":"VLOOKUP(A18:A37,'[2]PIC JULIO 2020'!$A$2:$Q$40,17,0)","v":"2020-07-20"},"https://www.contratos.gov.co/consultas/detalleProceso.do?numConstancia=20-4-10938633"]
[44152281,"KAREN JOHANA JIMENEZ RAMOS","229-2020 -PIC","AGENTE PRIMARIA EN SALUD-APS","01 julio de 2020","31 de Julio de 2020",1400000,1400000,"ANABELL VELASQUEZ","COORDINADORA PIC ","PIC",{"$f":"VLOOKUP(A19:A37,'[1]PIC JULIO 2020'!$A$2:$O$40,15,0)","v":3754},{"$f":"VLOOKUP(A19:A37,'[1]PIC JULIO 2020'!$A$2:$P$37,16,0)","v":4736},{"$f":"VLOOKUP(A19:A37,'[2]PIC JULIO 2020'!$A$2:$Q$40,17,0)","v":"2020-07-20"},"https://www.contratos.gov.co/consultas/detalleProceso.do?numConstancia=20-4-10938634"]
[44150081,"MARY LUZ GUERRERO CERVANTES ","230-2020 -PIC","AGENTE PRIMARIA EN SALUD-APS","01 julio de 2020","31 de Julio de 2020",1400000,1400000,"ANABELL VELASQUEZ","COORDINADORA PIC ","PIC",{"$f":"VLOOKUP(A20:A37,'[1]PIC JULIO 2020'!$A$2:$O$40,15,0)","v":3755},{"$f":"VLOOKUP(A20:A37,'[1]PIC JULIO 2020'!$A$2:$P$37,16,0)","v":4737},{"$f":"VLOOKUP(A20:A37,'[2]PIC JULIO 2020'!$A$2:$Q$40,17,0)","v":"2020-07-20"},"https://www.contratos.gov.co/consultas/detalleProceso.do?numConstancia=20-4-10938635"]
[1002162856,"NICOLL PATRICIA NIEBLES RIVERA","231-2020 -PIC","AGENTE PRIMARIA EN SALUD-APS","01 julio de 2020","31 de Julio de 2020",1400000,1400000,"ANABELL VELASQUEZ","COORDINADORA PIC ","PIC",{"$f":"VLOOKUP(A21:A37,'[1]PIC JULIO 2020'!$A$2:$O$40,15,0)","v":3756},{"$f":"VLOOKUP(A21:A37,'[1]PIC JULIO 2020'!$A$2:$P$37,16,0)","v":4738},{"$f":"VLOOKUP(A21:A37,'[2]PIC JULIO 2020'!$A$2:$Q$40,17,0)","v":"2020-07-20"},"https://www.contratos.gov.co/consultas/detalleProceso.do?numConstancia=20-4-10938636"]
[32758730,"NUBIA ESTELA CANO GUILLEN","232-2020 -PIC","AGENTE PRIMARIA EN SALUD-APS","01 julio de 2020","31 de Julio de 2020",1400000,1400000,"ANABELL VELASQUEZ","COORDINADORA PIC ","PIC",{"$f":"VLOOKUP(A22:A37,'[1]PIC JULIO 2020'!$A$2:$O$40,15,0)","v":3757},{"$f":"VLOOKUP(A22:A37,'[1]PIC JULIO 2020'!$A$2:$P$37,16,0)","v":4739},{"$f":"VLOOKUP(A22:A37,'[2]PIC JULIO 2020'!$A$2:$Q$40,17,0)","v":"2020-07-20"},"https://www.contratos.gov.co/consultas/detalleProceso.do?numConstancia=20-4-10938638"]
[1042449446,"SAILIS MARIA FRIA VEGA","233-2020 -PIC","AGENTE PRIMARIA EN SALUD-APS","01 julio de 2020","31 de Julio de 2020",1400000,1400000,"ANABELL VELASQUEZ","COORDINADORA PIC ","PIC",{"$f":"VLOOKUP(A23:A37,'[1]PIC JULIO 2020'!$A$2:$O$40,15,0)","v":3758},{"$f":"VLOOKUP(A23:A37,'[1]PIC JULIO 2020'!$A$2:$P$37,16,0)","v":4740},{"$f":"VLOOKUP(A23:A37,'[2]PIC JULIO 2020'!$A$2:$Q$40,17,0)","v":"2020-07-20"},"https://www.contratos.gov.co/consultas/detalleProceso.do?numConstancia=20-4-10938639"]
[1047337919,"CANDY ISABEL ROJAS SARMIENTO","234-2020 -PIC","AGENTE PRIMARIA EN SALUD-ZOONOSIS","01 julio de 2020","31 de Julio de 2020",1400000,1400000,"ANABELL VELASQUEZ","COORDINADORA PIC ","PIC",{"$f":"VLOOKUP(A24:A37,'[1]PIC JULIO 2020'!$A$2:$O$40,15,0)","v":3759},{"$f":"VLOOKUP(A24:A37,'[1]PIC JULIO 2020'!$A$2:$P$37,16,0)","v":4741},{"$f":"VLOOKUP(A24:A37,'[2]PIC JULIO 2020'!$A$2:$Q$40,17,0)","v":"2020-07-20"},"https://www.contratos.gov.co/consultas/detalleProceso.do?numConstancia=20-4-10938640"]
[8784783,"DAIRO MANRIQUEZ MORALES BOVEA","235-2020 -PIC","AGENTE PRIMARIA EN SALUD-ZOONOSIS","01 julio de 2020","31 de Julio de 2020",1400000,1400000,"ANABELL VELASQUEZ","COORDINADORA PIC ","PIC",{"$f":"VLOOKUP(A25:A37,'[1]PIC JULIO 2020'!$A$2:$O$40,15,0)","v":3760},{"$f":"VLOOKUP(A25:A37,'[1]PIC JULIO 2020'!$A$2:$P$37,16,0)","v":4742},{"$f":"VLOOKUP(A25:A37,'[2]PIC JULIO 2020'!$A$2:$Q$40,17,0)","v":"2020-07-20"},"https://www.contratos.gov.co/consultas/detalleProceso.do?numConstancia=20-4-10938641"]
[32829868,"JUDITH ISABEL ARCON MEDINA","236-2020 -PIC","AGENTE PRIMARIA EN SALUD-ZOONOSIS","01 julio de 2020","31 de Julio de 2020",1400000,1400000,"ANABELL VELASQUEZ","COORDINADORA PIC ","PIC",{"$f":"VLOOKUP(A26:A37,'[1]PIC JULIO 2020'!$A$2:$O$40,15,0)","v":3761},{"$f":"VLOOKUP(A26:A37,'[1]PIC JULIO 2020'!$A$2:$P$37,16,0)","v":4743},{"$f":"VLOOKUP(A26:A37,'[2]PIC JULIO 2020'!$A$2:$Q$40,17,0)","v":"2020-07-20"},"https://www.contratos.gov.co/consultas/detalleProceso.do?numConstancia=20-4-10938642"]
[1046698080,"LUIS ALFREDO CANTILLO CABALLERO","237-2020 -PIC","AGENTE PRIMARIA EN SALUD-ZOONOSIS","01 julio de 2020","31 de Julio de 2020",1400000,1400000,"ANABELL VELASQUEZ","COORDINADORA PIC ","PIC",{"$f":"VLOOKUP(A27:A37,'[1]PIC JULIO 2020'!$A$2:$O$40,15,0)","v":3762},{"$f":"VLOOKUP(A27:A37,'[1]PIC JULIO 2020'!$A$2:$P$37,16,0)","v":4744},{"$f":"VLOOKUP(A27:A37,'[2]PIC JULIO 2020'!$A$2:$Q$40,17,0)","v":"2020-07-20"},"https://www.contratos.gov.co/consultas/detalleProceso.do?numConstancia=20-4-10938643"]
[30895455,"MARIA CONCEPCION ESPRIELLA BUELVAS","239-2020 -PIC","AGENTE PRIMARIA EN SALUD-ZOONOSIS","01 julio de 2020","31 de Julio de 2020",1400000,1400000,"ANABELL VELASQUEZ","COORDINADORA PIC ","PIC",{"$f":"VLOOKUP(A28:A37,'[1]PIC JULIO 2020'!$A$2:$O$40,15,0)","v":3764},{"$f":"VLOOKUP(A28:A37,'[1]PIC JULIO 2020'!$A$2:$P$37,16,0)","v":4746},{"$f":"VLOOKUP(A28:A37,'[2]PIC JULIO 2020'!$A$2:$Q$40,17,0)","v":"2020-07-20"},"https://www.contratos.gov.co/consultas/detalleProceso.do?numConstancia=20-4-10938647"]
[1143442239,"SAYURIS OCAMPO GARCIA","240-2020 -PIC","AGENTE PRIMARIA EN SALUD-ZOONOSIS","01 julio de 2020","31 de Julio de 2020",1400000,1400000,"ANABELL VELASQUEZ","COORDINADORA PIC ","PIC",{"$f":"VLOOKUP(A29:A37,'[1]PIC JULIO 2020'!$A$2:$O$40,15,0)","v":3765},{"$f":"VLOOKUP(A29:A37,'[1]PIC JULIO 2020'!$A$2:$P$37,16,0)","v":4747},{"$f":"VLOOKUP(A29:A37,'[2]PIC JULIO 2020'!$A$2:$Q$40,17,0)","v":"2020-07-20"},"https://www.contratos.gov.co/consultas/detalleProceso.do?numConstancia=20-4-10938648"]
[32872420,"LUZ MARINA GARIZAO TAPIA","241-2020 -PIC","AGENTE PRIMARIA EN SALUD-ZOONOSIS","01 julio de 2020","31 de Julio de 2020",1400000,1400000,"ANABELL VELASQUEZ","COORDINADORA PIC ","PIC",{"$f":"VLOOKUP(A30:A37,'[1]PIC JULIO 2020'!$A$2:$O$40,15,0)","v":3766},{"$f":"VLOOKUP(A30:A37,'[1]PIC JULIO 2020'!$A$2:$P$37,16,0)","v":4748},{"$f":"VLOOKUP(A30:A37,'[2]PIC JULIO 2020'!$A$2:$Q$40,17,0)","v":"2020-07-20"},"https://www.contratos.gov.co/consultas/detalleProceso.do?numConstancia=20-4-10938649"]
[1042417608,"KELLY DEL CARMEN PARDO RODRIGUEZ","242-2020 -PIC","AUXILIAR DE  ENFERMERIA - VACUNACION ","01 julio de 2020","31 de Julio de 2020",1400000,1400000,"ANABELL VELASQUEZ","COORDINADORA PIC ","PIC",{"$f":"VLOOKUP(A31:A37,'[1]PIC JULIO 2020'!$A$2:$O$40,15,0)","v":3767},{"$f":"VLOOKUP(A31:A37,'[1]PIC JULIO 2020'!$A$2:$P$37,16,0)","v":4749},{"$f":"VLOOKUP(A31:A37,'[2]PIC JULIO 2020'!$A$2:$Q$40,17,0)","v":"2020-07-20"},"https://www.contratos.gov.co/consultas/detalleProceso.do?numConstancia=20-4-10938650"]
[32810003,"DALGIS ESTHER BADILLO FONTALVO","243-2020 -PIC","AGENTE PRIMARIA EN SALUD-ZOONOSIS","01 julio de 2020","31 de Julio de 2020",1400000,1400000,"ANABELL VELASQUEZ","COORDINADORA PIC ","PIC",{"$f":"VLOOKUP(A32:A37,'[1]PIC JULIO 2020'!$A$2:$O$40,15,0)","v":3768},{"$f":"VLOOKUP(A32:A37,'[1]PIC JULIO 2020'!$A$2:$P$37,16,0)","v":4750},{"$f":"VLOOKUP(A32:A37,'[2]PIC JULIO 2020'!$A$2:$Q$40,17,0)","v":"2020-07-20"},"https://www.contratos.gov.co/consultas/detalleProceso.do?numConstancia=20-4-10938651"]
[8773147,"DANILO  FABIO  VELILLA  MERCADO ","244-2020 -PIC",{"$f":"+D32","v":"AGENTE PRIMARIA EN SALUD-ZOONOSIS"},"01 julio de 2020","31 de Julio de 2020",1400000,1400000,"ANABELL VELASQUEZ","COORDINADORA PIC ","PIC",{"$f":"VLOOKUP(A33:A37,'[1]PIC JULIO 2020'!$A$2:$O$40,15,0)","v":3769},{"$f":"VLOOKUP(A33:A37,'[1]PIC JULIO 2020'!$A$2:$P$37,16,0)","v":4751},{"$f":"VLOOKUP(A33:A37,'[2]PIC JULIO 2020'!$A$2:$Q$40,17,0)","v":"2020-07-20"},"https://www.contratos.gov.co/consultas/detalleProceso.do?numConstancia=20-4-10938652"]
[1140814733,"KATHERINE PATRICIA URUETA VERGARA ","245-2020 -PIC","LIDER APS","01 julio de 2020","31 de Julio de 2020",2500000,2500000,"ANABELL VELASQUEZ","COORDINADORA PIC ","PIC",{"$f":"VLOOKUP(A34:A37,'[1]PIC JULIO 2020'!$A$2:$O$40,15,0)","v":3770},{"$f":"VLOOKUP(A34:A37,'[1]PIC JULIO 2020'!$A$2:$P$37,16,0)","v":4752},{"$f":"VLOOKUP(A34:A37,'[2]PIC JULIO 2020'!$A$2:$Q$40,17,0)","v":"2020-07-20"},"https://www.contratos.gov.co/consultas/detalleProceso.do?numConstancia=20-4-10938653"]
[72304633,"SAMUEL EDUARDO URUETA HURTADO","246-2020 -PIC","LIDER AMBIENTAL","01 julio de 2020","31 de Julio de 2020",2500000,2500000,"ANABELL VELASQUEZ","COORDINADORA PIC ","PIC",{"$f":"VLOOKUP(A35:A37,'[1]PIC JULIO 2020'!$A$2:$O$40,15,0)","v":3771},{"$f":"VLOOKUP(A35:A37,'[1]PIC JULIO 2020'!$A$2:$P$37,16,0)","v":4753},{"$f":"VLOOKUP(A35:A37,'[2]PIC JULIO 2020'!$A$2:$Q$40,17,0)","v":"2020-07-20"},"https://www.contratos.gov.co/consultas/detalleProceso.do?numConstancia=20-4-10938654"]
[1129542324,"VANESSA ESTHER  TEVENIN VERGARA","247-2020-PIC","AUXILIAR DE  ENFERMERIA - VACUNACION ","21 DE JULIO DE 2020","31 de Julio de 2020",{"$f":"1400000/30*11","v":513333.33333333331},513333.33333333331,"ANABELL VELASQUEZ","COORDINADORA PIC ","PIC",3802,null,"24-07-2020","https://www.contratos.gov.co/consultas/detalleProceso.do?numConstancia=20-4-10952110"]
[50846336,"MIRIAM DEL SOCORRO FLOREZ ESPITIA ","248-2020-PIC ","AUXILIAR DE  ENFERMERIA - VACUNACION ","21 DE JULIO DE 2020","31 de Julio de 2020",{"$f":"1400000/30*11","v":513333.33333333331},513333.33333333331,"ANABELL VELASQUEZ","COORDINADORA PIC ","PIC",3803,null,"24-07-2020","https://www.contratos.gov.co/consultas/detalleProceso.do?numConstancia=20-4-10952127"]